Workbook

Sheet SD Teacher's Data
A1: Name | B1: EmployeeID | C1: FatherName | D1: Gender | E1: DOB | F1: Post | G1: Subject | H1: Date Of Joining | I1: Address | J1: Aadhar No | K1: PAN No | L1: Mobile No | M1: Blood Group
A2: ADITYA JAKHAD | B2: RJBN201803008697 | C2: OM PRAKASH JAKHAD | D2: M | E2: 1994-06-16 | F2: Junior Assistant | G2: --- | H2: 2018-10-26 | I2: 200 K, BAPU NAGAR BEHIND KALYAN MANDAP KUCHAMAN CITY | J2: XXXXXXXX7055 | K2: XXXXJ2498M | L2: XXXXXX2067 | M2: A+
A3: ASHWINI KUMAR | B3: RJNA201228008021 | C3: Meghraj Sharma | D3: M | E3: 1988-02-06 | F3: Senior Teacher (II Gr.) | G3: English | H3: 2012-04-05 | I3: Shree Ram Marg, New Colony, Kuchaman City | J3: XXXXXXXX6191 | K3: XXXXK5921Q | L3: XXXXXX3711 | M3: O+
A4: BANWARI | B4: RJJP200818021434 | C4: HEERA LAL | D4: M | E4: 1977-07-13 | F4: Teacher (III Gr.) Level 2 | G4: Social Studies | H4: 2018-07-14 | I4: VPO -DHANKOLI TAH.- DEEDWANA | J4: XXXXXXXX2855 | K4: XXXXB9607K | L4: XXXXXX4263 | M4: O+
A5: CHETAN RAM RIYAR | B5: RJNA199828007951 | C5: NARAYAN RAM RIYAR | D5: M | E5: 1976-01-01 | F5: Lecturer (I Gr.) | G5: History | H5: 2017-01-18 | I5: NEAR GEETANJALI SCHOOL,MIRDHA NAGAR, DEEDWANA ROAD,KUCHAMAN CITY, DIST-NAGAUR (RAJASTHAN) | J5: XXXXXXXX2018 | K5: XXXXR0248H | L5: XXXXXX5001 | M5: A+
A6: CHHOTOO SINGH | B6: RJNA199328019992 | C6: BHAGIRATH SINGH | D6: M | E6: 1966-06-15 | F6: Senior Teacher (II Gr.) | G6: Hindi | H6: 2018-06-26 | I6: VILLAGE RANW POST BARWALA VIA MAKRANA DISTIC NAGOUR | J6: XXXXXXXX5283 | K6: XXXXR5691G | L6: XXXXXX0541 | M6: AB+
A7: HEMLATA SHARMA | B7: RJNA200828043421 | C7: RADHYSHYAM SHARMA | D7: F | E7: 1978-08-31 | F7: Teacher (III Gr.) Level 2 | G7: English | H7: 2016-06-09 | I7: TIWARI BHAWAN NEAR GANDI PARK KUCHAMAN CITY | J7: XXXXXXXX6054 | K7: XXXXS2123M | L7: XXXXXX7081 | M7: O+
A8: Kamla Barupal | B8: RJNA199728020199 | C8: Lacchi Ram | D8: F | E8: 1973-02-09 | F8: Senior Teacher (II Gr.) | G8: Sanskrit | H8: 2016-12-15 | I8: 57/A Jasol NAgar, Station Road, Vard NO. 11, Kuchaman city | J8: XXXXXXXX5772 | K8: XXXXB7337G | L8: XXXXXX6935 | M8: B+
A9: KAMLA SESMA | B9: RJNA201828017689 | C9: NARAYAN RAM | D9: F | E9: 1988-09-13 | F9: Lecturer (I Gr.) | G9: Political Science | H9: 2018-08-25 | I9: LAPLI KI DHANI, NIMAS POST- MUWANA | J9: XXXXXXXX8357 | K9: XXXXs2977h | L9: XXXXXX0954 | M9: O+
A10: PRAMOD KANWAR | B10: RJBM201905021820 | C10: Pappu Singh | D10: F | E10: 1996-08-10 | F10: Senior Teacher (II Gr.) | G10: Mathematics | H10: 2020-09-02 | I10: Village syalu kalan post ramrikh ki dhani tehsil surajgarh district jhunjhunu | J10: XXXXXXXX9492 | K10: XXXXK0742Q | L10: XXXXXX4400 | M10: O+
A11: RAJKUMARI JHHALA | B11: RJNA199828007781 | C11: KISTUR CHAND CHOUHAN | D11: F | E11: 1976-08-15 | F11: Teacher (III Gr.) Level 1 | G11: --- | H11: 2016-06-08 | I11: BUNKAR BASTI BHAWTA ROAD KUCHAMAN CITY | J11: XXXXXXXX0431 | K11: XXXXJ5923K | L11: XXXXXX2521 | M11: O+
A12: RAMESHWAR LAL | B12: RJNA200528011759 | C12: BANNA RAM | D12: M | E12: 1975-01-05 | F12: Senior Teacher (II Gr.) | G12: Science | H12: 2017-11-02 | I12: VPO-JUSARI (BHAKRON KI DHANI) TEH - MAKRANA DIST- NAGAUR | J12: XXXXXXXX2930 | K12: XXXXL2950R | L12: XXXXXX6360 | M12: A+
A13: RANDHEER SINGH SHEKHAWAT | B13: RJNA199128021077 | C13: RICHHPAL SINGH | D13: M | E13: 1966-02-11 | F13: PET (III Gr.) | G13: --- | H13: 2015-09-16 | I13: BEHIND KRISHI MANDI, AMBEY COLONY, V.T. SCHOOL ROAD, KUHAMAN CITY | J13: XXXXXXXX6382 | K13: XXXXS9053R | L13: XXXXXX2183 | M13: A+
A14: Santosh Mohanpuriya | B14: RJNA199828007841 | C14: KHIVRAJ GOSWAMI | D14: F | E14: 1973-08-21 | F14: Teacher (III Gr.) Level 1 | G14: --- | H14: 2016-05-24 | I14: DALLA BALAJI RAOD KUCHAMAN CITY | J14: XXXXXXXX2806 | K14: XXXXM6069K | L14: XXXXXX3499 | M14: O+
A15: SAROJ SUNARIWAL | B15: RJNA199928008033 | C15: DHANA RAM JATOLIYA | D15: F | E15: 1970-08-07 | F15: Teacher (III Gr.) Level 2 | G15: Hindi | H15: 2016-06-06 | I15: ASHOK NAGAR DALA BALAJI ROAD KUCHAMAN CITY | J15: XXXXXXXX7166 | K15: XXXXS9205L | L15: XXXXXX0003 | M15: O-
A16: SITA RAM BALAI | B16: RJNA198828013771 | C16: KALU RAM | D16: M | E16: 1965-09-01 | F16: Principal & Equivalent | G16: --- | H16: 2019-03-09 | I16: VPO- RULANA VIA- BAYA TEH- DANTA RAMGARH DIST- SIKAR | J16: XXXXXXXX5282 | K16: XXXXB2351H | L16: XXXXXX2795 | M16: O+
A17: SUKHA RAM MUHAL | B17: RJNA201128019576 | C17: HARI RAM MUHAL | D17: M | E17: 1986-07-07 | F17: Lecturer (I Gr.) | G17: Geography | H17: 2021-01-07 | I17: VILL - LIKHAMASAR POST - RASAL VIA - KUCHAMAN CITY DIST - NAGAUR | J17: XXXXXXXX3811 | K17: XXXXM7372J | L17: XXXXXX9738 | M17: O+

Sheet Emp. Data
A1: Government Senior Secondary School, Rooppura
A2: Employee Data
A3: क्र.सं. | B3: नाम | C3: पद | D3: DOB | E3: पैन नंबर | F3: Emp. ID | G3: Nps Employee | H3: HRA Rate | I3: SI No. | J3: GPF No. | K3: PRAN No. | L3: आधार कार्ड नंबर | M3: बैंक नाम | N3: IFSC Code | O3: बैंक A/c | P3: Is in Probation
A4: =IF(Table1[[#This Row],[नाम]]="","",ROWS($A$1:A1)) -> 1 | B4: =PROPER(IF('SD Teacher''s Data'!A2="","",'SD Teacher''s Data'!A2)) -> Aditya Jakhad | C4: =PROPER(IF('SD Teacher''s Data'!F2="","",'SD Teacher''s Data'!F2)) -> Junior Assistant | D4: =IF('SD Teacher''s Data'!E2="","",'SD Teacher''s Data'!E2) -> 1994-06-16 | E4: =IF('SD Teacher''s Data'!K2="","",'SD Teacher''s Data'!K2) -> XXXXJ2498M | F4: =IF('SD Teacher''s Data'!B2="","",'SD Teacher''s Data'!B2) -> RJBN201803008697 | G4: Yes | H4: 8% | I4: 123 | J4: 1234 | K4: 1234567891011 | L4: =IF('SD Teacher''s Data'!J2="","",'SD Teacher''s Data'!J2) -> XXXXXXXX7055 | M4: SBI | N4: SBIN0031733 | O4: 1234567891011 | P4: No
A5: =IF(Table1[[#This Row],[नाम]]="","",ROWS($A$1:A2)) -> 2 | B5: =PROPER(IF('SD Teacher''s Data'!A3="","",'SD Teacher''s Data'!A3)) -> Ashwini Kumar | C5: =PROPER(IF('SD Teacher''s Data'!F3="","",'SD Teacher''s Data'!F3)) -> Senior Teacher (Ii Gr.) | D5: =IF('SD Teacher''s Data'!E3="","",'SD Teacher''s Data'!E3) -> 1988-02-06 | E5: =IF('SD Teacher''s Data'!K3="","",'SD Teacher''s Data'!K3) -> XXXXK5921Q | F5: =IF('SD Teacher''s Data'!B3="","",'SD Teacher''s Data'!B3) -> RJNA201228008021 | G5: Yes | H5: 8% | I5: 123 | J5: 1234 | K5: 1234567891011 | L5: =IF('SD Teacher''s Data'!J3="","",'SD Teacher''s Data'!J3) -> XXXXXXXX6191 | M5: SBI | N5: SBIN0031733 | O5: 1234567891011 | P5: No
A6: =IF(Table1[[#This Row],[नाम]]="","",ROWS($A$1:A3)) -> 3 | B6: =PROPER(IF('SD Teacher''s Data'!A4="","",'SD Teacher''s Data'!A4)) -> Banwari | C6: =PROPER(IF('SD Teacher''s Data'!F4="","",'SD Teacher''s Data'!F4)) -> Teacher (Iii Gr.) Level 2 | D6: =IF('SD Teacher''s Data'!E4="","",'SD Teacher''s Data'!E4) -> 1977-07-13 | E6: =IF('SD Teacher''s Data'!K4="","",'SD Teacher''s Data'!K4) -> XXXXB9607K | F6: =IF('SD Teacher''s Data'!B4="","",'SD Teacher''s Data'!B4) -> RJJP200818021434 | G6: Yes | H6: 16% | L6: =IF('SD Teacher''s Data'!J4="","",'SD Teacher''s Data'!J4) -> XXXXXXXX2855 | P6: Yes
A7: =IF(Table1[[#This Row],[नाम]]="","",ROWS($A$1:A4)) -> 4 | B7: =PROPER(IF('SD Teacher''s Data'!A5="","",'SD Teacher''s Data'!A5)) -> Chetan Ram Riyar | C7: =PROPER(IF('SD Teacher''s Data'!F5="","",'SD Teacher''s Data'!F5)) -> Lecturer (I Gr.) | D7: =IF('SD Teacher''s Data'!E5="","",'SD Teacher''s Data'!E5) -> 1976-01-01 | E7: =IF('SD Teacher''s Data'!K5="","",'SD Teacher''s Data'!K5) -> XXXXR0248H | F7: =IF('SD Teacher''s Data'!B5="","",'SD Teacher''s Data'!B5) -> RJNA199828007951 | G7: No | L7: =IF('SD Teacher''s Data'!J5="","",'SD Teacher''s Data'!J5) -> XXXXXXXX2018
A8: =IF(Table1[[#This Row],[नाम]]="","",ROWS($A$1:A5)) -> 5 | B8: =PROPER(IF('SD Teacher''s Data'!A6="","",'SD Teacher''s Data'!A6)) -> Chhotoo Singh | C8: =PROPER(IF('SD Teacher''s Data'!F6="","",'SD Teacher''s Data'!F6)) -> Senior Teacher (Ii Gr.) | D8: =IF('SD Teacher''s Data'!E6="","",'SD Teacher''s Data'!E6) -> 1966-06-15 | E8: =IF('SD Teacher''s Data'!K6="","",'SD Teacher''s Data'!K6) -> XXXXR5691G | F8: =IF('SD Teacher''s Data'!B6="","",'SD Teacher''s Data'!B6) -> RJNA199328019992 | L8: =IF('SD Teacher''s Data'!J6="","",'SD Teacher''s Data'!J6) -> XXXXXXXX5283
A9: =IF(Table1[[#This Row],[नाम]]="","",ROWS($A$1:A6)) -> 6 | B9: =PROPER(IF('SD Teacher''s Data'!A7="","",'SD Teacher''s Data'!A7)) -> Hemlata Sharma | C9: =PROPER(IF('SD Teacher''s Data'!F7="","",'SD Teacher''s Data'!F7)) -> Teacher (Iii Gr.) Level 2 | D9: =IF('SD Teacher''s Data'!E7="","",'SD Teacher''s Data'!E7) -> 1978-08-31 | E9: =IF('SD Teacher''s Data'!K7="","",'SD Teacher''s Data'!K7) -> XXXXS2123M | F9: =IF('SD Teacher''s Data'!B7="","",'SD Teacher''s Data'!B7) -> RJNA200828043421 | L9: =IF('SD Teacher''s Data'!J7="","",'SD Teacher''s Data'!J7) -> XXXXXXXX6054
A10: =IF(Table1[[#This Row],[नाम]]="","",ROWS($A$1:A7)) -> 7 | B10: =PROPER(IF('SD Teacher''s Data'!A8="","",'SD Teacher''s Data'!A8)) -> Kamla Barupal | C10: =PROPER(IF('SD Teacher''s Data'!F8="","",'SD Teacher''s Data'!F8)) -> Senior Teacher (Ii Gr.) | D10: =IF('SD Teacher''s Data'!E8="","",'SD Teacher''s Data'!E8) -> 1973-02-09 | E10: =IF('SD Teacher''s Data'!K8="","",'SD Teacher''s Data'!K8) -> XXXXB7337G | F10: =IF('SD Teacher''s Data'!B8="","",'SD Teacher''s Data'!B8) -> RJNA199728020199 | L10: =IF('SD Teacher''s Data'!J8="","",'SD Teacher''s Data'!J8) -> XXXXXXXX5772
A11: =IF(Table1[[#This Row],[नाम]]="","",ROWS($A$1:A8)) -> 8 | B11: =PROPER(IF('SD Teacher''s Data'!A9="","",'SD Teacher''s Data'!A9)) -> Kamla Sesma | C11: =PROPER(IF('SD Teacher''s Data'!F9="","",'SD Teacher''s Data'!F9)) -> Lecturer (I Gr.) | D11: =IF('SD Teacher''s Data'!E9="","",'SD Teacher''s Data'!E9) -> 1988-09-13 | E11: =IF('SD Teacher''s Data'!K9="","",'SD Teacher''s Data'!K9) -> XXXXs2977h | F11: =IF('SD Teacher''s Data'!B9="","",'SD Teacher''s Data'!B9) -> RJNA201828017689 | L11: =IF('SD Teacher''s Data'!J9="","",'SD Teacher''s Data'!J9) -> XXXXXXXX8357
A12: =IF(Table1[[#This Row],[नाम]]="","",ROWS($A$1:A9)) -> 9 | B12: =PROPER(IF('SD Teacher''s Data'!A10="","",'SD Teacher''s Data'!A10)) -> Pramod Kanwar | C12: =PROPER(IF('SD Teacher''s Data'!F10="","",'SD Teacher''s Data'!F10)) -> Senior Teacher (Ii Gr.) | D12: =IF('SD Teacher''s Data'!E10="","",'SD Teacher''s Data'!E10) -> 1996-08-10 | E12: =IF('SD Teacher''s Data'!K10="","",'SD Teacher''s Data'!K10) -> XXXXK0742Q | F12: =IF('SD Teacher''s Data'!B10="","",'SD Teacher''s Data'!B10) -> RJBM201905021820 | L12: =IF('SD Teacher''s Data'!J10="","",'SD Teacher''s Data'!J10) -> XXXXXXXX9492
A13: =IF(Table1[[#This Row],[नाम]]="","",ROWS($A$1:A10)) -> 10 | B13: =PROPER(IF('SD Teacher''s Data'!A11="","",'SD Teacher''s Data'!A11)) -> Rajkumari Jhhala | C13: =PROPER(IF('SD Teacher''s Data'!F11="","",'SD Teacher''s Data'!F11)) -> Teacher (Iii Gr.) Level 1 | D13: =IF('SD Teacher''s Data'!E11="","",'SD Teacher''s Data'!E11) -> 1976-08-15 | E13: =IF('SD Teacher''s Data'!K11="","",'SD Teacher''s Data'!K11) -> XXXXJ5923K | F13: =IF('SD Teacher''s Data'!B11="","",'SD Teacher''s Data'!B11) -> RJNA199828007781 | L13: =IF('SD Teacher''s Data'!J11="","",'SD Teacher''s Data'!J11) -> XXXXXXXX0431
A14: =IF(Table1[[#This Row],[नाम]]="","",ROWS($A$1:A11)) -> 11 | B14: =PROPER(IF('SD Teacher''s Data'!A12="","",'SD Teacher''s Data'!A12)) -> Rameshwar Lal | C14: =PROPER(IF('SD Teacher''s Data'!F12="","",'SD Teacher''s Data'!F12)) -> Senior Teacher (Ii Gr.) | D14: =IF('SD Teacher''s Data'!E12="","",'SD Teacher''s Data'!E12) -> 1975-01-05 | E14: =IF('SD Teacher''s Data'!K12="","",'SD Teacher''s Data'!K12) -> XXXXL2950R | F14: =IF('SD Teacher''s Data'!B12="","",'SD Teacher''s Data'!B12) -> RJNA200528011759 | L14: =IF('SD Teacher''s Data'!J12="","",'SD Teacher''s Data'!J12) -> XXXXXXXX2930
A15: =IF(Table1[[#This Row],[नाम]]="","",ROWS($A$1:A12)) -> 12 | B15: =PROPER(IF('SD Teacher''s Data'!A13="","",'SD Teacher''s Data'!A13)) -> Randheer Singh Shekhawat | C15: =PROPER(IF('SD Teacher''s Data'!F13="","",'SD Teacher''s Data'!F13)) -> Pet (Iii Gr.) | D15: =IF('SD Teacher''s Data'!E13="","",'SD Teacher''s Data'!E13) -> 1966-02-11 | E15: =IF('SD Teacher''s Data'!K13="","",'SD Teacher''s Data'!K13) -> XXXXS9053R | F15: =IF('SD Teacher''s Data'!B13="","",'SD Teacher''s Data'!B13) -> RJNA199128021077 | L15: =IF('SD Teacher''s Data'!J13="","",'SD Teacher''s Data'!J13) -> XXXXXXXX6382
A16: =IF(Table1[[#This Row],[नाम]]="","",ROWS($A$1:A13)) -> 13 | B16: =PROPER(IF('SD Teacher''s Data'!A14="","",'SD Teacher''s Data'!A14)) -> Santosh Mohanpuriya | C16: =PROPER(IF('SD Teacher''s Data'!F14="","",'SD Teacher''s Data'!F14)) -> Teacher (Iii Gr.) Level 1 | D16: =IF('SD Teacher''s Data'!E14="","",'SD Teacher''s Data'!E14) -> 1973-08-21 | E16: =IF('SD Teacher''s Data'!K14="","",'SD Teacher''s Data'!K14) -> XXXXM6069K | F16: =IF('SD Teacher''s Data'!B14="","",'SD Teacher''s Data'!B14) -> RJNA199828007841 | L16: =IF('SD Teacher''s Data'!J14="","",'SD Teacher''s Data'!J14) -> XXXXXXXX2806
A17: =IF(Table1[[#This Row],[नाम]]="","",ROWS($A$1:A14)) -> 14 | B17: =PROPER(IF('SD Teacher''s Data'!A15="","",'SD Teacher''s Data'!A15)) -> Saroj Sunariwal | C17: =PROPER(IF('SD Teacher''s Data'!F15="","",'SD Teacher''s Data'!F15)) -> Teacher (Iii Gr.) Level 2 | D17: =IF('SD Teacher''s Data'!E15="","",'SD Teacher''s Data'!E15) -> 1970-08-07 | E17: =IF('SD Teacher''s Data'!K15="","",'SD Teacher''s Data'!K15) -> XXXXS9205L | F17: =IF('SD Teacher''s Data'!B15="","",'SD Teacher''s Data'!B15) -> RJNA199928008033 | L17: =IF('SD Teacher''s Data'!J15="","",'SD Teacher''s Data'!J15) -> XXXXXXXX7166
A18: =IF(Table1[[#This Row],[नाम]]="","",ROWS($A$1:A15)) -> 15 | B18: =PROPER(IF('SD Teacher''s Data'!A16="","",'SD Teacher''s Data'!A16)) -> Sita Ram Balai | C18: =PROPER(IF('SD Teacher''s Data'!F16="","",'SD Teacher''s Data'!F16)) -> Principal & Equivalent | D18: =IF('SD Teacher''s Data'!E16="","",'SD Teacher''s Data'!E16) -> 1965-09-01 | E18: =IF('SD Teacher''s Data'!K16="","",'SD Teacher''s Data'!K16) -> XXXXB2351H | F18: =IF('SD Teacher''s Data'!B16="","",'SD Teacher''s Data'!B16) -> RJNA198828013771 | L18: =IF('SD Teacher''s Data'!J16="","",'SD Teacher''s Data'!J16) -> XXXXXXXX5282
A19: =IF(Table1[[#This Row],[नाम]]="","",ROWS($A$1:A16)) -> 16 | B19: =PROPER(IF('SD Teacher''s Data'!A17="","",'SD Teacher''s Data'!A17)) -> Sukha Ram Muhal | C19: =PROPER(IF('SD Teacher''s Data'!F17="","",'SD Teacher''s Data'!F17)) -> Lecturer (I Gr.) | D19: =IF('SD Teacher''s Data'!E17="","",'SD Teacher''s Data'!E17) -> 1986-07-07 | E19: =IF('SD Teacher''s Data'!K17="","",'SD Teacher''s Data'!K17) -> XXXXM7372J | F19: =IF('SD Teacher''s Data'!B17="","",'SD Teacher''s Data'!B17) -> RJNA201128019576 | L19: =IF('SD Teacher''s Data'!J17="","",'SD Teacher''s Data'!J17) -> XXXXXXXX3811
A20: =IF(Table1[[#This Row],[नाम]]="","",ROWS($A$1:A17)) ->  | B20: =PROPER(IF('SD Teacher''s Data'!A18="","",'SD Teacher''s Data'!A18)) ->  | C20: =PROPER(IF('SD Teacher''s Data'!F18="","",'SD Teacher''s Data'!F18)) ->  | D20: =IF('SD Teacher''s Data'!E18="","",'SD Teacher''s Data'!E18) ->  | E20: =IF('SD Teacher''s Data'!K18="","",'SD Teacher''s Data'!K18) ->  | F20: =IF('SD Teacher''s Data'!B18="","",'SD Teacher''s Data'!B18) ->  | L20: =IF('SD Teacher''s Data'!J18="","",'SD Teacher''s Data'!J18) -> 
A21: =IF(Table1[[#This Row],[नाम]]="","",ROWS($A$1:A18)) ->  | B21: =PROPER(IF('SD Teacher''s Data'!A19="","",'SD Teacher''s Data'!A19)) ->  | C21: =PROPER(IF('SD Teacher''s Data'!F19="","",'SD Teacher''s Data'!F19)) ->  | D21: =IF('SD Teacher''s Data'!E19="","",'SD Teacher''s Data'!E19) ->  | E21: =IF('SD Teacher''s Data'!K19="","",'SD Teacher''s Data'!K19) ->  | F21: =IF('SD Teacher''s Data'!B19="","",'SD Teacher''s Data'!B19) ->  | L21: =IF('SD Teacher''s Data'!J19="","",'SD Teacher''s Data'!J19) -> 
A22: =IF(Table1[[#This Row],[नाम]]="","",ROWS($A$1:A19)) ->  | B22: =PROPER(IF('SD Teacher''s Data'!A20="","",'SD Teacher''s Data'!A20)) ->  | C22: =PROPER(IF('SD Teacher''s Data'!F20="","",'SD Teacher''s Data'!F20)) ->  | D22: =IF('SD Teacher''s Data'!E20="","",'SD Teacher''s Data'!E20) ->  | E22: =IF('SD Teacher''s Data'!K20="","",'SD Teacher''s Data'!K20) ->  | F22: =IF('SD Teacher''s Data'!B20="","",'SD Teacher''s Data'!B20) ->  | L22: =IF('SD Teacher''s Data'!J20="","",'SD Teacher''s Data'!J20) -> 
A23: =IF(Table1[[#This Row],[नाम]]="","",ROWS($A$1:A20)) ->  | B23: =PROPER(IF('SD Teacher''s Data'!A21="","",'SD Teacher''s Data'!A21)) ->  | C23: =PROPER(IF('SD Teacher''s Data'!F21="","",'SD Teacher''s Data'!F21)) ->  | D23: =IF('SD Teacher''s Data'!E21="","",'SD Teacher''s Data'!E21) ->  | E23: =IF('SD Teacher''s Data'!K21="","",'SD Teacher''s Data'!K21) ->  | F23: =IF('SD Teacher''s Data'!B21="","",'SD Teacher''s Data'!B21) ->  | L23: =IF('SD Teacher''s Data'!J21="","",'SD Teacher''s Data'!J21) -> 
A24: =IF(Table1[[#This Row],[नाम]]="","",ROWS($A$1:A21)) ->  | B24: =PROPER(IF('SD Teacher''s Data'!A22="","",'SD Teacher''s Data'!A22)) ->  | C24: =PROPER(IF('SD Teacher''s Data'!F22="","",'SD Teacher''s Data'!F22)) ->  | D24: =IF('SD Teacher''s Data'!E22="","",'SD Teacher''s Data'!E22) ->  | E24: =IF('SD Teacher''s Data'!K22="","",'SD Teacher''s Data'!K22) ->  | F24: =IF('SD Teacher''s Data'!B22="","",'SD Teacher''s Data'!B22) ->  | L24: =IF('SD Teacher''s Data'!J22="","",'SD Teacher''s Data'!J22) -> 
A25: =IF(Table1[[#This Row],[नाम]]="","",ROWS($A$1:A22)) ->  | B25: =PROPER(IF('SD Teacher''s Data'!A23="","",'SD Teacher''s Data'!A23)) ->  | C25: =PROPER(IF('SD Teacher''s Data'!F23="","",'SD Teacher''s Data'!F23)) ->  | D25: =IF('SD Teacher''s Data'!E23="","",'SD Teacher''s Data'!E23) ->  | E25: =IF('SD Teacher''s Data'!K23="","",'SD Teacher''s Data'!K23) ->  | F25: =IF('SD Teacher''s Data'!B23="","",'SD Teacher''s Data'!B23) ->  | L25: =IF('SD Teacher''s Data'!J23="","",'SD Teacher''s Data'!J23) -> 
A26: =IF(Table1[[#This Row],[नाम]]="","",ROWS($A$1:A23)) ->  | B26: =PROPER(IF('SD Teacher''s Data'!A24="","",'SD Teacher''s Data'!A24)) ->  | C26: =PROPER(IF('SD Teacher''s Data'!F24="","",'SD Teacher''s Data'!F24)) ->  | D26: =IF('SD Teacher''s Data'!E24="","",'SD Teacher''s Data'!E24) ->  | E26: =IF('SD Teacher''s Data'!K24="","",'SD Teacher''s Data'!K24) ->  | F26: =IF('SD Teacher''s Data'!B24="","",'SD Teacher''s Data'!B24) ->  | L26: =IF('SD Teacher''s Data'!J24="","",'SD Teacher''s Data'!J24) -> 
A27: =IF(Table1[[#This Row],[नाम]]="","",ROWS($A$1:A24)) ->  | B27: =PROPER(IF('SD Teacher''s Data'!A25="","",'SD Teacher''s Data'!A25)) ->  | C27: =PROPER(IF('SD Teacher''s Data'!F25="","",'SD Teacher''s Data'!F25)) ->  | D27: =IF('SD Teacher''s Data'!E25="","",'SD Teacher''s Data'!E25) ->  | E27: =IF('SD Teacher''s Data'!K25="","",'SD Teacher''s Data'!K25) ->  | F27: =IF('SD Teacher''s Data'!B25="","",'SD Teacher''s Data'!B25) ->  | L27: =IF('SD Teacher''s Data'!J25="","",'SD Teacher''s Data'!J25) -> 
A28: =IF(Table1[[#This Row],[नाम]]="","",ROWS($A$1:A25)) ->  | B28: =PROPER(IF('SD Teacher''s Data'!A26="","",'SD Teacher''s Data'!A26)) ->  | C28: =PROPER(IF('SD Teacher''s Data'!F26="","",'SD Teacher''s Data'!F26)) ->  | D28: =IF('SD Teacher''s Data'!E26="","",'SD Teacher''s Data'!E26) ->  | E28: =IF('SD Teacher''s Data'!K26="","",'SD Teacher''s Data'!K26) ->  | F28: =IF('SD Teacher''s Data'!B26="","",'SD Teacher''s Data'!B26) ->  | L28: =IF('SD Teacher''s Data'!J26="","",'SD Teacher''s Data'!J26) -> 
A29: =IF(Table1[[#This Row],[नाम]]="","",ROWS($A$1:A26)) ->  | B29: =PROPER(IF('SD Teacher''s Data'!A27="","",'SD Teacher''s Data'!A27)) ->  | C29: =PROPER(IF('SD Teacher''s Data'!F27="","",'SD Teacher''s Data'!F27)) ->  | D29: =IF('SD Teacher''s Data'!E27="","",'SD Teacher''s Data'!E27) ->  | E29: =IF('SD Teacher''s Data'!K27="","",'SD Teacher''s Data'!K27) ->  | F29: =IF('SD Teacher''s Data'!B27="","",'SD Teacher''s Data'!B27) ->  | L29: =IF('SD Teacher''s Data'!J27="","",'SD Teacher''s Data'!J27) -> 
A30: =IF(Table1[[#This Row],[नाम]]="","",ROWS($A$1:A27)) ->  | B30: =PROPER(IF('SD Teacher''s Data'!A28="","",'SD Teacher''s Data'!A28)) ->  | C30: =PROPER(IF('SD Teacher''s Data'!F28="","",'SD Teacher''s Data'!F28)) ->  | D30: =IF('SD Teacher''s Data'!E28="","",'SD Teacher''s Data'!E28) ->  | E30: =IF('SD Teacher''s Data'!K28="","",'SD Teacher''s Data'!K28) ->  | F30: =IF('SD Teacher''s Data'!B28="","",'SD Teacher''s Data'!B28) ->  | L30: =IF('SD Teacher''s Data'!J28="","",'SD Teacher''s Data'!J28) -> 
A31: =IF(Table1[[#This Row],[नाम]]="","",ROWS($A$1:A28)) ->  | B31: =PROPER(IF('SD Teacher''s Data'!A29="","",'SD Teacher''s Data'!A29)) ->  | C31: =PROPER(IF('SD Teacher''s Data'!F29="","",'SD Teacher''s Data'!F29)) ->  | D31: =IF('SD Teacher''s Data'!E29="","",'SD Teacher''s Data'!E29) ->  | E31: =IF('SD Teacher''s Data'!K29="","",'SD Teacher''s Data'!K29) ->  | F31: =IF('SD Teacher''s Data'!B29="","",'SD Teacher''s Data'!B29) ->  | L31: =IF('SD Teacher''s Data'!J29="","",'SD Teacher''s Data'!J29) -> 
A32: =IF(Table1[[#This Row],[नाम]]="","",ROWS($A$1:A29)) ->  | B32: =PROPER(IF('SD Teacher''s Data'!A30="","",'SD Teacher''s Data'!A30)) ->  | C32: =PROPER(IF('SD Teacher''s Data'!F30="","",'SD Teacher''s Data'!F30)) ->  | D32: =IF('SD Teacher''s Data'!E30="","",'SD Teacher''s Data'!E30) ->  | E32: =IF('SD Teacher''s Data'!K30="","",'SD Teacher''s Data'!K30) ->  | F32: =IF('SD Teacher''s Data'!B30="","",'SD Teacher''s Data'!B30) ->  | L32: =IF('SD Teacher''s Data'!J30="","",'SD Teacher''s Data'!J30) -> 
A33: =IF(Table1[[#This Row],[नाम]]="","",ROWS($A$1:A30)) ->  | B33: =PROPER(IF('SD Teacher''s Data'!A31="","",'SD Teacher''s Data'!A31)) ->  | C33: =PROPER(IF('SD Teacher''s Data'!F31="","",'SD Teacher''s Data'!F31)) ->  | D33: =IF('SD Teacher''s Data'!E31="","",'SD Teacher''s Data'!E31) ->  | E33: =IF('SD Teacher''s Data'!K31="","",'SD Teacher''s Data'!K31) ->  | F33: =IF('SD Teacher''s Data'!B31="","",'SD Teacher''s Data'!B31) ->  | L33: =IF('SD Teacher''s Data'!J31="","",'SD Teacher''s Data'!J31) -> 
A34: =IF(Table1[[#This Row],[नाम]]="","",ROWS($A$1:A31)) ->  | B34: =PROPER(IF('SD Teacher''s Data'!A32="","",'SD Teacher''s Data'!A32)) ->  | C34: =PROPER(IF('SD Teacher''s Data'!F32="","",'SD Teacher''s Data'!F32)) ->  | D34: =IF('SD Teacher''s Data'!E32="","",'SD Teacher''s Data'!E32) ->  | E34: =IF('SD Teacher''s Data'!K32="","",'SD Teacher''s Data'!K32) ->  | F34: =IF('SD Teacher''s Data'!B32="","",'SD Teacher''s Data'!B32) ->  | L34: =IF('SD Teacher''s Data'!J32="","",'SD Teacher''s Data'!J32) -> 
A35: =IF(Table1[[#This Row],[नाम]]="","",ROWS($A$1:A32)) ->  | B35: =PROPER(IF('SD Teacher''s Data'!A33="","",'SD Teacher''s Data'!A33)) ->  | C35: =PROPER(IF('SD Teacher''s Data'!F33="","",'SD Teacher''s Data'!F33)) ->  | D35: =IF('SD Teacher''s Data'!E33="","",'SD Teacher''s Data'!E33) ->  | E35: =IF('SD Teacher''s Data'!K33="","",'SD Teacher''s Data'!K33) ->  | F35: =IF('SD Teacher''s Data'!B33="","",'SD Teacher''s Data'!B33) ->  | L35: =IF('SD Teacher''s Data'!J33="","",'SD Teacher''s Data'!J33) -> 
A36: =IF(Table1[[#This Row],[नाम]]="","",ROWS($A$1:A33)) ->  | B36: =PROPER(IF('SD Teacher''s Data'!A34="","",'SD Teacher''s Data'!A34)) ->  | C36: =PROPER(IF('SD Teacher''s Data'!F34="","",'SD Teacher''s Data'!F34)) ->  | D36: =IF('SD Teacher''s Data'!E34="","",'SD Teacher''s Data'!E34) ->  | E36: =IF('SD Teacher''s Data'!K34="","",'SD Teacher''s Data'!K34) ->  | F36: =IF('SD Teacher''s Data'!B34="","",'SD Teacher''s Data'!B34) ->  | L36: =IF('SD Teacher''s Data'!J34="","",'SD Teacher''s Data'!J34) -> 
A37: =IF(Table1[[#This Row],[नाम]]="","",ROWS($A$1:A34)) ->  | B37: =PROPER(IF('SD Teacher''s Data'!A35="","",'SD Teacher''s Data'!A35)) ->  | C37: =PROPER(IF('SD Teacher''s Data'!F35="","",'SD Teacher''s Data'!F35)) ->  | D37: =IF('SD Teacher''s Data'!E35="","",'SD Teacher''s Data'!E35) ->  | E37: =IF('SD Teacher''s Data'!K35="","",'SD Teacher''s Data'!K35) ->  | F37: =IF('SD Teacher''s Data'!B35="","",'SD Teacher''s Data'!B35) ->  | L37: =IF('SD Teacher''s Data'!J35="","",'SD Teacher''s Data'!J35) -> 
A38: =IF(Table1[[#This Row],[नाम]]="","",ROWS($A$1:A35)) ->  | B38: =PROPER(IF('SD Teacher''s Data'!A36="","",'SD Teacher''s Data'!A36)) ->  | C38: =PROPER(IF('SD Teacher''s Data'!F36="","",'SD Teacher''s Data'!F36)) ->  | D38: =IF('SD Teacher''s Data'!E36="","",'SD Teacher''s Data'!E36) ->  | E38: =IF('SD Teacher''s Data'!K36="","",'SD Teacher''s Data'!K36) ->  | F38: =IF('SD Teacher''s Data'!B36="","",'SD Teacher''s Data'!B36) ->  | L38: =IF('SD Teacher''s Data'!J36="","",'SD Teacher''s Data'!J36) -> 
A39: =IF(Table1[[#This Row],[नाम]]="","",ROWS($A$1:A36)) ->  | B39: =PROPER(IF('SD Teacher''s Data'!A37="","",'SD Teacher''s Data'!A37)) ->  | C39: =PROPER(IF('SD Teacher''s Data'!F37="","",'SD Teacher''s Data'!F37)) ->  | D39: =IF('SD Teacher''s Data'!E37="","",'SD Teacher''s Data'!E37) ->  | E39: =IF('SD Teacher''s Data'!K37="","",'SD Teacher''s Data'!K37) ->  | F39: =IF('SD Teacher''s Data'!B37="","",'SD Teacher''s Data'!B37) ->  | L39: =IF('SD Teacher''s Data'!J37="","",'SD Teacher''s Data'!J37) -> 
A40: =IF(Table1[[#This Row],[नाम]]="","",ROWS($A$1:A37)) ->  | B40: =PROPER(IF('SD Teacher''s Data'!A38="","",'SD Teacher''s Data'!A38)) ->  | C40: =PROPER(IF('SD Teacher''s Data'!F38="","",'SD Teacher''s Data'!F38)) ->  | D40: =IF('SD Teacher''s Data'!E38="","",'SD Teacher''s Data'!E38) ->  | E40: =IF('SD Teacher''s Data'!K38="","",'SD Teacher''s Data'!K38) ->  | F40: =IF('SD Teacher''s Data'!B38="","",'SD Teacher''s Data'!B38) ->  | L40: =IF('SD Teacher''s Data'!J38="","",'SD Teacher''s Data'!J38) -> 
A41: =IF(Table1[[#This Row],[नाम]]="","",ROWS($A$1:A38)) ->  | B41: =PROPER(IF('SD Teacher''s Data'!A39="","",'SD Teacher''s Data'!A39)) ->  | C41: =PROPER(IF('SD Teacher''s Data'!F39="","",'SD Teacher''s Data'!F39)) ->  | D41: =IF('SD Teacher''s Data'!E39="","",'SD Teacher''s Data'!E39) ->  | E41: =IF('SD Teacher''s Data'!K39="","",'SD Teacher''s Data'!K39) ->  | F41: =IF('SD Teacher''s Data'!B39="","",'SD Teacher''s Data'!B39) ->  | L41: =IF('SD Teacher''s Data'!J39="","",'SD Teacher''s Data'!J39) -> 
A42: =IF(Table1[[#This Row],[नाम]]="","",ROWS($A$1:A39)) ->  | B42: =PROPER(IF('SD Teacher''s Data'!A40="","",'SD Teacher''s Data'!A40)) ->  | C42: =PROPER(IF('SD Teacher''s Data'!F40="","",'SD Teacher''s Data'!F40)) ->  | D42: =IF('SD Teacher''s Data'!E40="","",'SD Teacher''s Data'!E40) ->  | E42: =IF('SD Teacher''s Data'!K40="","",'SD Teacher''s Data'!K40) ->  | F42: =IF('SD Teacher''s Data'!B40="","",'SD Teacher''s Data'!B40) ->  | L42: =IF('SD Teacher''s Data'!J40="","",'SD Teacher''s Data'!J40) -> 
A43: =IF(Table1[[#This Row],[नाम]]="","",ROWS($A$1:A40)) ->  | B43: =PROPER(IF('SD Teacher''s Data'!A41="","",'SD Teacher''s Data'!A41)) ->  | C43: =PROPER(IF('SD Teacher''s Data'!F41="","",'SD Teacher''s Data'!F41)) ->  | D43: =IF('SD Teacher''s Data'!E41="","",'SD Teacher''s Data'!E41) ->  | E43: =IF('SD Teacher''s Data'!K41="","",'SD Teacher''s Data'!K41) ->  | F43: =IF('SD Teacher''s Data'!B41="","",'SD Teacher''s Data'!B41) ->  | L43: =IF('SD Teacher''s Data'!J41="","",'SD Teacher''s Data'!J41) -> 
A44: =IF(Table1[[#This Row],[नाम]]="","",ROWS($A$1:A41)) ->  | B44: =PROPER(IF('SD Teacher''s Data'!A42="","",'SD Teacher''s Data'!A42)) ->  | C44: =PROPER(IF('SD Teacher''s Data'!F42="","",'SD Teacher''s Data'!F42)) ->  | D44: =IF('SD Teacher''s Data'!E42="","",'SD Teacher''s Data'!E42) ->  | E44: =IF('SD Teacher''s Data'!K42="","",'SD Teacher''s Data'!K42) ->  | F44: =IF('SD Teacher''s Data'!B42="","",'SD Teacher''s Data'!B42) ->  | L44: =IF('SD Teacher''s Data'!J42="","",'SD Teacher''s Data'!J42) -> 
A45: =IF(Table1[[#This Row],[नाम]]="","",ROWS($A$1:A42)) ->  | B45: =PROPER(IF('SD Teacher''s Data'!A43="","",'SD Teacher''s Data'!A43)) ->  | C45: =PROPER(IF('SD Teacher''s Data'!F43="","",'SD Teacher''s Data'!F43)) ->  | D45: =IF('SD Teacher''s Data'!E43="","",'SD Teacher''s Data'!E43) ->  | E45: =IF('SD Teacher''s Data'!K43="","",'SD Teacher''s Data'!K43) ->  | F45: =IF('SD Teacher''s Data'!B43="","",'SD Teacher''s Data'!B43) ->  | L45: =IF('SD Teacher''s Data'!J43="","",'SD Teacher''s Data'!J43) -> 
A46: =IF(Table1[[#This Row],[नाम]]="","",ROWS($A$1:A43)) ->  | B46: =PROPER(IF('SD Teacher''s Data'!A44="","",'SD Teacher''s Data'!A44)) ->  | C46: =PROPER(IF('SD Teacher''s Data'!F44="","",'SD Teacher''s Data'!F44)) ->  | D46: =IF('SD Teacher''s Data'!E44="","",'SD Teacher''s Data'!E44) ->  | E46: =IF('SD Teacher''s Data'!K44="","",'SD Teacher''s Data'!K44) ->  | F46: =IF('SD Teacher''s Data'!B44="","",'SD Teacher''s Data'!B44) ->  | L46: =IF('SD Teacher''s Data'!J44="","",'SD Teacher''s Data'!J44) -> 
A47: =IF(Table1[[#This Row],[नाम]]="","",ROWS($A$1:A44)) ->  | B47: =PROPER(IF('SD Teacher''s Data'!A45="","",'SD Teacher''s Data'!A45)) ->  | C47: =PROPER(IF('SD Teacher''s Data'!F45="","",'SD Teacher''s Data'!F45)) ->  | D47: =IF('SD Teacher''s Data'!E45="","",'SD Teacher''s Data'!E45) ->  | E47: =IF('SD Teacher''s Data'!K45="","",'SD Teacher''s Data'!K45) ->  | F47: =IF('SD Teacher''s Data'!B45="","",'SD Teacher''s Data'!B45) ->  | L47: =IF('SD Teacher''s Data'!J45="","",'SD Teacher''s Data'!J45) -> 
A48: =IF(Table1[[#This Row],[नाम]]="","",ROWS($A$1:A45)) ->  | B48: =PROPER(IF('SD Teacher''s Data'!A46="","",'SD Teacher''s Data'!A46)) ->  | C48: =PROPER(IF('SD Teacher''s Data'!F46="","",'SD Teacher''s Data'!F46)) ->  | D48: =IF('SD Teacher''s Data'!E46="","",'SD Teacher''s Data'!E46) ->  | E48: =IF('SD Teacher''s Data'!K46="","",'SD Teacher''s Data'!K46) ->  | F48: =IF('SD Teacher''s Data'!B46="","",'SD Teacher''s Data'!B46) ->  | L48: =IF('SD Teacher''s Data'!J46="","",'SD Teacher''s Data'!J46) -> 
A49: =IF(Table1[[#This Row],[नाम]]="","",ROWS($A$1:A46)) ->  | B49: =PROPER(IF('SD Teacher''s Data'!A47="","",'SD Teacher''s Data'!A47)) ->  | C49: =PROPER(IF('SD Teacher''s Data'!F47="","",'SD Teacher''s Data'!F47)) ->  | D49: =IF('SD Teacher''s Data'!E47="","",'SD Teacher''s Data'!E47) ->  | E49: =IF('SD Teacher''s Data'!K47="","",'SD Teacher''s Data'!K47) ->  | F49: =IF('SD Teacher''s Data'!B47="","",'SD Teacher''s Data'!B47) ->  | L49: =IF('SD Teacher''s Data'!J47="","",'SD Teacher''s Data'!J47) -> 
A50: =IF(Table1[[#This Row],[नाम]]="","",ROWS($A$1:A47)) ->  | B50: =PROPER(IF('SD Teacher''s Data'!A48="","",'SD Teacher''s Data'!A48)) ->  | C50: =PROPER(IF('SD Teacher''s Data'!F48="","",'SD Teacher''s Data'!F48)) ->  | D50: =IF('SD Teacher''s Data'!E48="","",'SD Teacher''s Data'!E48) ->  | E50: =IF('SD Teacher''s Data'!K48="","",'SD Teacher''s Data'!K48) ->  | F50: =IF('SD Teacher''s Data'!B48="","",'SD Teacher''s Data'!B48) ->  | L50: =IF('SD Teacher''s Data'!J48="","",'SD Teacher''s Data'!J48) -> 
A51: =IF(Table1[[#This Row],[नाम]]="","",ROWS($A$1:A48)) ->  | B51: =PROPER(IF('SD Teacher''s Data'!A49="","",'SD Teacher''s Data'!A49)) ->  | C51: =PROPER(IF('SD Teacher''s Data'!F49="","",'SD Teacher''s Data'!F49)) ->  | D51: =IF('SD Teacher''s Data'!E49="","",'SD Teacher''s Data'!E49) ->  | E51: =IF('SD Teacher''s Data'!K49="","",'SD Teacher''s Data'!K49) ->  | F51: =IF('SD Teacher''s Data'!B49="","",'SD Teacher''s Data'!B49) ->  | L51: =IF('SD Teacher''s Data'!J49="","",'SD Teacher''s Data'!J49) -> 
A52: =IF(Table1[[#This Row],[नाम]]="","",ROWS($A$1:A49)) ->  | B52: =PROPER(IF('SD Teacher''s Data'!A50="","",'SD Teacher''s Data'!A50)) ->  | C52: =PROPER(IF('SD Teacher''s Data'!F50="","",'SD Teacher''s Data'!F50)) ->  | D52: =IF('SD Teacher''s Data'!E50="","",'SD Teacher''s Data'!E50) ->  | E52: =IF('SD Teacher''s Data'!K50="","",'SD Teacher''s Data'!K50) ->  | F52: =IF('SD Teacher''s Data'!B50="","",'SD Teacher''s Data'!B50) ->  | L52: =IF('SD Teacher''s Data'!J50="","",'SD Teacher''s Data'!J50) -> 
A53: =IF(Table1[[#This Row],[नाम]]="","",ROWS($A$1:A50)) ->  | B53: =PROPER(IF('SD Teacher''s Data'!A51="","",'SD Teacher''s Data'!A51)) ->  | C53: =PROPER(IF('SD Teacher''s Data'!F51="","",'SD Teacher''s Data'!F51)) ->  | D53: =IF('SD Teacher''s Data'!E51="","",'SD Teacher''s Data'!E51) ->  | E53: =IF('SD Teacher''s Data'!K51="","",'SD Teacher''s Data'!K51) ->  | F53: =IF('SD Teacher''s Data'!B51="","",'SD Teacher''s Data'!B51) ->  | L53: =IF('SD Teacher''s Data'!J51="","",'SD Teacher''s Data'!J51) -> 
A54: =IF(Table1[[#This Row],[नाम]]="","",ROWS($A$1:A51)) ->  | B54: =PROPER(IF('SD Teacher''s Data'!A52="","",'SD Teacher''s Data'!A52)) ->  | C54: =PROPER(IF('SD Teacher''s Data'!F52="","",'SD Teacher''s Data'!F52)) ->  | D54: =IF('SD Teacher''s Data'!E52="","",'SD Teacher''s Data'!E52) ->  | E54: =IF('SD Teacher''s Data'!K52="","",'SD Teacher''s Data'!K52) ->  | F54: =IF('SD Teacher''s Data'!B52="","",'SD Teacher''s Data'!B52) ->  | L54: =IF('SD Teacher''s Data'!J52="","",'SD Teacher''s Data'!J52) -> 
A55: =IF(Table1[[#This Row],[नाम]]="","",ROWS($A$1:A52)) ->  | B55: =PROPER(IF('SD Teacher''s Data'!A53="","",'SD Teacher''s Data'!A53)) ->  | C55: =PROPER(IF('SD Teacher''s Data'!F53="","",'SD Teacher''s Data'!F53)) ->  | D55: =IF('SD Teacher''s Data'!E53="","",'SD Teacher''s Data'!E53) ->  | E55: =IF('SD Teacher''s Data'!K53="","",'SD Teacher''s Data'!K53) ->  | F55: =IF('SD Teacher''s Data'!B53="","",'SD Teacher''s Data'!B53) ->  | L55: =IF('SD Teacher''s Data'!J53="","",'SD Teacher''s Data'!J53) -> 
A56: =IF(Table1[[#This Row],[नाम]]="","",ROWS($A$1:A53)) ->  | B56: =PROPER(IF('SD Teacher''s Data'!A54="","",'SD Teacher''s Data'!A54)) ->  | C56: =PROPER(IF('SD Teacher''s Data'!F54="","",'SD Teacher''s Data'!F54)) ->  | D56: =IF('SD Teacher''s Data'!E54="","",'SD Teacher''s Data'!E54) ->  | E56: =IF('SD Teacher''s Data'!K54="","",'SD Teacher''s Data'!K54) ->  | F56: =IF('SD Teacher''s Data'!B54="","",'SD Teacher''s Data'!B54) ->  | L56: =IF('SD Teacher''s Data'!J54="","",'SD Teacher''s Data'!J54) -> 
A57: =IF(Table1[[#This Row],[नाम]]="","",ROWS($A$1:A54)) ->  | B57: =PROPER(IF('SD Teacher''s Data'!A55="","",'SD Teacher''s Data'!A55)) ->  | C57: =PROPER(IF('SD Teacher''s Data'!F55="","",'SD Teacher''s Data'!F55)) ->  | D57: =IF('SD Teacher''s Data'!E55="","",'SD Teacher''s Data'!E55) ->  | E57: =IF('SD Teacher''s Data'!K55="","",'SD Teacher''s Data'!K55) ->  | F57: =IF('SD Teacher''s Data'!B55="","",'SD Teacher''s Data'!B55) ->  | L57: =IF('SD Teacher''s Data'!J55="","",'SD Teacher''s Data'!J55) -> 
A58: =IF(Table1[[#This Row],[नाम]]="","",ROWS($A$1:A55)) ->  | B58: =PROPER(IF('SD Teacher''s Data'!A56="","",'SD Teacher''s Data'!A56)) ->  | C58: =PROPER(IF('SD Teacher''s Data'!F56="","",'SD Teacher''s Data'!F56)) ->  | D58: =IF('SD Teacher''s Data'!E56="","",'SD Teacher''s Data'!E56) ->  | E58: =IF('SD Teacher''s Data'!K56="","",'SD Teacher''s Data'!K56) ->  | F58: =IF('SD Teacher''s Data'!B56="","",'SD Teacher''s Data'!B56) ->  | L58: =IF('SD Teacher''s Data'!J56="","",'SD Teacher''s Data'!J56) -> 
A59: =IF(Table1[[#This Row],[नाम]]="","",ROWS($A$1:A56)) ->  | B59: =PROPER(IF('SD Teacher''s Data'!A57="","",'SD Teacher''s Data'!A57)) ->  | C59: =PROPER(IF('SD Teacher''s Data'!F57="","",'SD Teacher''s Data'!F57)) ->  | D59: =IF('SD Teacher''s Data'!E57="","",'SD Teacher''s Data'!E57) ->  | E59: =IF('SD Teacher''s Data'!K57="","",'SD Teacher''s Data'!K57) ->  | F59: =IF('SD Teacher''s Data'!B57="","",'SD Teacher''s Data'!B57) ->  | L59: =IF('SD Teacher''s Data'!J57="","",'SD Teacher''s Data'!J57) -> 
A60: =IF(Table1[[#This Row],[नाम]]="","",ROWS($A$1:A57)) ->  | B60: =PROPER(IF('SD Teacher''s Data'!A58="","",'SD Teacher''s Data'!A58)) ->  | C60: =PROPER(IF('SD Teacher''s Data'!F58="","",'SD Teacher''s Data'!F58)) ->  | D60: =IF('SD Teacher''s Data'!E58="","",'SD Teacher''s Data'!E58) ->  | E60: =IF('SD Teacher''s Data'!K58="","",'SD Teacher''s Data'!K58) ->  | F60: =IF('SD Teacher''s Data'!B58="","",'SD Teacher''s Data'!B58) ->  | L60: =IF('SD Teacher''s Data'!J58="","",'SD Teacher''s Data'!J58) -> 
A61: =IF(Table1[[#This Row],[नाम]]="","",ROWS($A$1:A58)) ->  | B61: =PROPER(IF('SD Teacher''s Data'!A59="","",'SD Teacher''s Data'!A59)) ->  | C61: =PROPER(IF('SD Teacher''s Data'!F59="","",'SD Teacher''s Data'!F59)) ->  | D61: =IF('SD Teacher''s Data'!E59="","",'SD Teacher''s Data'!E59) ->  | E61: =IF('SD Teacher''s Data'!K59="","",'SD Teacher''s Data'!K59) ->  | F61: =IF('SD Teacher''s Data'!B59="","",'SD Teacher''s Data'!B59) ->  | L61: =IF('SD Teacher''s Data'!J59="","",'SD Teacher''s Data'!J59) -> 
A62: =IF(Table1[[#This Row],[नाम]]="","",ROWS($A$1:A59)) ->  | B62: =PROPER(IF('SD Teacher''s Data'!A60="","",'SD Teacher''s Data'!A60)) ->  | C62: =PROPER(IF('SD Teacher''s Data'!F60="","",'SD Teacher''s Data'!F60)) ->  | D62: =IF('SD Teacher''s Data'!E60="","",'SD Teacher''s Data'!E60) ->  | E62: =IF('SD Teacher''s Data'!K60="","",'SD Teacher''s Data'!K60) ->  | F62: =IF('SD Teacher''s Data'!B60="","",'SD Teacher''s Data'!B60) ->  | L62: =IF('SD Teacher''s Data'!J60="","",'SD Teacher''s Data'!J60) -> 
A63: =IF(Table1[[#This Row],[नाम]]="","",ROWS($A$1:A60)) ->  | B63: =PROPER(IF('SD Teacher''s Data'!A61="","",'SD Teacher''s Data'!A61)) ->  | C63: =PROPER(IF('SD Teacher''s Data'!F61="","",'SD Teacher''s Data'!F61)) ->  | D63: =IF('SD Teacher''s Data'!E61="","",'SD Teacher''s Data'!E61) ->  | E63: =IF('SD Teacher''s Data'!K61="","",'SD Teacher''s Data'!K61) ->  | F63: =IF('SD Teacher''s Data'!B61="","",'SD Teacher''s Data'!B61) ->  | L63: =IF('SD Teacher''s Data'!J61="","",'SD Teacher''s Data'!J61) -> 
A64: =IF(Table1[[#This Row],[नाम]]="","",ROWS($A$1:A61)) ->  | B64: =PROPER(IF('SD Teacher''s Data'!A62="","",'SD Teacher''s Data'!A62)) ->  | C64: =PROPER(IF('SD Teacher''s Data'!F62="","",'SD Teacher''s Data'!F62)) ->  | D64: =IF('SD Teacher''s Data'!E62="","",'SD Teacher''s Data'!E62) ->  | E64: =IF('SD Teacher''s Data'!K62="","",'SD Teacher''s Data'!K62) ->  | F64: =IF('SD Teacher''s Data'!B62="","",'SD Teacher''s Data'!B62) ->  | L64: =IF('SD Teacher''s Data'!J62="","",'SD Teacher''s Data'!J62) -> 
A65: =IF(Table1[[#This Row],[नाम]]="","",ROWS($A$1:A62)) ->  | B65: =PROPER(IF('SD Teacher''s Data'!A63="","",'SD Teacher''s Data'!A63)) ->  | C65: =PROPER(IF('SD Teacher''s Data'!F63="","",'SD Teacher''s Data'!F63)) ->  | D65: =IF('SD Teacher''s Data'!E63="","",'SD Teacher''s Data'!E63) ->  | E65: =IF('SD Teacher''s Data'!K63="","",'SD Teacher''s Data'!K63) ->  | F65: =IF('SD Teacher''s Data'!B63="","",'SD Teacher''s Data'!B63) ->  | L65: =IF('SD Teacher''s Data'!J63="","",'SD Teacher''s Data'!J63) -> 
A66: =IF(Table1[[#This Row],[नाम]]="","",ROWS($A$1:A63)) ->  | B66: =PROPER(IF('SD Teacher''s Data'!A64="","",'SD Teacher''s Data'!A64)) ->  | C66: =PROPER(IF('SD Teacher''s Data'!F64="","",'SD Teacher''s Data'!F64)) ->  | D66: =IF('SD Teacher''s Data'!E64="","",'SD Teacher''s Data'!E64) ->  | E66: =IF('SD Teacher''s Data'!K64="","",'SD Teacher''s Data'!K64) ->  | F66: =IF('SD Teacher''s Data'!B64="","",'SD Teacher''s Data'!B64) ->  | L66: =IF('SD Teacher''s Data'!J64="","",'SD Teacher''s Data'!J64) -> 
A67: =IF(Table1[[#This Row],[नाम]]="","",ROWS($A$1:A64)) ->  | B67: =PROPER(IF('SD Teacher''s Data'!A65="","",'SD Teacher''s Data'!A65)) ->  | C67: =PROPER(IF('SD Teacher''s Data'!F65="","",'SD Teacher''s Data'!F65)) ->  | D67: =IF('SD Teacher''s Data'!E65="","",'SD Teacher''s Data'!E65) ->  | E67: =IF('SD Teacher''s Data'!K65="","",'SD Teacher''s Data'!K65) ->  | F67: =IF('SD Teacher''s Data'!B65="","",'SD Teacher''s Data'!B65) ->  | L67: =IF('SD Teacher''s Data'!J65="","",'SD Teacher''s Data'!J65) -> 
A68: =IF(Table1[[#This Row],[नाम]]="","",ROWS($A$1:A65)) ->  | B68: =PROPER(IF('SD Teacher''s Data'!A66="","",'SD Teacher''s Data'!A66)) ->  | C68: =PROPER(IF('SD Teacher''s Data'!F66="","",'SD Teacher''s Data'!F66)) ->  | D68: =IF('SD Teacher''s Data'!E66="","",'SD Teacher''s Data'!E66) ->  | E68: =IF('SD Teacher''s Data'!K66="","",'SD Teacher''s Data'!K66) ->  | F68: =IF('SD Teacher''s Data'!B66="","",'SD Teacher''s Data'!B66) ->  | L68: =IF('SD Teacher''s Data'!J66="","",'SD Teacher''s Data'!J66) -> 
A69: =IF(Table1[[#This Row],[नाम]]="","",ROWS($A$1:A66)) ->  | B69: =PROPER(IF('SD Teacher''s Data'!A67="","",'SD Teacher''s Data'!A67)) ->  | C69: =PROPER(IF('SD Teacher''s Data'!F67="","",'SD Teacher''s Data'!F67)) ->  | D69: =IF('SD Teacher''s Data'!E67="","",'SD Teacher''s Data'!E67) ->  | E69: =IF('SD Teacher''s Data'!K67="","",'SD Teacher''s Data'!K67) ->  | F69: =IF('SD Teacher''s Data'!B67="","",'SD Teacher''s Data'!B67) ->  | L69: =IF('SD Teacher''s Data'!J67="","",'SD Teacher''s Data'!J67) -> 
A70: =IF(Table1[[#This Row],[नाम]]="","",ROWS($A$1:A67)) ->  | B70: =PROPER(IF('SD Teacher''s Data'!A68="","",'SD Teacher''s Data'!A68)) ->  | C70: =PROPER(IF('SD Teacher''s Data'!F68="","",'SD Teacher''s Data'!F68)) ->  | D70: =IF('SD Teacher''s Data'!E68="","",'SD Teacher''s Data'!E68) ->  | E70: =IF('SD Teacher''s Data'!K68="","",'SD Teacher''s Data'!K68) ->  | F70: =IF('SD Teacher''s Data'!B68="","",'SD Teacher''s Data'!B68) ->  | L70: =IF('SD Teacher''s Data'!J68="","",'SD Teacher''s Data'!J68) -> 
A71: =IF(Table1[[#This Row],[नाम]]="","",ROWS($A$1:A68)) ->  | B71: =PROPER(IF('SD Teacher''s Data'!A69="","",'SD Teacher''s Data'!A69)) ->  | C71: =PROPER(IF('SD Teacher''s Data'!F69="","",'SD Teacher''s Data'!F69)) ->  | D71: =IF('SD Teacher''s Data'!E69="","",'SD Teacher''s Data'!E69) ->  | E71: =IF('SD Teacher''s Data'!K69="","",'SD Teacher''s Data'!K69) ->  | F71: =IF('SD Teacher''s Data'!B69="","",'SD Teacher''s Data'!B69) ->  | L71: =IF('SD Teacher''s Data'!J69="","",'SD Teacher''s Data'!J69) -> 
A72: =IF(Table1[[#This Row],[नाम]]="","",ROWS($A$1:A69)) ->  | B72: =PROPER(IF('SD Teacher''s Data'!A70="","",'SD Teacher''s Data'!A70)) ->  | C72: =PROPER(IF('SD Teacher''s Data'!F70="","",'SD Teacher''s Data'!F70)) ->  | D72: =IF('SD Teacher''s Data'!E70="","",'SD Teacher''s Data'!E70) ->  | E72: =IF('SD Teacher''s Data'!K70="","",'SD Teacher''s Data'!K70) ->  | F72: =IF('SD Teacher''s Data'!B70="","",'SD Teacher''s Data'!B70) ->  | L72: =IF('SD Teacher''s Data'!J70="","",'SD Teacher''s Data'!J70) -> 
A73: =IF(Table1[[#This Row],[नाम]]="","",ROWS($A$1:A70)) ->  | B73: =PROPER(IF('SD Teacher''s Data'!A71="","",'SD Teacher''s Data'!A71)) ->  | C73: =PROPER(IF('SD Teacher''s Data'!F71="","",'SD Teacher''s Data'!F71)) ->  | D73: =IF('SD Teacher''s Data'!E71="","",'SD Teacher''s Data'!E71) ->  | E73: =IF('SD Teacher''s Data'!K71="","",'SD Teacher''s Data'!K71) ->  | F73: =IF('SD Teacher''s Data'!B71="","",'SD Teacher''s Data'!B71) ->  | L73: =IF('SD Teacher''s Data'!J71="","",'SD Teacher''s Data'!J71) -> 
A74: =IF(Table1[[#This Row],[नाम]]="","",ROWS($A$1:A71)) ->  | B74: =PROPER(IF('SD Teacher''s Data'!A72="","",'SD Teacher''s Data'!A72)) ->  | C74: =PROPER(IF('SD Teacher''s Data'!F72="","",'SD Teacher''s Data'!F72)) ->  | D74: =IF('SD Teacher''s Data'!E72="","",'SD Teacher''s Data'!E72) ->  | E74: =IF('SD Teacher''s Data'!K72="","",'SD Teacher''s Data'!K72) ->  | F74: =IF('SD Teacher''s Data'!B72="","",'SD Teacher''s Data'!B72) ->  | L74: =IF('SD Teacher''s Data'!J72="","",'SD Teacher''s Data'!J72) -> 
A75: =IF(Table1[[#This Row],[नाम]]="","",ROWS($A$1:A72)) ->  | B75: =PROPER(IF('SD Teacher''s Data'!A73="","",'SD Teacher''s Data'!A73)) ->  | C75: =PROPER(IF('SD Teacher''s Data'!F73="","",'SD Teacher''s Data'!F73)) ->  | D75: =IF('SD Teacher''s Data'!E73="","",'SD Teacher''s Data'!E73) ->  | E75: =IF('SD Teacher''s Data'!K73="","",'SD Teacher''s Data'!K73) ->  | F75: =IF('SD Teacher''s Data'!B73="","",'SD Teacher''s Data'!B73) ->  | L75: =IF('SD Teacher''s Data'!J73="","",'SD Teacher''s Data'!J73) -> 
A76: =IF(Table1[[#This Row],[नाम]]="","",ROWS($A$1:A73)) ->  | B76: =PROPER(IF('SD Teacher''s Data'!A74="","",'SD Teacher''s Data'!A74)) ->  | C76: =PROPER(IF('SD Teacher''s Data'!F74="","",'SD Teacher''s Data'!F74)) ->  | D76: =IF('SD Teacher''s Data'!E74="","",'SD Teacher''s Data'!E74) ->  | E76: =IF('SD Teacher''s Data'!K74="","",'SD Teacher''s Data'!K74) ->  | F76: =IF('SD Teacher''s Data'!B74="","",'SD Teacher''s Data'!B74) ->  | L76: =IF('SD Teacher''s Data'!J74="","",'SD Teacher''s Data'!J74) -> 
A77: =IF(Table1[[#This Row],[नाम]]="","",ROWS($A$1:A74)) ->  | B77: =PROPER(IF('SD Teacher''s Data'!A75="","",'SD Teacher''s Data'!A75)) ->  | C77: =PROPER(IF('SD Teacher''s Data'!F75="","",'SD Teacher''s Data'!F75)) ->  | D77: =IF('SD Teacher''s Data'!E75="","",'SD Teacher''s Data'!E75) ->  | E77: =IF('SD Teacher''s Data'!K75="","",'SD Teacher''s Data'!K75) ->  | F77: =IF('SD Teacher''s Data'!B75="","",'SD Teacher''s Data'!B75) ->  | L77: =IF('SD Teacher''s Data'!J75="","",'SD Teacher''s Data'!J75) -> 
A78: =IF(Table1[[#This Row],[नाम]]="","",ROWS($A$1:A75)) ->  | B78: =PROPER(IF('SD Teacher''s Data'!A76="","",'SD Teacher''s Data'!A76)) ->  | C78: =PROPER(IF('SD Teacher''s Data'!F76="","",'SD Teacher''s Data'!F76)) ->  | D78: =IF('SD Teacher''s Data'!E76="","",'SD Teacher''s Data'!E76) ->  | E78: =IF('SD Teacher''s Data'!K76="","",'SD Teacher''s Data'!K76) ->  | F78: =IF('SD Teacher''s Data'!B76="","",'SD Teacher''s Data'!B76) ->  | L78: =IF('SD Teacher''s Data'!J76="","",'SD Teacher''s Data'!J76) -> 
A79: =IF(Table1[[#This Row],[नाम]]="","",ROWS($A$1:A76)) ->  | B79: =PROPER(IF('SD Teacher''s Data'!A77="","",'SD Teacher''s Data'!A77)) ->  | C79: =PROPER(IF('SD Teacher''s Data'!F77="","",'SD Teacher''s Data'!F77)) ->  | D79: =IF('SD Teacher''s Data'!E77="","",'SD Teacher''s Data'!E77) ->  | E79: =IF('SD Teacher''s Data'!K77="","",'SD Teacher''s Data'!K77) ->  | F79: =IF('SD Teacher''s Data'!B77="","",'SD Teacher''s Data'!B77) ->  | L79: =IF('SD Teacher''s Data'!J77="","",'SD Teacher''s Data'!J77) -> 
A80: =IF(Table1[[#This Row],[नाम]]="","",ROWS($A$1:A77)) ->  | B80: =PROPER(IF('SD Teacher''s Data'!A78="","",'SD Teacher''s Data'!A78)) ->  | C80: =PROPER(IF('SD Teacher''s Data'!F78="","",'SD Teacher''s Data'!F78)) ->  | D80: =IF('SD Teacher''s Data'!E78="","",'SD Teacher''s Data'!E78) ->  | E80: =IF('SD Teacher''s Data'!K78="","",'SD Teacher''s Data'!K78) ->  | F80: =IF('SD Teacher''s Data'!B78="","",'SD Teacher''s Data'!B78) ->  | L80: =IF('SD Teacher''s Data'!J78="","",'SD Teacher''s Data'!J78) -> 
A81: =IF(Table1[[#This Row],[नाम]]="","",ROWS($A$1:A78)) ->  | B81: =PROPER(IF('SD Teacher''s Data'!A79="","",'SD Teacher''s Data'!A79)) ->  | C81: =PROPER(IF('SD Teacher''s Data'!F79="","",'SD Teacher''s Data'!F79)) ->  | D81: =IF('SD Teacher''s Data'!E79="","",'SD Teacher''s Data'!E79) ->  | E81: =IF('SD Teacher''s Data'!K79="","",'SD Teacher''s Data'!K79) ->  | F81: =IF('SD Teacher''s Data'!B79="","",'SD Teacher''s Data'!B79) ->  | L81: =IF('SD Teacher''s Data'!J79="","",'SD Teacher''s Data'!J79) -> 
A82: =IF(Table1[[#This Row],[नाम]]="","",ROWS($A$1:A79)) ->  | B82: =PROPER(IF('SD Teacher''s Data'!A80="","",'SD Teacher''s Data'!A80)) ->  | C82: =PROPER(IF('SD Teacher''s Data'!F80="","",'SD Teacher''s Data'!F80)) ->  | D82: =IF('SD Teacher''s Data'!E80="","",'SD Teacher''s Data'!E80) ->  | E82: =IF('SD Teacher''s Data'!K80="","",'SD Teacher''s Data'!K80) ->  | F82: =IF('SD Teacher''s Data'!B80="","",'SD Teacher''s Data'!B80) ->  | L82: =IF('SD Teacher''s Data'!J80="","",'SD Teacher''s Data'!J80) -> 
A83: =IF(Table1[[#This Row],[नाम]]="","",ROWS($A$1:A80)) ->  | B83: =PROPER(IF('SD Teacher''s Data'!A81="","",'SD Teacher''s Data'!A81)) ->  | C83: =PROPER(IF('SD Teacher''s Data'!F81="","",'SD Teacher''s Data'!F81)) ->  | D83: =IF('SD Teacher''s Data'!E81="","",'SD Teacher''s Data'!E81) ->  | E83: =IF('SD Teacher''s Data'!K81="","",'SD Teacher''s Data'!K81) ->  | F83: =IF('SD Teacher''s Data'!B81="","",'SD Teacher''s Data'!B81) ->  | L83: =IF('SD Teacher''s Data'!J81="","",'SD Teacher''s Data'!J81) -> 
A84: =IF(Table1[[#This Row],[नाम]]="","",ROWS($A$1:A81)) ->  | B84: =PROPER(IF('SD Teacher''s Data'!A82="","",'SD Teacher''s Data'!A82)) ->  | C84: =PROPER(IF('SD Teacher''s Data'!F82="","",'SD Teacher''s Data'!F82)) ->  | D84: =IF('SD Teacher''s Data'!E82="","",'SD Teacher''s Data'!E82) ->  | E84: =IF('SD Teacher''s Data'!K82="","",'SD Teacher''s Data'!K82) ->  | F84: =IF('SD Teacher''s Data'!B82="","",'SD Teacher''s Data'!B82) ->  | L84: =IF('SD Teacher''s Data'!J82="","",'SD Teacher''s Data'!J82) -> 
A85: =IF(Table1[[#This Row],[नाम]]="","",ROWS($A$1:A82)) ->  | B85: =PROPER(IF('SD Teacher''s Data'!A83="","",'SD Teacher''s Data'!A83)) ->  | C85: =PROPER(IF('SD Teacher''s Data'!F83="","",'SD Teacher''s Data'!F83)) ->  | D85: =IF('SD Teacher''s Data'!E83="","",'SD Teacher''s Data'!E83) ->  | E85: =IF('SD Teacher''s Data'!K83="","",'SD Teacher''s Data'!K83) ->  | F85: =IF('SD Teacher''s Data'!B83="","",'SD Teacher''s Data'!B83) ->  | L85: =IF('SD Teacher''s Data'!J83="","",'SD Teacher''s Data'!J83) -> 
A86: =IF(Table1[[#This Row],[नाम]]="","",ROWS($A$1:A83)) ->  | B86: =PROPER(IF('SD Teacher''s Data'!A84="","",'SD Teacher''s Data'!A84)) ->  | C86: =PROPER(IF('SD Teacher''s Data'!F84="","",'SD Teacher''s Data'!F84)) ->  | D86: =IF('SD Teacher''s Data'!E84="","",'SD Teacher''s Data'!E84) ->  | E86: =IF('SD Teacher''s Data'!K84="","",'SD Teacher''s Data'!K84) ->  | F86: =IF('SD Teacher''s Data'!B84="","",'SD Teacher''s Data'!B84) ->  | L86: =IF('SD Teacher''s Data'!J84="","",'SD Teacher''s Data'!J84) -> 
A87: =IF(Table1[[#This Row],[नाम]]="","",ROWS($A$1:A84)) ->  | B87: =PROPER(IF('SD Teacher''s Data'!A85="","",'SD Teacher''s Data'!A85)) ->  | C87: =PROPER(IF('SD Teacher''s Data'!F85="","",'SD Teacher''s Data'!F85)) ->  | D87: =IF('SD Teacher''s Data'!E85="","",'SD Teacher''s Data'!E85) ->  | E87: =IF('SD Teacher''s Data'!K85="","",'SD Teacher''s Data'!K85) ->  | F87: =IF('SD Teacher''s Data'!B85="","",'SD Teacher''s Data'!B85) ->  | L87: =IF('SD Teacher''s Data'!J85="","",'SD Teacher''s Data'!J85) -> 
A88: =IF(Table1[[#This Row],[नाम]]="","",ROWS($A$1:A85)) ->  | B88: =PROPER(IF('SD Teacher''s Data'!A86="","",'SD Teacher''s Data'!A86)) ->  | C88: =PROPER(IF('SD Teacher''s Data'!F86="","",'SD Teacher''s Data'!F86)) ->  | D88: =IF('SD Teacher''s Data'!E86="","",'SD Teacher''s Data'!E86) ->  | E88: =IF('SD Teacher''s Data'!K86="","",'SD Teacher''s Data'!K86) ->  | F88: =IF('SD Teacher''s Data'!B86="","",'SD Teacher''s Data'!B86) ->  | L88: =IF('SD Teacher''s Data'!J86="","",'SD Teacher''s Data'!J86) -> 
A89: =IF(Table1[[#This Row],[नाम]]="","",ROWS($A$1:A86)) ->  | B89: =PROPER(IF('SD Teacher''s Data'!A87="","",'SD Teacher''s Data'!A87)) ->  | C89: =PROPER(IF('SD Teacher''s Data'!F87="","",'SD Teacher''s Data'!F87)) ->  | D89: =IF('SD Teacher''s Data'!E87="","",'SD Teacher''s Data'!E87) ->  | E89: =IF('SD Teacher''s Data'!K87="","",'SD Teacher''s Data'!K87) ->  | F89: =IF('SD Teacher''s Data'!B87="","",'SD Teacher''s Data'!B87) ->  | L89: =IF('SD Teacher''s Data'!J87="","",'SD Teacher''s Data'!J87) -> 
A90: =IF(Table1[[#This Row],[नाम]]="","",ROWS($A$1:A87)) ->  | B90: =PROPER(IF('SD Teacher''s Data'!A88="","",'SD Teacher''s Data'!A88)) ->  | C90: =PROPER(IF('SD Teacher''s Data'!F88="","",'SD Teacher''s Data'!F88)) ->  | D90: =IF('SD Teacher''s Data'!E88="","",'SD Teacher''s Data'!E88) ->  | E90: =IF('SD Teacher''s Data'!K88="","",'SD Teacher''s Data'!K88) ->  | F90: =IF('SD Teacher''s Data'!B88="","",'SD Teacher''s Data'!B88) ->  | L90: =IF('SD Teacher''s Data'!J88="","",'SD Teacher''s Data'!J88) -> 
A91: =IF(Table1[[#This Row],[नाम]]="","",ROWS($A$1:A88)) ->  | B91: =PROPER(IF('SD Teacher''s Data'!A89="","",'SD Teacher''s Data'!A89)) ->  | C91: =PROPER(IF('SD Teacher''s Data'!F89="","",'SD Teacher''s Data'!F89)) ->  | D91: =IF('SD Teacher''s Data'!E89="","",'SD Teacher''s Data'!E89) ->  | E91: =IF('SD Teacher''s Data'!K89="","",'SD Teacher''s Data'!K89) ->  | F91: =IF('SD Teacher''s Data'!B89="","",'SD Teacher''s Data'!B89) ->  | L91: =IF('SD Teacher''s Data'!J89="","",'SD Teacher''s Data'!J89) -> 
A92: =IF(Table1[[#This Row],[नाम]]="","",ROWS($A$1:A89)) ->  | B92: =PROPER(IF('SD Teacher''s Data'!A90="","",'SD Teacher''s Data'!A90)) ->  | C92: =PROPER(IF('SD Teacher''s Data'!F90="","",'SD Teacher''s Data'!F90)) ->  | D92: =IF('SD Teacher''s Data'!E90="","",'SD Teacher''s Data'!E90) ->  | E92: =IF('SD Teacher''s Data'!K90="","",'SD Teacher''s Data'!K90) ->  | F92: =IF('SD Teacher''s Data'!B90="","",'SD Teacher''s Data'!B90) ->  | L92: =IF('SD Teacher''s Data'!J90="","",'SD Teacher''s Data'!J90) -> 
A93: =IF(Table1[[#This Row],[नाम]]="","",ROWS($A$1:A90)) ->  | B93: =PROPER(IF('SD Teacher''s Data'!A91="","",'SD Teacher''s Data'!A91)) ->  | C93: =PROPER(IF('SD Teacher''s Data'!F91="","",'SD Teacher''s Data'!F91)) ->  | D93: =IF('SD Teacher''s Data'!E91="","",'SD Teacher''s Data'!E91) ->  | E93: =IF('SD Teacher''s Data'!K91="","",'SD Teacher''s Data'!K91) ->  | F93: =IF('SD Teacher''s Data'!B91="","",'SD Teacher''s Data'!B91) ->  | L93: =IF('SD Teacher''s Data'!J91="","",'SD Teacher''s Data'!J91) -> 
A94: =IF(Table1[[#This Row],[नाम]]="","",ROWS($A$1:A91)) ->  | B94: =PROPER(IF('SD Teacher''s Data'!A92="","",'SD Teacher''s Data'!A92)) ->  | C94: =PROPER(IF('SD Teacher''s Data'!F92="","",'SD Teacher''s Data'!F92)) ->  | D94: =IF('SD Teacher''s Data'!E92="","",'SD Teacher''s Data'!E92) ->  | E94: =IF('SD Teacher''s Data'!K92="","",'SD Teacher''s Data'!K92) ->  | F94: =IF('SD Teacher''s Data'!B92="","",'SD Teacher''s Data'!B92) ->  | L94: =IF('SD Teacher''s Data'!J92="","",'SD Teacher''s Data'!J92) -> 
A95: =IF(Table1[[#This Row],[नाम]]="","",ROWS($A$1:A92)) ->  | B95: =PROPER(IF('SD Teacher''s Data'!A93="","",'SD Teacher''s Data'!A93)) ->  | C95: =PROPER(IF('SD Teacher''s Data'!F93="","",'SD Teacher''s Data'!F93)) ->  | D95: =IF('SD Teacher''s Data'!E93="","",'SD Teacher''s Data'!E93) ->  | E95: =IF('SD Teacher''s Data'!K93="","",'SD Teacher''s Data'!K93) ->  | F95: =IF('SD Teacher''s Data'!B93="","",'SD Teacher''s Data'!B93) ->  | L95: =IF('SD Teacher''s Data'!J93="","",'SD Teacher''s Data'!J93) -> 
A96: =IF(Table1[[#This Row],[नाम]]="","",ROWS($A$1:A93)) ->  | B96: =PROPER(IF('SD Teacher''s Data'!A94="","",'SD Teacher''s Data'!A94)) ->  | C96: =PROPER(IF('SD Teacher''s Data'!F94="","",'SD Teacher''s Data'!F94)) ->  | D96: =IF('SD Teacher''s Data'!E94="","",'SD Teacher''s Data'!E94) ->  | E96: =IF('SD Teacher''s Data'!K94="","",'SD Teacher''s Data'!K94) ->  | F96: =IF('SD Teacher''s Data'!B94="","",'SD Teacher''s Data'!B94) ->  | L96: =IF('SD Teacher''s Data'!J94="","",'SD Teacher''s Data'!J94) -> 
A97: =IF(Table1[[#This Row],[नाम]]="","",ROWS($A$1:A94)) ->  | B97: =PROPER(IF('SD Teacher''s Data'!A95="","",'SD Teacher''s Data'!A95)) ->  | C97: =PROPER(IF('SD Teacher''s Data'!F95="","",'SD Teacher''s Data'!F95)) ->  | D97: =IF('SD Teacher''s Data'!E95="","",'SD Teacher''s Data'!E95) ->  | E97: =IF('SD Teacher''s Data'!K95="","",'SD Teacher''s Data'!K95) ->  | F97: =IF('SD Teacher''s Data'!B95="","",'SD Teacher''s Data'!B95) ->  | L97: =IF('SD Teacher''s Data'!J95="","",'SD Teacher''s Data'!J95) -> 
A98: =IF(Table1[[#This Row],[नाम]]="","",ROWS($A$1:A95)) ->  | B98: =PROPER(IF('SD Teacher''s Data'!A96="","",'SD Teacher''s Data'!A96)) ->  | C98: =PROPER(IF('SD Teacher''s Data'!F96="","",'SD Teacher''s Data'!F96)) ->  | D98: =IF('SD Teacher''s Data'!E96="","",'SD Teacher''s Data'!E96) ->  | E98: =IF('SD Teacher''s Data'!K96="","",'SD Teacher''s Data'!K96) ->  | F98: =IF('SD Teacher''s Data'!B96="","",'SD Teacher''s Data'!B96) ->  | L98: =IF('SD Teacher''s Data'!J96="","",'SD Teacher''s Data'!J96) -> 
A99: =IF(Table1[[#This Row],[नाम]]="","",ROWS($A$1:A96)) ->  | B99: =PROPER(IF('SD Teacher''s Data'!A97="","",'SD Teacher''s Data'!A97)) ->  | C99: =PROPER(IF('SD Teacher''s Data'!F97="","",'SD Teacher''s Data'!F97)) ->  | D99: =IF('SD Teacher''s Data'!E97="","",'SD Teacher''s Data'!E97) ->  | E99: =IF('SD Teacher''s Data'!K97="","",'SD Teacher''s Data'!K97) ->  | F99: =IF('SD Teacher''s Data'!B97="","",'SD Teacher''s Data'!B97) ->  | L99: =IF('SD Teacher''s Data'!J97="","",'SD Teacher''s Data'!J97) -> 
A100: =IF(Table1[[#This Row],[नाम]]="","",ROWS($A$1:A97)) ->  | B100: =PROPER(IF('SD Teacher''s Data'!A98="","",'SD Teacher''s Data'!A98)) ->  | C100: =PROPER(IF('SD Teacher''s Data'!F98="","",'SD Teacher''s Data'!F98)) ->  | D100: =IF('SD Teacher''s Data'!E98="","",'SD Teacher''s Data'!E98) ->  | E100: =IF('SD Teacher''s Data'!K98="","",'SD Teacher''s Data'!K98) ->  | F100: =IF('SD Teacher''s Data'!B98="","",'SD Teacher''s Data'!B98) ->  | L100: =IF('SD Teacher''s Data'!J98="","",'SD Teacher''s Data'!J98) -> 
A101: =IF(Table1[[#This Row],[नाम]]="","",ROWS($A$1:A98)) ->  | B101: =PROPER(IF('SD Teacher''s Data'!A99="","",'SD Teacher''s Data'!A99)) ->  | C101: =PROPER(IF('SD Teacher''s Data'!F99="","",'SD Teacher''s Data'!F99)) ->  | D101: =IF('SD Teacher''s Data'!E99="","",'SD Teacher''s Data'!E99) ->  | E101: =IF('SD Teacher''s Data'!K99="","",'SD Teacher''s Data'!K99) ->  | F101: =IF('SD Teacher''s Data'!B99="","",'SD Teacher''s Data'!B99) ->  | L101: =IF('SD Teacher''s Data'!J99="","",'SD Teacher''s Data'!J99) -> 
A102: =IF(Table1[[#This Row],[नाम]]="","",ROWS($A$1:A99)) ->  | B102: =PROPER(IF('SD Teacher''s Data'!A100="","",'SD Teacher''s Data'!A100)) ->  | C102: =PROPER(IF('SD Teacher''s Data'!F100="","",'SD Teacher''s Data'!F100)) ->  | D102: =IF('SD Teacher''s Data'!E100="","",'SD Teacher''s Data'!E100) ->  | E102: =IF('SD Teacher''s Data'!K100="","",'SD Teacher''s Data'!K100) ->  | F102: =IF('SD Teacher''s Data'!B100="","",'SD Teacher''s Data'!B100) ->  | L102: =IF('SD Teacher''s Data'!J100="","",'SD Teacher''s Data'!J100) -> 
A103: =IF(Table1[[#This Row],[नाम]]="","",ROWS($A$1:A100)) ->  | B103: =PROPER(IF('SD Teacher''s Data'!A101="","",'SD Teacher''s Data'!A101)) ->  | C103: =PROPER(IF('SD Teacher''s Data'!F101="","",'SD Teacher''s Data'!F101)) ->  | D103: =IF('SD Teacher''s Data'!E101="","",'SD Teacher''s Data'!E101) ->  | E103: =IF('SD Teacher''s Data'!K101="","",'SD Teacher''s Data'!K101) ->  | F103: =IF('SD Teacher''s Data'!B101="","",'SD Teacher''s Data'!B101) ->  | L103: =IF('SD Teacher''s Data'!J101="","",'SD Teacher''s Data'!J101) -> 
A104: =IF(Table1[[#This Row],[नाम]]="","",ROWS($A$1:A101)) ->  | B104: =PROPER(IF('SD Teacher''s Data'!A102="","",'SD Teacher''s Data'!A102)) ->  | C104: =PROPER(IF('SD Teacher''s Data'!F102="","",'SD Teacher''s Data'!F102)) ->  | D104: =IF('SD Teacher''s Data'!E102="","",'SD Teacher''s Data'!E102) ->  | E104: =IF('SD Teacher''s Data'!K102="","",'SD Teacher''s Data'!K102) ->  | F104: =IF('SD Teacher''s Data'!B102="","",'SD Teacher''s Data'!B102) ->  | L104: =IF('SD Teacher''s Data'!J102="","",'SD Teacher''s Data'!J102) -> 
A105: =IF(Table1[[#This Row],[नाम]]="","",ROWS($A$1:A102)) ->  | B105: =PROPER(IF('SD Teacher''s Data'!A103="","",'SD Teacher''s Data'!A103)) ->  | C105: =PROPER(IF('SD Teacher''s Data'!F103="","",'SD Teacher''s Data'!F103)) ->  | D105: =IF('SD Teacher''s Data'!E103="","",'SD Teacher''s Data'!E103) ->  | E105: =IF('SD Teacher''s Data'!K103="","",'SD Teacher''s Data'!K103) ->  | F105: =IF('SD Teacher''s Data'!B103="","",'SD Teacher''s Data'!B103) ->  | L105: =IF('SD Teacher''s Data'!J103="","",'SD Teacher''s Data'!J103) -> 
A106: =IF(Table1[[#This Row],[नाम]]="","",ROWS($A$1:A103)) ->  | B106: =PROPER(IF('SD Teacher''s Data'!A104="","",'SD Teacher''s Data'!A104)) ->  | C106: =PROPER(IF('SD Teacher''s Data'!F104="","",'SD Teacher''s Data'!F104)) ->  | D106: =IF('SD Teacher''s Data'!E104="","",'SD Teacher''s Data'!E104) ->  | E106: =IF('SD Teacher''s Data'!K104="","",'SD Teacher''s Data'!K104) ->  | F106: =IF('SD Teacher''s Data'!B104="","",'SD Teacher''s Data'!B104) ->  | L106: =IF('SD Teacher''s Data'!J104="","",'SD Teacher''s Data'!J104) -> 
A107: =IF(Table1[[#This Row],[नाम]]="","",ROWS($A$1:A104)) ->  | B107: =PROPER(IF('SD Teacher''s Data'!A105="","",'SD Teacher''s Data'!A105)) ->  | C107: =PROPER(IF('SD Teacher''s Data'!F105="","",'SD Teacher''s Data'!F105)) ->  | D107: =IF('SD Teacher''s Data'!E105="","",'SD Teacher''s Data'!E105) ->  | E107: =IF('SD Teacher''s Data'!K105="","",'SD Teacher''s Data'!K105) ->  | F107: =IF('SD Teacher''s Data'!B105="","",'SD Teacher''s Data'!B105) ->  | L107: =IF('SD Teacher''s Data'!J105="","",'SD Teacher''s Data'!J105) -> 
A108: =IF(Table1[[#This Row],[नाम]]="","",ROWS($A$1:A105)) ->  | B108: =PROPER(IF('SD Teacher''s Data'!A106="","",'SD Teacher''s Data'!A106)) ->  | C108: =PROPER(IF('SD Teacher''s Data'!F106="","",'SD Teacher''s Data'!F106)) ->  | D108: =IF('SD Teacher''s Data'!E106="","",'SD Teacher''s Data'!E106) ->  | E108: =IF('SD Teacher''s Data'!K106="","",'SD Teacher''s Data'!K106) ->  | F108: =IF('SD Teacher''s Data'!B106="","",'SD Teacher''s Data'!B106) ->  | L108: =IF('SD Teacher''s Data'!J106="","",'SD Teacher''s Data'!J106) -> 
A109: =IF(Table1[[#This Row],[नाम]]="","",ROWS($A$1:A106)) ->  | B109: =PROPER(IF('SD Teacher''s Data'!A107="","",'SD Teacher''s Data'!A107)) ->  | C109: =PROPER(IF('SD Teacher''s Data'!F107="","",'SD Teacher''s Data'!F107)) ->  | D109: =IF('SD Teacher''s Data'!E107="","",'SD Teacher''s Data'!E107) ->  | E109: =IF('SD Teacher''s Data'!K107="","",'SD Teacher''s Data'!K107) ->  | F109: =IF('SD Teacher''s Data'!B107="","",'SD Teacher''s Data'!B107) ->  | L109: =IF('SD Teacher''s Data'!J107="","",'SD Teacher''s Data'!J107) -> 
A110: =IF(Table1[[#This Row],[नाम]]="","",ROWS($A$1:A107)) ->  | B110: =PROPER(IF('SD Teacher''s Data'!A108="","",'SD Teacher''s Data'!A108)) ->  | C110: =PROPER(IF('SD Teacher''s Data'!F108="","",'SD Teacher''s Data'!F108)) ->  | D110: =IF('SD Teacher''s Data'!E108="","",'SD Teacher''s Data'!E108) ->  | E110: =IF('SD Teacher''s Data'!K108="","",'SD Teacher''s Data'!K108) ->  | F110: =IF('SD Teacher''s Data'!B108="","",'SD Teacher''s Data'!B108) ->  | L110: =IF('SD Teacher''s Data'!J108="","",'SD Teacher''s Data'!J108) -> 
A111: =IF(Table1[[#This Row],[नाम]]="","",ROWS($A$1:A108)) ->  | B111: =PROPER(IF('SD Teacher''s Data'!A109="","",'SD Teacher''s Data'!A109)) ->  | C111: =PROPER(IF('SD Teacher''s Data'!F109="","",'SD Teacher''s Data'!F109)) ->  | D111: =IF('SD Teacher''s Data'!E109="","",'SD Teacher''s Data'!E109) ->  | E111: =IF('SD Teacher''s Data'!K109="","",'SD Teacher''s Data'!K109) ->  | F111: =IF('SD Teacher''s Data'!B109="","",'SD Teacher''s Data'!B109) ->  | L111: =IF('SD Teacher''s Data'!J109="","",'SD Teacher''s Data'!J109) -> 
A112: =IF(Table1[[#This Row],[नाम]]="","",ROWS($A$1:A109)) ->  | B112: =PROPER(IF('SD Teacher''s Data'!A110="","",'SD Teacher''s Data'!A110)) ->  | C112: =PROPER(IF('SD Teacher''s Data'!F110="","",'SD Teacher''s Data'!F110)) ->  | D112: =IF('SD Teacher''s Data'!E110="","",'SD Teacher''s Data'!E110) ->  | E112: =IF('SD Teacher''s Data'!K110="","",'SD Teacher''s Data'!K110) ->  | F112: =IF('SD Teacher''s Data'!B110="","",'SD Teacher''s Data'!B110) ->  | L112: =IF('SD Teacher''s Data'!J110="","",'SD Teacher''s Data'!J110) -> 
A113: =IF(Table1[[#This Row],[नाम]]="","",ROWS($A$1:A110)) ->  | B113: =PROPER(IF('SD Teacher''s Data'!A111="","",'SD Teacher''s Data'!A111)) ->  | C113: =PROPER(IF('SD Teacher''s Data'!F111="","",'SD Teacher''s Data'!F111)) ->  | D113: =IF('SD Teacher''s Data'!E111="","",'SD Teacher''s Data'!E111) ->  | E113: =IF('SD Teacher''s Data'!K111="","",'SD Teacher''s Data'!K111) ->  | F113: =IF('SD Teacher''s Data'!B111="","",'SD Teacher''s Data'!B111) ->  | L113: =IF('SD Teacher''s Data'!J111="","",'SD Teacher''s Data'!J111) -> 
A114: =IF(Table1[[#This Row],[नाम]]="","",ROWS($A$1:A111)) ->  | B114: =PROPER(IF('SD Teacher''s Data'!A112="","",'SD Teacher''s Data'!A112)) ->  | C114: =PROPER(IF('SD Teacher''s Data'!F112="","",'SD Teacher''s Data'!F112)) ->  | D114: =IF('SD Teacher''s Data'!E112="","",'SD Teacher''s Data'!E112) ->  | E114: =IF('SD Teacher''s Data'!K112="","",'SD Teacher''s Data'!K112) ->  | F114: =IF('SD Teacher''s Data'!B112="","",'SD Teacher''s Data'!B112) ->  | L114: =IF('SD Teacher''s Data'!J112="","",'SD Teacher''s Data'!J112) -> 
A115: =IF(Table1[[#This Row],[नाम]]="","",ROWS($A$1:A112)) ->  | B115: =PROPER(IF('SD Teacher''s Data'!A113="","",'SD Teacher''s Data'!A113)) ->  | C115: =PROPER(IF('SD Teacher''s Data'!F113="","",'SD Teacher''s Data'!F113)) ->  | D115: =IF('SD Teacher''s Data'!E113="","",'SD Teacher''s Data'!E113) ->  | E115: =IF('SD Teacher''s Data'!K113="","",'SD Teacher''s Data'!K113) ->  | F115: =IF('SD Teacher''s Data'!B113="","",'SD Teacher''s Data'!B113) ->  | L115: =IF('SD Teacher''s Data'!J113="","",'SD Teacher''s Data'!J113) -> 
A116: =IF(Table1[[#This Row],[नाम]]="","",ROWS($A$1:A113)) ->  | B116: =PROPER(IF('SD Teacher''s Data'!A114="","",'SD Teacher''s Data'!A114)) ->  | C116: =PROPER(IF('SD Teacher''s Data'!F114="","",'SD Teacher''s Data'!F114)) ->  | D116: =IF('SD Teacher''s Data'!E114="","",'SD Teacher''s Data'!E114) ->  | E116: =IF('SD Teacher''s Data'!K114="","",'SD Teacher''s Data'!K114) ->  | F116: =IF('SD Teacher''s Data'!B114="","",'SD Teacher''s Data'!B114) ->  | L116: =IF('SD Teacher''s Data'!J114="","",'SD Teacher''s Data'!J114) -> 
A117: =IF(Table1[[#This Row],[नाम]]="","",ROWS($A$1:A114)) ->  | B117: =PROPER(IF('SD Teacher''s Data'!A115="","",'SD Teacher''s Data'!A115)) ->  | C117: =PROPER(IF('SD Teacher''s Data'!F115="","",'SD Teacher''s Data'!F115)) ->  | D117: =IF('SD Teacher''s Data'!E115="","",'SD Teacher''s Data'!E115) ->  | E117: =IF('SD Teacher''s Data'!K115="","",'SD Teacher''s Data'!K115) ->  | F117: =IF('SD Teacher''s Data'!B115="","",'SD Teacher''s Data'!B115) ->  | L117: =IF('SD Teacher''s Data'!J115="","",'SD Teacher''s Data'!J115) -> 
A118: =IF(Table1[[#This Row],[नाम]]="","",ROWS($A$1:A115)) ->  | B118: =PROPER(IF('SD Teacher''s Data'!A116="","",'SD Teacher''s Data'!A116)) ->  | C118: =PROPER(IF('SD Teacher''s Data'!F116="","",'SD Teacher''s Data'!F116)) ->  | D118: =IF('SD Teacher''s Data'!E116="","",'SD Teacher''s Data'!E116) ->  | E118: =IF('SD Teacher''s Data'!K116="","",'SD Teacher''s Data'!K116) ->  | F118: =IF('SD Teacher''s Data'!B116="","",'SD Teacher''s Data'!B116) ->  | L118: =IF('SD Teacher''s Data'!J116="","",'SD Teacher''s Data'!J116) -> 
A119: =IF(Table1[[#This Row],[नाम]]="","",ROWS($A$1:A116)) ->  | B119: =PROPER(IF('SD Teacher''s Data'!A117="","",'SD Teacher''s Data'!A117)) ->  | C119: =PROPER(IF('SD Teacher''s Data'!F117="","",'SD Teacher''s Data'!F117)) ->  | D119: =IF('SD Teacher''s Data'!E117="","",'SD Teacher''s Data'!E117) ->  | E119: =IF('SD Teacher''s Data'!K117="","",'SD Teacher''s Data'!K117) ->  | F119: =IF('SD Teacher''s Data'!B117="","",'SD Teacher''s Data'!B117) ->  | L119: =IF('SD Teacher''s Data'!J117="","",'SD Teacher''s Data'!J117) -> 
A120: =IF(Table1[[#This Row],[नाम]]="","",ROWS($A$1:A117)) ->  | B120: =PROPER(IF('SD Teacher''s Data'!A118="","",'SD Teacher''s Data'!A118)) ->  | C120: =PROPER(IF('SD Teacher''s Data'!F118="","",'SD Teacher''s Data'!F118)) ->  | D120: =IF('SD Teacher''s Data'!E118="","",'SD Teacher''s Data'!E118) ->  | E120: =IF('SD Teacher''s Data'!K118="","",'SD Teacher''s Data'!K118) ->  | F120: =IF('SD Teacher''s Data'!B118="","",'SD Teacher''s Data'!B118) ->  | L120: =IF('SD Teacher''s Data'!J118="","",'SD Teacher''s Data'!J118) -> 
A121: =IF(Table1[[#This Row],[नाम]]="","",ROWS($A$1:A118)) ->  | B121: =PROPER(IF('SD Teacher''s Data'!A119="","",'SD Teacher''s Data'!A119)) ->  | C121: =PROPER(IF('SD Teacher''s Data'!F119="","",'SD Teacher''s Data'!F119)) ->  | D121: =IF('SD Teacher''s Data'!E119="","",'SD Teacher''s Data'!E119) ->  | E121: =IF('SD Teacher''s Data'!K119="","",'SD Teacher''s Data'!K119) ->  | F121: =IF('SD Teacher''s Data'!B119="","",'SD Teacher''s Data'!B119) ->  | L121: =IF('SD Teacher''s Data'!J119="","",'SD Teacher''s Data'!J119) -> 
A122: =IF(Table1[[#This Row],[नाम]]="","",ROWS($A$1:A119)) ->  | B122: =PROPER(IF('SD Teacher''s Data'!A120="","",'SD Teacher''s Data'!A120)) ->  | C122: =PROPER(IF('SD Teacher''s Data'!F120="","",'SD Teacher''s Data'!F120)) ->  | D122: =IF('SD Teacher''s Data'!E120="","",'SD Teacher''s Data'!E120) ->  | E122: =IF('SD Teacher''s Data'!K120="","",'SD Teacher''s Data'!K120) ->  | F122: =IF('SD Teacher''s Data'!B120="","",'SD Teacher''s Data'!B120) ->  | L122: =IF('SD Teacher''s Data'!J120="","",'SD Teacher''s Data'!J120) -> 
A123: =IF(Table1[[#This Row],[नाम]]="","",ROWS($A$1:A120)) ->  | B123: =PROPER(IF('SD Teacher''s Data'!A121="","",'SD Teacher''s Data'!A121)) ->  | C123: =PROPER(IF('SD Teacher''s Data'!F121="","",'SD Teacher''s Data'!F121)) ->  | D123: =IF('SD Teacher''s Data'!E121="","",'SD Teacher''s Data'!E121) ->  | E123: =IF('SD Teacher''s Data'!K121="","",'SD Teacher''s Data'!K121) ->  | F123: =IF('SD Teacher''s Data'!B121="","",'SD Teacher''s Data'!B121) ->  | L123: =IF('SD Teacher''s Data'!J121="","",'SD Teacher''s Data'!J121) -> 
A124: =IF(Table1[[#This Row],[नाम]]="","",ROWS($A$1:A121)) ->  | B124: =PROPER(IF('SD Teacher''s Data'!A122="","",'SD Teacher''s Data'!A122)) ->  | C124: =PROPER(IF('SD Teacher''s Data'!F122="","",'SD Teacher''s Data'!F122)) ->  | D124: =IF('SD Teacher''s Data'!E122="","",'SD Teacher''s Data'!E122) ->  | E124: =IF('SD Teacher''s Data'!K122="","",'SD Teacher''s Data'!K122) ->  | F124: =IF('SD Teacher''s Data'!B122="","",'SD Teacher''s Data'!B122) ->  | L124: =IF('SD Teacher''s Data'!J122="","",'SD Teacher''s Data'!J122) -> 
A125: =IF(Table1[[#This Row],[नाम]]="","",ROWS($A$1:A122)) ->  | B125: =PROPER(IF('SD Teacher''s Data'!A123="","",'SD Teacher''s Data'!A123)) ->  | C125: =PROPER(IF('SD Teacher''s Data'!F123="","",'SD Teacher''s Data'!F123)) ->  | D125: =IF('SD Teacher''s Data'!E123="","",'SD Teacher''s Data'!E123) ->  | E125: =IF('SD Teacher''s Data'!K123="","",'SD Teacher''s Data'!K123) ->  | F125: =IF('SD Teacher''s Data'!B123="","",'SD Teacher''s Data'!B123) ->  | L125: =IF('SD Teacher''s Data'!J123="","",'SD Teacher''s Data'!J123) -> 
A126: =IF(Table1[[#This Row],[नाम]]="","",ROWS($A$1:A123)) ->  | B126: =PROPER(IF('SD Teacher''s Data'!A124="","",'SD Teacher''s Data'!A124)) ->  | C126: =PROPER(IF('SD Teacher''s Data'!F124="","",'SD Teacher''s Data'!F124)) ->  | D126: =IF('SD Teacher''s Data'!E124="","",'SD Teacher''s Data'!E124) ->  | E126: =IF('SD Teacher''s Data'!K124="","",'SD Teacher''s Data'!K124) ->  | F126: =IF('SD Teacher''s Data'!B124="","",'SD Teacher''s Data'!B124) ->  | L126: =IF('SD Teacher''s Data'!J124="","",'SD Teacher''s Data'!J124) -> 
A127: =IF(Table1[[#This Row],[नाम]]="","",ROWS($A$1:A124)) ->  | B127: =PROPER(IF('SD Teacher''s Data'!A125="","",'SD Teacher''s Data'!A125)) ->  | C127: =PROPER(IF('SD Teacher''s Data'!F125="","",'SD Teacher''s Data'!F125)) ->  | D127: =IF('SD Teacher''s Data'!E125="","",'SD Teacher''s Data'!E125) ->  | E127: =IF('SD Teacher''s Data'!K125="","",'SD Teacher''s Data'!K125) ->  | F127: =IF('SD Teacher''s Data'!B125="","",'SD Teacher''s Data'!B125) ->  | L127: =IF('SD Teacher''s Data'!J125="","",'SD Teacher''s Data'!J125) -> 
A128: =IF(Table1[[#This Row],[नाम]]="","",ROWS($A$1:A125)) ->  | B128: =PROPER(IF('SD Teacher''s Data'!A126="","",'SD Teacher''s Data'!A126)) ->  | C128: =PROPER(IF('SD Teacher''s Data'!F126="","",'SD Teacher''s Data'!F126)) ->  | D128: =IF('SD Teacher''s Data'!E126="","",'SD Teacher''s Data'!E126) ->  | E128: =IF('SD Teacher''s Data'!K126="","",'SD Teacher''s Data'!K126) ->  | F128: =IF('SD Teacher''s Data'!B126="","",'SD Teacher''s Data'!B126) ->  | L128: =IF('SD Teacher''s Data'!J126="","",'SD Teacher''s Data'!J126) -> 
A129: =IF(Table1[[#This Row],[नाम]]="","",ROWS($A$1:A126)) ->  | B129: =PROPER(IF('SD Teacher''s Data'!A127="","",'SD Teacher''s Data'!A127)) ->  | C129: =PROPER(IF('SD Teacher''s Data'!F127="","",'SD Teacher''s Data'!F127)) ->  | D129: =IF('SD Teacher''s Data'!E127="","",'SD Teacher''s Data'!E127) ->  | E129: =IF('SD Teacher''s Data'!K127="","",'SD Teacher''s Data'!K127) ->  | F129: =IF('SD Teacher''s Data'!B127="","",'SD Teacher''s Data'!B127) ->  | L129: =IF('SD Teacher''s Data'!J127="","",'SD Teacher''s Data'!J127) -> 
A130: =IF(Table1[[#This Row],[नाम]]="","",ROWS($A$1:A127)) ->  | B130: =PROPER(IF('SD Teacher''s Data'!A128="","",'SD Teacher''s Data'!A128)) ->  | C130: =PROPER(IF('SD Teacher''s Data'!F128="","",'SD Teacher''s Data'!F128)) ->  | D130: =IF('SD Teacher''s Data'!E128="","",'SD Teacher''s Data'!E128) ->  | E130: =IF('SD Teacher''s Data'!K128="","",'SD Teacher''s Data'!K128) ->  | F130: =IF('SD Teacher''s Data'!B128="","",'SD Teacher''s Data'!B128) ->  | L130: =IF('SD Teacher''s Data'!J128="","",'SD Teacher''s Data'!J128) -> 
A131: =IF(Table1[[#This Row],[नाम]]="","",ROWS($A$1:A128)) ->  | B131: =PROPER(IF('SD Teacher''s Data'!A129="","",'SD Teacher''s Data'!A129)) ->  | C131: =PROPER(IF('SD Teacher''s Data'!F129="","",'SD Teacher''s Data'!F129)) ->  | D131: =IF('SD Teacher''s Data'!E129="","",'SD Teacher''s Data'!E129) ->  | E131: =IF('SD Teacher''s Data'!K129="","",'SD Teacher''s Data'!K129) ->  | F131: =IF('SD Teacher''s Data'!B129="","",'SD Teacher''s Data'!B129) ->  | L131: =IF('SD Teacher''s Data'!J129="","",'SD Teacher''s Data'!J129) -> 
A132: =IF(Table1[[#This Row],[नाम]]="","",ROWS($A$1:A129)) ->  | B132: =PROPER(IF('SD Teacher''s Data'!A130="","",'SD Teacher''s Data'!A130)) ->  | C132: =PROPER(IF('SD Teacher''s Data'!F130="","",'SD Teacher''s Data'!F130)) ->  | D132: =IF('SD Teacher''s Data'!E130="","",'SD Teacher''s Data'!E130) ->  | E132: =IF('SD Teacher''s Data'!K130="","",'SD Teacher''s Data'!K130) ->  | F132: =IF('SD Teacher''s Data'!B130="","",'SD Teacher''s Data'!B130) ->  | L132: =IF('SD Teacher''s Data'!J130="","",'SD Teacher''s Data'!J130) -> 
A133: =IF(Table1[[#This Row],[नाम]]="","",ROWS($A$1:A130)) ->  | B133: =PROPER(IF('SD Teacher''s Data'!A131="","",'SD Teacher''s Data'!A131)) ->  | C133: =PROPER(IF('SD Teacher''s Data'!F131="","",'SD Teacher''s Data'!F131)) ->  | D133: =IF('SD Teacher''s Data'!E131="","",'SD Teacher''s Data'!E131) ->  | E133: =IF('SD Teacher''s Data'!K131="","",'SD Teacher''s Data'!K131) ->  | F133: =IF('SD Teacher''s Data'!B131="","",'SD Teacher''s Data'!B131) ->  | L133: =IF('SD Teacher''s Data'!J131="","",'SD Teacher''s Data'!J131) -> 
A134: =IF(Table1[[#This Row],[नाम]]="","",ROWS($A$1:A131)) ->  | B134: =PROPER(IF('SD Teacher''s Data'!A132="","",'SD Teacher''s Data'!A132)) ->  | C134: =PROPER(IF('SD Teacher''s Data'!F132="","",'SD Teacher''s Data'!F132)) ->  | D134: =IF('SD Teacher''s Data'!E132="","",'SD Teacher''s Data'!E132) ->  | E134: =IF('SD Teacher''s Data'!K132="","",'SD Teacher''s Data'!K132) ->  | F134: =IF('SD Teacher''s Data'!B132="","",'SD Teacher''s Data'!B132) ->  | L134: =IF('SD Teacher''s Data'!J132="","",'SD Teacher''s Data'!J132) -> 
A135: =IF(Table1[[#This Row],[नाम]]="","",ROWS($A$1:A132)) ->  | B135: =PROPER(IF('SD Teacher''s Data'!A133="","",'SD Teacher''s Data'!A133)) ->  | C135: =PROPER(IF('SD Teacher''s Data'!F133="","",'SD Teacher''s Data'!F133)) ->  | D135: =IF('SD Teacher''s Data'!E133="","",'SD Teacher''s Data'!E133) ->  | E135: =IF('SD Teacher''s Data'!K133="","",'SD Teacher''s Data'!K133) ->  | F135: =IF('SD Teacher''s Data'!B133="","",'SD Teacher''s Data'!B133) ->  | L135: =IF('SD Teacher''s Data'!J133="","",'SD Teacher''s Data'!J133) -> 
A136: =IF(Table1[[#This Row],[नाम]]="","",ROWS($A$1:A133)) ->  | B136: =PROPER(IF('SD Teacher''s Data'!A134="","",'SD Teacher''s Data'!A134)) ->  | C136: =PROPER(IF('SD Teacher''s Data'!F134="","",'SD Teacher''s Data'!F134)) ->  | D136: =IF('SD Teacher''s Data'!E134="","",'SD Teacher''s Data'!E134) ->  | E136: =IF('SD Teacher''s Data'!K134="","",'SD Teacher''s Data'!K134) ->  | F136: =IF('SD Teacher''s Data'!B134="","",'SD Teacher''s Data'!B134) ->  | L136: =IF('SD Teacher''s Data'!J134="","",'SD Teacher''s Data'!J134) -> 
A137: =IF(Table1[[#This Row],[नाम]]="","",ROWS($A$1:A134)) ->  | B137: =PROPER(IF('SD Teacher''s Data'!A135="","",'SD Teacher''s Data'!A135)) ->  | C137: =PROPER(IF('SD Teacher''s Data'!F135="","",'SD Teacher''s Data'!F135)) ->  | D137: =IF('SD Teacher''s Data'!E135="","",'SD Teacher''s Data'!E135) ->  | E137: =IF('SD Teacher''s Data'!K135="","",'SD Teacher''s Data'!K135) ->  | F137: =IF('SD Teacher''s Data'!B135="","",'SD Teacher''s Data'!B135) ->  | L137: =IF('SD Teacher''s Data'!J135="","",'SD Teacher''s Data'!J135) -> 
A138: =IF(Table1[[#This Row],[नाम]]="","",ROWS($A$1:A135)) ->  | B138: =PROPER(IF('SD Teacher''s Data'!A136="","",'SD Teacher''s Data'!A136)) ->  | C138: =PROPER(IF('SD Teacher''s Data'!F136="","",'SD Teacher''s Data'!F136)) ->  | D138: =IF('SD Teacher''s Data'!E136="","",'SD Teacher''s Data'!E136) ->  | E138: =IF('SD Teacher''s Data'!K136="","",'SD Teacher''s Data'!K136) ->  | F138: =IF('SD Teacher''s Data'!B136="","",'SD Teacher''s Data'!B136) ->  | L138: =IF('SD Teacher''s Data'!J136="","",'SD Teacher''s Data'!J136) -> 
A139: =IF(Table1[[#This Row],[नाम]]="","",ROWS($A$1:A136)) ->  | B139: =PROPER(IF('SD Teacher''s Data'!A137="","",'SD Teacher''s Data'!A137)) ->  | C139: =PROPER(IF('SD Teacher''s Data'!F137="","",'SD Teacher''s Data'!F137)) ->  | D139: =IF('SD Teacher''s Data'!E137="","",'SD Teacher''s Data'!E137) ->  | E139: =IF('SD Teacher''s Data'!K137="","",'SD Teacher''s Data'!K137) ->  | F139: =IF('SD Teacher''s Data'!B137="","",'SD Teacher''s Data'!B137) ->  | L139: =IF('SD Teacher''s Data'!J137="","",'SD Teacher''s Data'!J137) -> 
A140: =IF(Table1[[#This Row],[नाम]]="","",ROWS($A$1:A137)) ->  | B140: =PROPER(IF('SD Teacher''s Data'!A138="","",'SD Teacher''s Data'!A138)) ->  | C140: =PROPER(IF('SD Teacher''s Data'!F138="","",'SD Teacher''s Data'!F138)) ->  | D140: =IF('SD Teacher''s Data'!E138="","",'SD Teacher''s Data'!E138) ->  | E140: =IF('SD Teacher''s Data'!K138="","",'SD Teacher''s Data'!K138) ->  | F140: =IF('SD Teacher''s Data'!B138="","",'SD Teacher''s Data'!B138) ->  | L140: =IF('SD Teacher''s Data'!J138="","",'SD Teacher''s Data'!J138) -> 
A141: =IF(Table1[[#This Row],[नाम]]="","",ROWS($A$1:A138)) ->  | B141: =PROPER(IF('SD Teacher''s Data'!A139="","",'SD Teacher''s Data'!A139)) ->  | C141: =PROPER(IF('SD Teacher''s Data'!F139="","",'SD Teacher''s Data'!F139)) ->  | D141: =IF('SD Teacher''s Data'!E139="","",'SD Teacher''s Data'!E139) ->  | E141: =IF('SD Teacher''s Data'!K139="","",'SD Teacher''s Data'!K139) ->  | F141: =IF('SD Teacher''s Data'!B139="","",'SD Teacher''s Data'!B139) ->  | L141: =IF('SD Teacher''s Data'!J139="","",'SD Teacher''s Data'!J139) -> 
A142: =IF(Table1[[#This Row],[नाम]]="","",ROWS($A$1:A139)) ->  | B142: =PROPER(IF('SD Teacher''s Data'!A140="","",'SD Teacher''s Data'!A140)) ->  | C142: =PROPER(IF('SD Teacher''s Data'!F140="","",'SD Teacher''s Data'!F140)) ->  | D142: =IF('SD Teacher''s Data'!E140="","",'SD Teacher''s Data'!E140) ->  | E142: =IF('SD Teacher''s Data'!K140="","",'SD Teacher''s Data'!K140) ->  | F142: =IF('SD Teacher''s Data'!B140="","",'SD Teacher''s Data'!B140) ->  | L142: =IF('SD Teacher''s Data'!J140="","",'SD Teacher''s Data'!J140) -> 
A143: =IF(Table1[[#This Row],[नाम]]="","",ROWS($A$1:A140)) ->  | B143: =PROPER(IF('SD Teacher''s Data'!A141="","",'SD Teacher''s Data'!A141)) ->  | C143: =PROPER(IF('SD Teacher''s Data'!F141="","",'SD Teacher''s Data'!F141)) ->  | D143: =IF('SD Teacher''s Data'!E141="","",'SD Teacher''s Data'!E141) ->  | E143: =IF('SD Teacher''s Data'!K141="","",'SD Teacher''s Data'!K141) ->  | F143: =IF('SD Teacher''s Data'!B141="","",'SD Teacher''s Data'!B141) ->  | L143: =IF('SD Teacher''s Data'!J141="","",'SD Teacher''s Data'!J141) -> 
A144: =IF(Table1[[#This Row],[नाम]]="","",ROWS($A$1:A141)) ->  | B144: =PROPER(IF('SD Teacher''s Data'!A142="","",'SD Teacher''s Data'!A142)) ->  | C144: =PROPER(IF('SD Teacher''s Data'!F142="","",'SD Teacher''s Data'!F142)) ->  | D144: =IF('SD Teacher''s Data'!E142="","",'SD Teacher''s Data'!E142) ->  | E144: =IF('SD Teacher''s Data'!K142="","",'SD Teacher''s Data'!K142) ->  | F144: =IF('SD Teacher''s Data'!B142="","",'SD Teacher''s Data'!B142) ->  | L144: =IF('SD Teacher''s Data'!J142="","",'SD Teacher''s Data'!J142) -> 
A145: =IF(Table1[[#This Row],[नाम]]="","",ROWS($A$1:A142)) ->  | B145: =PROPER(IF('SD Teacher''s Data'!A143="","",'SD Teacher''s Data'!A143)) ->  | C145: =PROPER(IF('SD Teacher''s Data'!F143="","",'SD Teacher''s Data'!F143)) ->  | D145: =IF('SD Teacher''s Data'!E143="","",'SD Teacher''s Data'!E143) ->  | E145: =IF('SD Teacher''s Data'!K143="","",'SD Teacher''s Data'!K143) ->  | F145: =IF('SD Teacher''s Data'!B143="","",'SD Teacher''s Data'!B143) ->  | L145: =IF('SD Teacher''s Data'!J143="","",'SD Teacher''s Data'!J143) -> 
A146: =IF(Table1[[#This Row],[नाम]]="","",ROWS($A$1:A143)) ->  | B146: =PROPER(IF('SD Teacher''s Data'!A144="","",'SD Teacher''s Data'!A144)) ->  | C146: =PROPER(IF('SD Teacher''s Data'!F144="","",'SD Teacher''s Data'!F144)) ->  | D146: =IF('SD Teacher''s Data'!E144="","",'SD Teacher''s Data'!E144) ->  | E146: =IF('SD Teacher''s Data'!K144="","",'SD Teacher''s Data'!K144) ->  | F146: =IF('SD Teacher''s Data'!B144="","",'SD Teacher''s Data'!B144) ->  | L146: =IF('SD Teacher''s Data'!J144="","",'SD Teacher''s Data'!J144) -> 
A147: =IF(Table1[[#This Row],[नाम]]="","",ROWS($A$1:A144)) ->  | B147: =PROPER(IF('SD Teacher''s Data'!A145="","",'SD Teacher''s Data'!A145)) ->  | C147: =PROPER(IF('SD Teacher''s Data'!F145="","",'SD Teacher''s Data'!F145)) ->  | D147: =IF('SD Teacher''s Data'!E145="","",'SD Teacher''s Data'!E145) ->  | E147: =IF('SD Teacher''s Data'!K145="","",'SD Teacher''s Data'!K145) ->  | F147: =IF('SD Teacher''s Data'!B145="","",'SD Teacher''s Data'!B145) ->  | L147: =IF('SD Teacher''s Data'!J145="","",'SD Teacher''s Data'!J145) -> 
A148: =IF(Table1[[#This Row],[नाम]]="","",ROWS($A$1:A145)) ->  | B148: =PROPER(IF('SD Teacher''s Data'!A146="","",'SD Teacher''s Data'!A146)) ->  | C148: =PROPER(IF('SD Teacher''s Data'!F146="","",'SD Teacher''s Data'!F146)) ->  | D148: =IF('SD Teacher''s Data'!E146="","",'SD Teacher''s Data'!E146) ->  | E148: =IF('SD Teacher''s Data'!K146="","",'SD Teacher''s Data'!K146) ->  | F148: =IF('SD Teacher''s Data'!B146="","",'SD Teacher''s Data'!B146) ->  | L148: =IF('SD Teacher''s Data'!J146="","",'SD Teacher''s Data'!J146) -> 
A149: =IF(Table1[[#This Row],[नाम]]="","",ROWS($A$1:A146)) ->  | B149: =PROPER(IF('SD Teacher''s Data'!A147="","",'SD Teacher''s Data'!A147)) ->  | C149: =PROPER(IF('SD Teacher''s Data'!F147="","",'SD Teacher''s Data'!F147)) ->  | D149: =IF('SD Teacher''s Data'!E147="","",'SD Teacher''s Data'!E147) ->  | E149: =IF('SD Teacher''s Data'!K147="","",'SD Teacher''s Data'!K147) ->  | F149: =IF('SD Teacher''s Data'!B147="","",'SD Teacher''s Data'!B147) ->  | L149: =IF('SD Teacher''s Data'!J147="","",'SD Teacher''s Data'!J147) -> 
A150: =IF(Table1[[#This Row],[नाम]]="","",ROWS($A$1:A147)) ->  | B150: =PROPER(IF('SD Teacher''s Data'!A148="","",'SD Teacher''s Data'!A148)) ->  | C150: =PROPER(IF('SD Teacher''s Data'!F148="","",'SD Teacher''s Data'!F148)) ->  | D150: =IF('SD Teacher''s Data'!E148="","",'SD Teacher''s Data'!E148) ->  | E150: =IF('SD Teacher''s Data'!K148="","",'SD Teacher''s Data'!K148) ->  | F150: =IF('SD Teacher''s Data'!B148="","",'SD Teacher''s Data'!B148) ->  | L150: =IF('SD Teacher''s Data'!J148="","",'SD Teacher''s Data'!J148) -> 
A151: =IF(Table1[[#This Row],[नाम]]="","",ROWS($A$1:A148)) ->  | B151: =PROPER(IF('SD Teacher''s Data'!A149="","",'SD Teacher''s Data'!A149)) ->  | C151: =PROPER(IF('SD Teacher''s Data'!F149="","",'SD Teacher''s Data'!F149)) ->  | D151: =IF('SD Teacher''s Data'!E149="","",'SD Teacher''s Data'!E149) ->  | E151: =IF('SD Teacher''s Data'!K149="","",'SD Teacher''s Data'!K149) ->  | F151: =IF('SD Teacher''s Data'!B149="","",'SD Teacher''s Data'!B149) ->  | L151: =IF('SD Teacher''s Data'!J149="","",'SD Teacher''s Data'!J149) -> 
A152: =IF(Table1[[#This Row],[नाम]]="","",ROWS($A$1:A149)) ->  | B152: =PROPER(IF('SD Teacher''s Data'!A150="","",'SD Teacher''s Data'!A150)) ->  | C152: =PROPER(IF('SD Teacher''s Data'!F150="","",'SD Teacher''s Data'!F150)) ->  | D152: =IF('SD Teacher''s Data'!E150="","",'SD Teacher''s Data'!E150) ->  | E152: =IF('SD Teacher''s Data'!K150="","",'SD Teacher''s Data'!K150) ->  | F152: =IF('SD Teacher''s Data'!B150="","",'SD Teacher''s Data'!B150) ->  | L152: =IF('SD Teacher''s Data'!J150="","",'SD Teacher''s Data'!J150) -> 
A153: =IF(Table1[[#This Row],[नाम]]="","",ROWS($A$1:A150)) ->  | B153: =PROPER(IF('SD Teacher''s Data'!A151="","",'SD Teacher''s Data'!A151)) ->  | C153: =PROPER(IF('SD Teacher''s Data'!F151="","",'SD Teacher''s Data'!F151)) ->  | D153: =IF('SD Teacher''s Data'!E151="","",'SD Teacher''s Data'!E151) ->  | E153: =IF('SD Teacher''s Data'!K151="","",'SD Teacher''s Data'!K151) ->  | F153: =IF('SD Teacher''s Data'!B151="","",'SD Teacher''s Data'!B151) ->  | L153: =IF('SD Teacher''s Data'!J151="","",'SD Teacher''s Data'!J151) -> 
A154: =IF(Table1[[#This Row],[नाम]]="","",ROWS($A$1:A151)) ->  | B154: =PROPER(IF('SD Teacher''s Data'!A152="","",'SD Teacher''s Data'!A152)) ->  | C154: =PROPER(IF('SD Teacher''s Data'!F152="","",'SD Teacher''s Data'!F152)) ->  | D154: =IF('SD Teacher''s Data'!E152="","",'SD Teacher''s Data'!E152) ->  | E154: =IF('SD Teacher''s Data'!K152="","",'SD Teacher''s Data'!K152) ->  | F154: =IF('SD Teacher''s Data'!B152="","",'SD Teacher''s Data'!B152) ->  | L154: =IF('SD Teacher''s Data'!J152="","",'SD Teacher''s Data'!J152) -> 
A155: =IF(Table1[[#This Row],[नाम]]="","",ROWS($A$1:A152)) ->  | B155: =PROPER(IF('SD Teacher''s Data'!A153="","",'SD Teacher''s Data'!A153)) ->  | C155: =PROPER(IF('SD Teacher''s Data'!F153="","",'SD Teacher''s Data'!F153)) ->  | D155: =IF('SD Teacher''s Data'!E153="","",'SD Teacher''s Data'!E153) ->  | E155: =IF('SD Teacher''s Data'!K153="","",'SD Teacher''s Data'!K153) ->  | F155: =IF('SD Teacher''s Data'!B153="","",'SD Teacher''s Data'!B153) ->  | L155: =IF('SD Teacher''s Data'!J153="","",'SD Teacher''s Data'!J153) -> 
A156: =IF(Table1[[#This Row],[नाम]]="","",ROWS($A$1:A153)) ->  | B156: =PROPER(IF('SD Teacher''s Data'!A154="","",'SD Teacher''s Data'!A154)) ->  | C156: =PROPER(IF('SD Teacher''s Data'!F154="","",'SD Teacher''s Data'!F154)) ->  | D156: =IF('SD Teacher''s Data'!E154="","",'SD Teacher''s Data'!E154) ->  | E156: =IF('SD Teacher''s Data'!K154="","",'SD Teacher''s Data'!K154) ->  | F156: =IF('SD Teacher''s Data'!B154="","",'SD Teacher''s Data'!B154) ->  | L156: =IF('SD Teacher''s Data'!J154="","",'SD Teacher''s Data'!J154) -> 
A157: =IF(Table1[[#This Row],[नाम]]="","",ROWS($A$1:A154)) ->  | B157: =PROPER(IF('SD Teacher''s Data'!A155="","",'SD Teacher''s Data'!A155)) ->  | C157: =PROPER(IF('SD Teacher''s Data'!F155="","",'SD Teacher''s Data'!F155)) ->  | D157: =IF('SD Teacher''s Data'!E155="","",'SD Teacher''s Data'!E155) ->  | E157: =IF('SD Teacher''s Data'!K155="","",'SD Teacher''s Data'!K155) ->  | F157: =IF('SD Teacher''s Data'!B155="","",'SD Teacher''s Data'!B155) ->  | L157: =IF('SD Teacher''s Data'!J155="","",'SD Teacher''s Data'!J155) -> 
A158: =IF(Table1[[#This Row],[नाम]]="","",ROWS($A$1:A155)) ->  | B158: =PROPER(IF('SD Teacher''s Data'!A156="","",'SD Teacher''s Data'!A156)) ->  | C158: =PROPER(IF('SD Teacher''s Data'!F156="","",'SD Teacher''s Data'!F156)) ->  | D158: =IF('SD Teacher''s Data'!E156="","",'SD Teacher''s Data'!E156) ->  | E158: =IF('SD Teacher''s Data'!K156="","",'SD Teacher''s Data'!K156) ->  | F158: =IF('SD Teacher''s Data'!B156="","",'SD Teacher''s Data'!B156) ->  | L158: =IF('SD Teacher''s Data'!J156="","",'SD Teacher''s Data'!J156) -> 
A159: =IF(Table1[[#This Row],[नाम]]="","",ROWS($A$1:A156)) ->  | B159: =PROPER(IF('SD Teacher''s Data'!A157="","",'SD Teacher''s Data'!A157)) ->  | C159: =PROPER(IF('SD Teacher''s Data'!F157="","",'SD Teacher''s Data'!F157)) ->  | D159: =IF('SD Teacher''s Data'!E157="","",'SD Teacher''s Data'!E157) ->  | E159: =IF('SD Teacher''s Data'!K157="","",'SD Teacher''s Data'!K157) ->  | F159: =IF('SD Teacher''s Data'!B157="","",'SD Teacher''s Data'!B157) ->  | L159: =IF('SD Teacher''s Data'!J157="","",'SD Teacher''s Data'!J157) -> 
A160: =IF(Table1[[#This Row],[नाम]]="","",ROWS($A$1:A157)) ->  | B160: =PROPER(IF('SD Teacher''s Data'!A158="","",'SD Teacher''s Data'!A158)) ->  | C160: =PROPER(IF('SD Teacher''s Data'!F158="","",'SD Teacher''s Data'!F158)) ->  | D160: =IF('SD Teacher''s Data'!E158="","",'SD Teacher''s Data'!E158) ->  | E160: =IF('SD Teacher''s Data'!K158="","",'SD Teacher''s Data'!K158) ->  | F160: =IF('SD Teacher''s Data'!B158="","",'SD Teacher''s Data'!B158) ->  | L160: =IF('SD Teacher''s Data'!J158="","",'SD Teacher''s Data'!J158) -> 
A161: =IF(Table1[[#This Row],[नाम]]="","",ROWS($A$1:A158)) ->  | B161: =PROPER(IF('SD Teacher''s Data'!A159="","",'SD Teacher''s Data'!A159)) ->  | C161: =PROPER(IF('SD Teacher''s Data'!F159="","",'SD Teacher''s Data'!F159)) ->  | D161: =IF('SD Teacher''s Data'!E159="","",'SD Teacher''s Data'!E159) ->  | E161: =IF('SD Teacher''s Data'!K159="","",'SD Teacher''s Data'!K159) ->  | F161: =IF('SD Teacher''s Data'!B159="","",'SD Teacher''s Data'!B159) ->  | L161: =IF('SD Teacher''s Data'!J159="","",'SD Teacher''s Data'!J159) -> 
A162: =IF(Table1[[#This Row],[नाम]]="","",ROWS($A$1:A159)) ->  | B162: =PROPER(IF('SD Teacher''s Data'!A160="","",'SD Teacher''s Data'!A160)) ->  | C162: =PROPER(IF('SD Teacher''s Data'!F160="","",'SD Teacher''s Data'!F160)) ->  | D162: =IF('SD Teacher''s Data'!E160="","",'SD Teacher''s Data'!E160) ->  | E162: =IF('SD Teacher''s Data'!K160="","",'SD Teacher''s Data'!K160) ->  | F162: =IF('SD Teacher''s Data'!B160="","",'SD Teacher''s Data'!B160) ->  | L162: =IF('SD Teacher''s Data'!J160="","",'SD Teacher''s Data'!J160) -> 
A163: =IF(Table1[[#This Row],[नाम]]="","",ROWS($A$1:A160)) ->  | B163: =PROPER(IF('SD Teacher''s Data'!A161="","",'SD Teacher''s Data'!A161)) ->  | C163: =PROPER(IF('SD Teacher''s Data'!F161="","",'SD Teacher''s Data'!F161)) ->  | D163: =IF('SD Teacher''s Data'!E161="","",'SD Teacher''s Data'!E161) ->  | E163: =IF('SD Teacher''s Data'!K161="","",'SD Teacher''s Data'!K161) ->  | F163: =IF('SD Teacher''s Data'!B161="","",'SD Teacher''s Data'!B161) ->  | L163: =IF('SD Teacher''s Data'!J161="","",'SD Teacher''s Data'!J161) -> 
A164: =IF(Table1[[#This Row],[नाम]]="","",ROWS($A$1:A161)) ->  | B164: =PROPER(IF('SD Teacher''s Data'!A162="","",'SD Teacher''s Data'!A162)) ->  | C164: =PROPER(IF('SD Teacher''s Data'!F162="","",'SD Teacher''s Data'!F162)) ->  | D164: =IF('SD Teacher''s Data'!E162="","",'SD Teacher''s Data'!E162) ->  | E164: =IF('SD Teacher''s Data'!K162="","",'SD Teacher''s Data'!K162) ->  | F164: =IF('SD Teacher''s Data'!B162="","",'SD Teacher''s Data'!B162) ->  | L164: =IF('SD Teacher''s Data'!J162="","",'SD Teacher''s Data'!J162) -> 
A165: =IF(Table1[[#This Row],[नाम]]="","",ROWS($A$1:A162)) ->  | B165: =PROPER(IF('SD Teacher''s Data'!A163="","",'SD Teacher''s Data'!A163)) ->  | C165: =PROPER(IF('SD Teacher''s Data'!F163="","",'SD Teacher''s Data'!F163)) ->  | D165: =IF('SD Teacher''s Data'!E163="","",'SD Teacher''s Data'!E163) ->  | E165: =IF('SD Teacher''s Data'!K163="","",'SD Teacher''s Data'!K163) ->  | F165: =IF('SD Teacher''s Data'!B163="","",'SD Teacher''s Data'!B163) ->  | L165: =IF('SD Teacher''s Data'!J163="","",'SD Teacher''s Data'!J163) -> 
A166: =IF(Table1[[#This Row],[नाम]]="","",ROWS($A$1:A163)) ->  | B166: =PROPER(IF('SD Teacher''s Data'!A164="","",'SD Teacher''s Data'!A164)) ->  | C166: =PROPER(IF('SD Teacher''s Data'!F164="","",'SD Teacher''s Data'!F164)) ->  | D166: =IF('SD Teacher''s Data'!E164="","",'SD Teacher''s Data'!E164) ->  | E166: =IF('SD Teacher''s Data'!K164="","",'SD Teacher''s Data'!K164) ->  | F166: =IF('SD Teacher''s Data'!B164="","",'SD Teacher''s Data'!B164) ->  | L166: =IF('SD Teacher''s Data'!J164="","",'SD Teacher''s Data'!J164) -> 
A167: =IF(Table1[[#This Row],[नाम]]="","",ROWS($A$1:A164)) ->  | B167: =PROPER(IF('SD Teacher''s Data'!A165="","",'SD Teacher''s Data'!A165)) ->  | C167: =PROPER(IF('SD Teacher''s Data'!F165="","",'SD Teacher''s Data'!F165)) ->  | D167: =IF('SD Teacher''s Data'!E165="","",'SD Teacher''s Data'!E165) ->  | E167: =IF('SD Teacher''s Data'!K165="","",'SD Teacher''s Data'!K165) ->  | F167: =IF('SD Teacher''s Data'!B165="","",'SD Teacher''s Data'!B165) ->  | L167: =IF('SD Teacher''s Data'!J165="","",'SD Teacher''s Data'!J165) -> 
A168: =IF(Table1[[#This Row],[नाम]]="","",ROWS($A$1:A165)) ->  | B168: =PROPER(IF('SD Teacher''s Data'!A166="","",'SD Teacher''s Data'!A166)) ->  | C168: =PROPER(IF('SD Teacher''s Data'!F166="","",'SD Teacher''s Data'!F166)) ->  | D168: =IF('SD Teacher''s Data'!E166="","",'SD Teacher''s Data'!E166) ->  | E168: =IF('SD Teacher''s Data'!K166="","",'SD Teacher''s Data'!K166) ->  | F168: =IF('SD Teacher''s Data'!B166="","",'SD Teacher''s Data'!B166) ->  | L168: =IF('SD Teacher''s Data'!J166="","",'SD Teacher''s Data'!J166) -> 
A169: =IF(Table1[[#This Row],[नाम]]="","",ROWS($A$1:A166)) ->  | B169: =PROPER(IF('SD Teacher''s Data'!A167="","",'SD Teacher''s Data'!A167)) ->  | C169: =PROPER(IF('SD Teacher''s Data'!F167="","",'SD Teacher''s Data'!F167)) ->  | D169: =IF('SD Teacher''s Data'!E167="","",'SD Teacher''s Data'!E167) ->  | E169: =IF('SD Teacher''s Data'!K167="","",'SD Teacher''s Data'!K167) ->  | F169: =IF('SD Teacher''s Data'!B167="","",'SD Teacher''s Data'!B167) ->  | L169: =IF('SD Teacher''s Data'!J167="","",'SD Teacher''s Data'!J167) -> 
A170: =IF(Table1[[#This Row],[नाम]]="","",ROWS($A$1:A167)) ->  | B170: =PROPER(IF('SD Teacher''s Data'!A168="","",'SD Teacher''s Data'!A168)) ->  | C170: =PROPER(IF('SD Teacher''s Data'!F168="","",'SD Teacher''s Data'!F168)) ->  | D170: =IF('SD Teacher''s Data'!E168="","",'SD Teacher''s Data'!E168) ->  | E170: =IF('SD Teacher''s Data'!K168="","",'SD Teacher''s Data'!K168) ->  | F170: =IF('SD Teacher''s Data'!B168="","",'SD Teacher''s Data'!B168) ->  | L170: =IF('SD Teacher''s Data'!J168="","",'SD Teacher''s Data'!J168) -> 
A171: =IF(Table1[[#This Row],[नाम]]="","",ROWS($A$1:A168)) ->  | B171: =PROPER(IF('SD Teacher''s Data'!A169="","",'SD Teacher''s Data'!A169)) ->  | C171: =PROPER(IF('SD Teacher''s Data'!F169="","",'SD Teacher''s Data'!F169)) ->  | D171: =IF('SD Teacher''s Data'!E169="","",'SD Teacher''s Data'!E169) ->  | E171: =IF('SD Teacher''s Data'!K169="","",'SD Teacher''s Data'!K169) ->  | F171: =IF('SD Teacher''s Data'!B169="","",'SD Teacher''s Data'!B169) ->  | L171: =IF('SD Teacher''s Data'!J169="","",'SD Teacher''s Data'!J169) -> 
A172: =IF(Table1[[#This Row],[नाम]]="","",ROWS($A$1:A169)) ->  | B172: =PROPER(IF('SD Teacher''s Data'!A170="","",'SD Teacher''s Data'!A170)) ->  | C172: =PROPER(IF('SD Teacher''s Data'!F170="","",'SD Teacher''s Data'!F170)) ->  | D172: =IF('SD Teacher''s Data'!E170="","",'SD Teacher''s Data'!E170) ->  | E172: =IF('SD Teacher''s Data'!K170="","",'SD Teacher''s Data'!K170) ->  | F172: =IF('SD Teacher''s Data'!B170="","",'SD Teacher''s Data'!B170) ->  | L172: =IF('SD Teacher''s Data'!J170="","",'SD Teacher''s Data'!J170) -> 
A173: =IF(Table1[[#This Row],[नाम]]="","",ROWS($A$1:A170)) ->  | B173: =PROPER(IF('SD Teacher''s Data'!A171="","",'SD Teacher''s Data'!A171)) ->  | C173: =PROPER(IF('SD Teacher''s Data'!F171="","",'SD Teacher''s Data'!F171)) ->  | D173: =IF('SD Teacher''s Data'!E171="","",'SD Teacher''s Data'!E171) ->  | E173: =IF('SD Teacher''s Data'!K171="","",'SD Teacher''s Data'!K171) ->  | F173: =IF('SD Teacher''s Data'!B171="","",'SD Teacher''s Data'!B171) ->  | L173: =IF('SD Teacher''s Data'!J171="","",'SD Teacher''s Data'!J171) -> 
A174: =IF(Table1[[#This Row],[नाम]]="","",ROWS($A$1:A171)) ->  | B174: =PROPER(IF('SD Teacher''s Data'!A172="","",'SD Teacher''s Data'!A172)) ->  | C174: =PROPER(IF('SD Teacher''s Data'!F172="","",'SD Teacher''s Data'!F172)) ->  | D174: =IF('SD Teacher''s Data'!E172="","",'SD Teacher''s Data'!E172) ->  | E174: =IF('SD Teacher''s Data'!K172="","",'SD Teacher''s Data'!K172) ->  | F174: =IF('SD Teacher''s Data'!B172="","",'SD Teacher''s Data'!B172) ->  | L174: =IF('SD Teacher''s Data'!J172="","",'SD Teacher''s Data'!J172) -> 
A175: =IF(Table1[[#This Row],[नाम]]="","",ROWS($A$1:A172)) ->  | B175: =PROPER(IF('SD Teacher''s Data'!A173="","",'SD Teacher''s Data'!A173)) ->  | C175: =PROPER(IF('SD Teacher''s Data'!F173="","",'SD Teacher''s Data'!F173)) ->  | D175: =IF('SD Teacher''s Data'!E173="","",'SD Teacher''s Data'!E173) ->  | E175: =IF('SD Teacher''s Data'!K173="","",'SD Teacher''s Data'!K173) ->  | F175: =IF('SD Teacher''s Data'!B173="","",'SD Teacher''s Data'!B173) ->  | L175: =IF('SD Teacher''s Data'!J173="","",'SD Teacher''s Data'!J173) -> 
A176: =IF(Table1[[#This Row],[नाम]]="","",ROWS($A$1:A173)) ->  | B176: =PROPER(IF('SD Teacher''s Data'!A174="","",'SD Teacher''s Data'!A174)) ->  | C176: =PROPER(IF('SD Teacher''s Data'!F174="","",'SD Teacher''s Data'!F174)) ->  | D176: =IF('SD Teacher''s Data'!E174="","",'SD Teacher''s Data'!E174) ->  | E176: =IF('SD Teacher''s Data'!K174="","",'SD Teacher''s Data'!K174) ->  | F176: =IF('SD Teacher''s Data'!B174="","",'SD Teacher''s Data'!B174) ->  | L176: =IF('SD Teacher''s Data'!J174="","",'SD Teacher''s Data'!J174) -> 
A177: =IF(Table1[[#This Row],[नाम]]="","",ROWS($A$1:A174)) ->  | B177: =PROPER(IF('SD Teacher''s Data'!A175="","",'SD Teacher''s Data'!A175)) ->  | C177: =PROPER(IF('SD Teacher''s Data'!F175="","",'SD Teacher''s Data'!F175)) ->  | D177: =IF('SD Teacher''s Data'!E175="","",'SD Teacher''s Data'!E175) ->  | E177: =IF('SD Teacher''s Data'!K175="","",'SD Teacher''s Data'!K175) ->  | F177: =IF('SD Teacher''s Data'!B175="","",'SD Teacher''s Data'!B175) ->  | L177: =IF('SD Teacher''s Data'!J175="","",'SD Teacher''s Data'!J175) -> 
A178: =IF(Table1[[#This Row],[नाम]]="","",ROWS($A$1:A175)) ->  | B178: =PROPER(IF('SD Teacher''s Data'!A176="","",'SD Teacher''s Data'!A176)) ->  | C178: =PROPER(IF('SD Teacher''s Data'!F176="","",'SD Teacher''s Data'!F176)) ->  | D178: =IF('SD Teacher''s Data'!E176="","",'SD Teacher''s Data'!E176) ->  | E178: =IF('SD Teacher''s Data'!K176="","",'SD Teacher''s Data'!K176) ->  | F178: =IF('SD Teacher''s Data'!B176="","",'SD Teacher''s Data'!B176) ->  | L178: =IF('SD Teacher''s Data'!J176="","",'SD Teacher''s Data'!J176) -> 
A179: =IF(Table1[[#This Row],[नाम]]="","",ROWS($A$1:A176)) ->  | B179: =PROPER(IF('SD Teacher''s Data'!A177="","",'SD Teacher''s Data'!A177)) ->  | C179: =PROPER(IF('SD Teacher''s Data'!F177="","",'SD Teacher''s Data'!F177)) ->  | D179: =IF('SD Teacher''s Data'!E177="","",'SD Teacher''s Data'!E177) ->  | E179: =IF('SD Teacher''s Data'!K177="","",'SD Teacher''s Data'!K177) ->  | F179: =IF('SD Teacher''s Data'!B177="","",'SD Teacher''s Data'!B177) ->  | L179: =IF('SD Teacher''s Data'!J177="","",'SD Teacher''s Data'!J177) -> 
A180: =IF(Table1[[#This Row],[नाम]]="","",ROWS($A$1:A177)) ->  | B180: =PROPER(IF('SD Teacher''s Data'!A178="","",'SD Teacher''s Data'!A178)) ->  | C180: =PROPER(IF('SD Teacher''s Data'!F178="","",'SD Teacher''s Data'!F178)) ->  | D180: =IF('SD Teacher''s Data'!E178="","",'SD Teacher''s Data'!E178) ->  | E180: =IF('SD Teacher''s Data'!K178="","",'SD Teacher''s Data'!K178) ->  | F180: =IF('SD Teacher''s Data'!B178="","",'SD Teacher''s Data'!B178) ->  | L180: =IF('SD Teacher''s Data'!J178="","",'SD Teacher''s Data'!J178) -> 
A181: =IF(Table1[[#This Row],[नाम]]="","",ROWS($A$1:A178)) ->  | B181: =PROPER(IF('SD Teacher''s Data'!A179="","",'SD Teacher''s Data'!A179)) ->  | C181: =PROPER(IF('SD Teacher''s Data'!F179="","",'SD Teacher''s Data'!F179)) ->  | D181: =IF('SD Teacher''s Data'!E179="","",'SD Teacher''s Data'!E179) ->  | E181: =IF('SD Teacher''s Data'!K179="","",'SD Teacher''s Data'!K179) ->  | F181: =IF('SD Teacher''s Data'!B179="","",'SD Teacher''s Data'!B179) ->  | L181: =IF('SD Teacher''s Data'!J179="","",'SD Teacher''s Data'!J179) -> 
A182: =IF(Table1[[#This Row],[नाम]]="","",ROWS($A$1:A179)) ->  | B182: =PROPER(IF('SD Teacher''s Data'!A180="","",'SD Teacher''s Data'!A180)) ->  | C182: =PROPER(IF('SD Teacher''s Data'!F180="","",'SD Teacher''s Data'!F180)) ->  | D182: =IF('SD Teacher''s Data'!E180="","",'SD Teacher''s Data'!E180) ->  | E182: =IF('SD Teacher''s Data'!K180="","",'SD Teacher''s Data'!K180) ->  | F182: =IF('SD Teacher''s Data'!B180="","",'SD Teacher''s Data'!B180) ->  | L182: =IF('SD Teacher''s Data'!J180="","",'SD Teacher''s Data'!J180) -> 
A183: =IF(Table1[[#This Row],[नाम]]="","",ROWS($A$1:A180)) ->  | B183: =PROPER(IF('SD Teacher''s Data'!A181="","",'SD Teacher''s Data'!A181)) ->  | C183: =PROPER(IF('SD Teacher''s Data'!F181="","",'SD Teacher''s Data'!F181)) ->  | D183: =IF('SD Teacher''s Data'!E181="","",'SD Teacher''s Data'!E181) ->  | E183: =IF('SD Teacher''s Data'!K181="","",'SD Teacher''s Data'!K181) ->  | F183: =IF('SD Teacher''s Data'!B181="","",'SD Teacher''s Data'!B181) ->  | L183: =IF('SD Teacher''s Data'!J181="","",'SD Teacher''s Data'!J181) -> 
A184: =IF(Table1[[#This Row],[नाम]]="","",ROWS($A$1:A181)) ->  | B184: =PROPER(IF('SD Teacher''s Data'!A182="","",'SD Teacher''s Data'!A182)) ->  | C184: =PROPER(IF('SD Teacher''s Data'!F182="","",'SD Teacher''s Data'!F182)) ->  | D184: =IF('SD Teacher''s Data'!E182="","",'SD Teacher''s Data'!E182) ->  | E184: =IF('SD Teacher''s Data'!K182="","",'SD Teacher''s Data'!K182) ->  | F184: =IF('SD Teacher''s Data'!B182="","",'SD Teacher''s Data'!B182) ->  | L184: =IF('SD Teacher''s Data'!J182="","",'SD Teacher''s Data'!J182) -> 
A185: =IF(Table1[[#This Row],[नाम]]="","",ROWS($A$1:A182)) ->  | B185: =PROPER(IF('SD Teacher''s Data'!A183="","",'SD Teacher''s Data'!A183)) ->  | C185: =PROPER(IF('SD Teacher''s Data'!F183="","",'SD Teacher''s Data'!F183)) ->  | D185: =IF('SD Teacher''s Data'!E183="","",'SD Teacher''s Data'!E183) ->  | E185: =IF('SD Teacher''s Data'!K183="","",'SD Teacher''s Data'!K183) ->  | F185: =IF('SD Teacher''s Data'!B183="","",'SD Teacher''s Data'!B183) ->  | L185: =IF('SD Teacher''s Data'!J183="","",'SD Teacher''s Data'!J183) -> 
A186: =IF(Table1[[#This Row],[नाम]]="","",ROWS($A$1:A183)) ->  | B186: =PROPER(IF('SD Teacher''s Data'!A184="","",'SD Teacher''s Data'!A184)) ->  | C186: =PROPER(IF('SD Teacher''s Data'!F184="","",'SD Teacher''s Data'!F184)) ->  | D186: =IF('SD Teacher''s Data'!E184="","",'SD Teacher''s Data'!E184) ->  | E186: =IF('SD Teacher''s Data'!K184="","",'SD Teacher''s Data'!K184) ->  | F186: =IF('SD Teacher''s Data'!B184="","",'SD Teacher''s Data'!B184) ->  | L186: =IF('SD Teacher''s Data'!J184="","",'SD Teacher''s Data'!J184) -> 
A187: =IF(Table1[[#This Row],[नाम]]="","",ROWS($A$1:A184)) ->  | B187: =PROPER(IF('SD Teacher''s Data'!A185="","",'SD Teacher''s Data'!A185)) ->  | C187: =PROPER(IF('SD Teacher''s Data'!F185="","",'SD Teacher''s Data'!F185)) ->  | D187: =IF('SD Teacher''s Data'!E185="","",'SD Teacher''s Data'!E185) ->  | E187: =IF('SD Teacher''s Data'!K185="","",'SD Teacher''s Data'!K185) ->  | F187: =IF('SD Teacher''s Data'!B185="","",'SD Teacher''s Data'!B185) ->  | L187: =IF('SD Teacher''s Data'!J185="","",'SD Teacher''s Data'!J185) -> 
A188: =IF(Table1[[#This Row],[नाम]]="","",ROWS($A$1:A185)) ->  | B188: =PROPER(IF('SD Teacher''s Data'!A186="","",'SD Teacher''s Data'!A186)) ->  | C188: =PROPER(IF('SD Teacher''s Data'!F186="","",'SD Teacher''s Data'!F186)) ->  | D188: =IF('SD Teacher''s Data'!E186="","",'SD Teacher''s Data'!E186) ->  | E188: =IF('SD Teacher''s Data'!K186="","",'SD Teacher''s Data'!K186) ->  | F188: =IF('SD Teacher''s Data'!B186="","",'SD Teacher''s Data'!B186) ->  | L188: =IF('SD Teacher''s Data'!J186="","",'SD Teacher''s Data'!J186) -> 
A189: =IF(Table1[[#This Row],[नाम]]="","",ROWS($A$1:A186)) ->  | B189: =PROPER(IF('SD Teacher''s Data'!A187="","",'SD Teacher''s Data'!A187)) ->  | C189: =PROPER(IF('SD Teacher''s Data'!F187="","",'SD Teacher''s Data'!F187)) ->  | D189: =IF('SD Teacher''s Data'!E187="","",'SD Teacher''s Data'!E187) ->  | E189: =IF('SD Teacher''s Data'!K187="","",'SD Teacher''s Data'!K187) ->  | F189: =IF('SD Teacher''s Data'!B187="","",'SD Teacher''s Data'!B187) ->  | L189: =IF('SD Teacher''s Data'!J187="","",'SD Teacher''s Data'!J187) -> 
A190: =IF(Table1[[#This Row],[नाम]]="","",ROWS($A$1:A187)) ->  | B190: =PROPER(IF('SD Teacher''s Data'!A188="","",'SD Teacher''s Data'!A188)) ->  | C190: =PROPER(IF('SD Teacher''s Data'!F188="","",'SD Teacher''s Data'!F188)) ->  | D190: =IF('SD Teacher''s Data'!E188="","",'SD Teacher''s Data'!E188) ->  | E190: =IF('SD Teacher''s Data'!K188="","",'SD Teacher''s Data'!K188) ->  | F190: =IF('SD Teacher''s Data'!B188="","",'SD Teacher''s Data'!B188) ->  | L190: =IF('SD Teacher''s Data'!J188="","",'SD Teacher''s Data'!J188) -> 
A191: =IF(Table1[[#This Row],[नाम]]="","",ROWS($A$1:A188)) ->  | B191: =PROPER(IF('SD Teacher''s Data'!A189="","",'SD Teacher''s Data'!A189)) ->  | C191: =PROPER(IF('SD Teacher''s Data'!F189="","",'SD Teacher''s Data'!F189)) ->  | D191: =IF('SD Teacher''s Data'!E189="","",'SD Teacher''s Data'!E189) ->  | E191: =IF('SD Teacher''s Data'!K189="","",'SD Teacher''s Data'!K189) ->  | F191: =IF('SD Teacher''s Data'!B189="","",'SD Teacher''s Data'!B189) ->  | L191: =IF('SD Teacher''s Data'!J189="","",'SD Teacher''s Data'!J189) -> 
A192: =IF(Table1[[#This Row],[नाम]]="","",ROWS($A$1:A189)) ->  | B192: =PROPER(IF('SD Teacher''s Data'!A190="","",'SD Teacher''s Data'!A190)) ->  | C192: =PROPER(IF('SD Teacher''s Data'!F190="","",'SD Teacher''s Data'!F190)) ->  | D192: =IF('SD Teacher''s Data'!E190="","",'SD Teacher''s Data'!E190) ->  | E192: =IF('SD Teacher''s Data'!K190="","",'SD Teacher''s Data'!K190) ->  | F192: =IF('SD Teacher''s Data'!B190="","",'SD Teacher''s Data'!B190) ->  | L192: =IF('SD Teacher''s Data'!J190="","",'SD Teacher''s Data'!J190) -> 
A193: =IF(Table1[[#This Row],[नाम]]="","",ROWS($A$1:A190)) ->  | B193: =PROPER(IF('SD Teacher''s Data'!A191="","",'SD Teacher''s Data'!A191)) ->  | C193: =PROPER(IF('SD Teacher''s Data'!F191="","",'SD Teacher''s Data'!F191)) ->  | D193: =IF('SD Teacher''s Data'!E191="","",'SD Teacher''s Data'!E191) ->  | E193: =IF('SD Teacher''s Data'!K191="","",'SD Teacher''s Data'!K191) ->  | F193: =IF('SD Teacher''s Data'!B191="","",'SD Teacher''s Data'!B191) ->  | L193: =IF('SD Teacher''s Data'!J191="","",'SD Teacher''s Data'!J191) -> 
A194: =IF(Table1[[#This Row],[नाम]]="","",ROWS($A$1:A191)) ->  | B194: =PROPER(IF('SD Teacher''s Data'!A192="","",'SD Teacher''s Data'!A192)) ->  | C194: =PROPER(IF('SD Teacher''s Data'!F192="","",'SD Teacher''s Data'!F192)) ->  | D194: =IF('SD Teacher''s Data'!E192="","",'SD Teacher''s Data'!E192) ->  | E194: =IF('SD Teacher''s Data'!K192="","",'SD Teacher''s Data'!K192) ->  | F194: =IF('SD Teacher''s Data'!B192="","",'SD Teacher''s Data'!B192) ->  | L194: =IF('SD Teacher''s Data'!J192="","",'SD Teacher''s Data'!J192) -> 
A195: =IF(Table1[[#This Row],[नाम]]="","",ROWS($A$1:A192)) ->  | B195: =PROPER(IF('SD Teacher''s Data'!A193="","",'SD Teacher''s Data'!A193)) ->  | C195: =PROPER(IF('SD Teacher''s Data'!F193="","",'SD Teacher''s Data'!F193)) ->  | D195: =IF('SD Teacher''s Data'!E193="","",'SD Teacher''s Data'!E193) ->  | E195: =IF('SD Teacher''s Data'!K193="","",'SD Teacher''s Data'!K193) ->  | F195: =IF('SD Teacher''s Data'!B193="","",'SD Teacher''s Data'!B193) ->  | L195: =IF('SD Teacher''s Data'!J193="","",'SD Teacher''s Data'!J193) -> 
A196: =IF(Table1[[#This Row],[नाम]]="","",ROWS($A$1:A193)) ->  | B196: =PROPER(IF('SD Teacher''s Data'!A194="","",'SD Teacher''s Data'!A194)) ->  | C196: =PROPER(IF('SD Teacher''s Data'!F194="","",'SD Teacher''s Data'!F194)) ->  | D196: =IF('SD Teacher''s Data'!E194="","",'SD Teacher''s Data'!E194) ->  | E196: =IF('SD Teacher''s Data'!K194="","",'SD Teacher''s Data'!K194) ->  | F196: =IF('SD Teacher''s Data'!B194="","",'SD Teacher''s Data'!B194) ->  | L196: =IF('SD Teacher''s Data'!J194="","",'SD Teacher''s Data'!J194) -> 
A197: =IF(Table1[[#This Row],[नाम]]="","",ROWS($A$1:A194)) ->  | B197: =PROPER(IF('SD Teacher''s Data'!A195="","",'SD Teacher''s Data'!A195)) ->  | C197: =PROPER(IF('SD Teacher''s Data'!F195="","",'SD Teacher''s Data'!F195)) ->  | D197: =IF('SD Teacher''s Data'!E195="","",'SD Teacher''s Data'!E195) ->  | E197: =IF('SD Teacher''s Data'!K195="","",'SD Teacher''s Data'!K195) ->  | F197: =IF('SD Teacher''s Data'!B195="","",'SD Teacher''s Data'!B195) ->  | L197: =IF('SD Teacher''s Data'!J195="","",'SD Teacher''s Data'!J195) -> 
A198: =IF(Table1[[#This Row],[नाम]]="","",ROWS($A$1:A195)) ->  | B198: =PROPER(IF('SD Teacher''s Data'!A196="","",'SD Teacher''s Data'!A196)) ->  | C198: =PROPER(IF('SD Teacher''s Data'!F196="","",'SD Teacher''s Data'!F196)) ->  | D198: =IF('SD Teacher''s Data'!E196="","",'SD Teacher''s Data'!E196) ->  | E198: =IF('SD Teacher''s Data'!K196="","",'SD Teacher''s Data'!K196) ->  | F198: =IF('SD Teacher''s Data'!B196="","",'SD Teacher''s Data'!B196) ->  | L198: =IF('SD Teacher''s Data'!J196="","",'SD Teacher''s Data'!J196) -> 
A199: =IF(Table1[[#This Row],[नाम]]="","",ROWS($A$1:A196)) ->  | B199: =PROPER(IF('SD Teacher''s Data'!A197="","",'SD Teacher''s Data'!A197)) ->  | C199: =PROPER(IF('SD Teacher''s Data'!F197="","",'SD Teacher''s Data'!F197)) ->  | D199: =IF('SD Teacher''s Data'!E197="","",'SD Teacher''s Data'!E197) ->  | E199: =IF('SD Teacher''s Data'!K197="","",'SD Teacher''s Data'!K197) ->  | F199: =IF('SD Teacher''s Data'!B197="","",'SD Teacher''s Data'!B197) ->  | L199: =IF('SD Teacher''s Data'!J197="","",'SD Teacher''s Data'!J197) -> 
A200: =IF(Table1[[#This Row],[नाम]]="","",ROWS($A$1:A197)) ->  | B200: =PROPER(IF('SD Teacher''s Data'!A198="","",'SD Teacher''s Data'!A198)) ->  | C200: =PROPER(IF('SD Teacher''s Data'!F198="","",'SD Teacher''s Data'!F198)) ->  | D200: =IF('SD Teacher''s Data'!E198="","",'SD Teacher''s Data'!E198) ->  | E200: =IF('SD Teacher''s Data'!K198="","",'SD Teacher''s Data'!K198) ->  | F200: =IF('SD Teacher''s Data'!B198="","",'SD Teacher''s Data'!B198) ->  | L200: =IF('SD Teacher''s Data'!J198="","",'SD Teacher''s Data'!J198) -> 
... 99 more rows

Sheet Bill and TV No.
A1: ='Emp. Data'!A1 -> Government Senior Secondary School, Rooppura
A2: Bill No. and TV No. Detail
A3: क्र.सं. | B3: माह का नाम | C3: बिल नं. | D3: डेट | E3: टी.वी. नं. | F3: डेट
A4: 1 | B4: APR | C4: 1 | D4: 2021-03-21 | E4: 6258 | F4: 2021-04-01
A5: 2 | B5: MAY | C5: 2 | D5: 2021-03-22 | E5: 6259 | F5: 2021-04-02
A6: 3 | B6: JUN | C6: 3 | D6: 2021-03-23 | E6: 6260 | F6: 2021-04-03
A7: 4 | B7: JUL | C7: 4 | D7: 2021-03-24 | E7: 6261 | F7: 2021-04-04
A8: 5 | B8: AUG | C8: 5 | D8: 2021-03-25 | E8: 6262 | F8: 2021-04-05
A9: 6 | B9: SEP | C9: 6 | D9: 2021-03-26 | E9: 6263 | F9: 2021-04-06
A10: 7 | B10: OCT | C10: 7 | D10: 2021-03-27 | E10: 6264 | F10: 2021-04-07
A11: 8 | B11: NOV | C11: 8 | D11: 2021-03-28 | E11: 6265 | F11: 2021-04-08
A12: 9 | B12: DEC | C12: 9 | D12: 2021-03-29 | E12: 6266 | F12: 2021-04-09
A13: 10 | B13: JAN | C13: 10 | D13: 2021-03-30 | E13: 6267 | F13: 2021-04-10
A14: 11 | B14: FEB | C14: 11 | D14: 2021-03-31 | E14: 6268 | F14: 2021-04-11
A15: 12 | B15: MAR | C15: 12 | D15: 2021-04-01 | E15: 6269 | F15: 2021-04-12

Sheet Allowances
A1: ='Emp. Data'!A1 -> Government Senior Secondary School, Rooppura
A2: Allowances Data
A3: क्र.सं. | B3: नाम | C3: मार्च मूल वेतन | D3: अवकाश वेतन | E3: विशेष वेतन | F3: विकलांग भत्ता | G3: शहरी भत्ता | H3: अन्य 1 | I3: अन्य 2 | J3: अन्य 3 | K3: योग
A4: =IF(Table2[[#This Row],[नाम]]="","",ROWS($A$1:A1)) -> 1 | B4: =PROPER(IF(Table1[[#This Row],[नाम]]="","",Table1[[#This Row],[नाम]])) -> Aditya Jakhad | C4: 14600 | K4: =SUM(Table2[[#This Row],[मार्च मूल वेतन]:[अन्य 3]]) -> 14600
A5: =IF(Table2[[#This Row],[नाम]]="","",ROWS($A$1:A2)) -> 2 | B5: =PROPER(IF(Table1[[#This Row],[नाम]]="","",Table1[[#This Row],[नाम]])) -> Ashwini Kumar | C5: 43800 | K5: =SUM(Table2[[#This Row],[मार्च मूल वेतन]:[अन्य 3]]) -> 43800
A6: =IF(Table2[[#This Row],[नाम]]="","",ROWS($A$1:A3)) -> 3 | B6: =PROPER(IF(Table1[[#This Row],[नाम]]="","",Table1[[#This Row],[नाम]])) -> Banwari | K6: =SUM(Table2[[#This Row],[मार्च मूल वेतन]:[अन्य 3]]) -> 0
A7: =IF(Table2[[#This Row],[नाम]]="","",ROWS($A$1:A4)) -> 4 | B7: =PROPER(IF(Table1[[#This Row],[नाम]]="","",Table1[[#This Row],[नाम]])) -> Chetan Ram Riyar | K7: =SUM(Table2[[#This Row],[मार्च मूल वेतन]:[अन्य 3]]) -> 0
A8: =IF(Table2[[#This Row],[नाम]]="","",ROWS($A$1:A5)) -> 5 | B8: =PROPER(IF(Table1[[#This Row],[नाम]]="","",Table1[[#This Row],[नाम]])) -> Chhotoo Singh | K8: =SUM(Table2[[#This Row],[मार्च मूल वेतन]:[अन्य 3]]) -> 0
A9: =IF(Table2[[#This Row],[नाम]]="","",ROWS($A$1:A6)) -> 6 | B9: =PROPER(IF(Table1[[#This Row],[नाम]]="","",Table1[[#This Row],[नाम]])) -> Hemlata Sharma | K9: =SUM(Table2[[#This Row],[मार्च मूल वेतन]:[अन्य 3]]) -> 0
A10: =IF(Table2[[#This Row],[नाम]]="","",ROWS($A$1:A7)) -> 7 | B10: =PROPER(IF(Table1[[#This Row],[नाम]]="","",Table1[[#This Row],[नाम]])) -> Kamla Barupal | K10: =SUM(Table2[[#This Row],[मार्च मूल वेतन]:[अन्य 3]]) -> 0
A11: =IF(Table2[[#This Row],[नाम]]="","",ROWS($A$1:A8)) -> 8 | B11: =PROPER(IF(Table1[[#This Row],[नाम]]="","",Table1[[#This Row],[नाम]])) -> Kamla Sesma | K11: =SUM(Table2[[#This Row],[मार्च मूल वेतन]:[अन्य 3]]) -> 0
A12: =IF(Table2[[#This Row],[नाम]]="","",ROWS($A$1:A9)) -> 9 | B12: =PROPER(IF(Table1[[#This Row],[नाम]]="","",Table1[[#This Row],[नाम]])) -> Pramod Kanwar | K12: =SUM(Table2[[#This Row],[मार्च मूल वेतन]:[अन्य 3]]) -> 0
A13: =IF(Table2[[#This Row],[नाम]]="","",ROWS($A$1:A10)) -> 10 | B13: =PROPER(IF(Table1[[#This Row],[नाम]]="","",Table1[[#This Row],[नाम]])) -> Rajkumari Jhhala | K13: =SUM(Table2[[#This Row],[मार्च मूल वेतन]:[अन्य 3]]) -> 0
A14: =IF(Table2[[#This Row],[नाम]]="","",ROWS($A$1:A11)) -> 11 | B14: =PROPER(IF(Table1[[#This Row],[नाम]]="","",Table1[[#This Row],[नाम]])) -> Rameshwar Lal | K14: =SUM(Table2[[#This Row],[मार्च मूल वेतन]:[अन्य 3]]) -> 0
A15: =IF(Table2[[#This Row],[नाम]]="","",ROWS($A$1:A12)) -> 12 | B15: =PROPER(IF(Table1[[#This Row],[नाम]]="","",Table1[[#This Row],[नाम]])) -> Randheer Singh Shekhawat | K15: =SUM(Table2[[#This Row],[मार्च मूल वेतन]:[अन्य 3]]) -> 0
A16: =IF(Table2[[#This Row],[नाम]]="","",ROWS($A$1:A13)) -> 13 | B16: =PROPER(IF(Table1[[#This Row],[नाम]]="","",Table1[[#This Row],[नाम]])) -> Santosh Mohanpuriya | K16: =SUM(Table2[[#This Row],[मार्च मूल वेतन]:[अन्य 3]]) -> 0
A17: =IF(Table2[[#This Row],[नाम]]="","",ROWS($A$1:A14)) -> 14 | B17: =PROPER(IF(Table1[[#This Row],[नाम]]="","",Table1[[#This Row],[नाम]])) -> Saroj Sunariwal | K17: =SUM(Table2[[#This Row],[मार्च मूल वेतन]:[अन्य 3]]) -> 0
A18: =IF(Table2[[#This Row],[नाम]]="","",ROWS($A$1:A15)) -> 15 | B18: =PROPER(IF(Table1[[#This Row],[नाम]]="","",Table1[[#This Row],[नाम]])) -> Sita Ram Balai | K18: =SUM(Table2[[#This Row],[मार्च मूल वेतन]:[अन्य 3]]) -> 0
A19: =IF(Table2[[#This Row],[नाम]]="","",ROWS($A$1:A16)) -> 16 | B19: =PROPER(IF(Table1[[#This Row],[नाम]]="","",Table1[[#This Row],[नाम]])) -> Sukha Ram Muhal | K19: =SUM(Table2[[#This Row],[मार्च मूल वेतन]:[अन्य 3]]) -> 0
A20: =IF(Table2[[#This Row],[नाम]]="","",ROWS($A$1:A17)) ->  | B20: =PROPER(IF(Table1[[#This Row],[नाम]]="","",Table1[[#This Row],[नाम]])) ->  | K20: =SUM(Table2[[#This Row],[मार्च मूल वेतन]:[अन्य 3]]) -> 0
A21: =IF(Table2[[#This Row],[नाम]]="","",ROWS($A$1:A18)) ->  | B21: =PROPER(IF(Table1[[#This Row],[नाम]]="","",Table1[[#This Row],[नाम]])) ->  | K21: =SUM(Table2[[#This Row],[मार्च मूल वेतन]:[अन्य 3]]) -> 0
A22: =IF(Table2[[#This Row],[नाम]]="","",ROWS($A$1:A19)) ->  | B22: =PROPER(IF(Table1[[#This Row],[नाम]]="","",Table1[[#This Row],[नाम]])) ->  | K22: =SUM(Table2[[#This Row],[मार्च मूल वेतन]:[अन्य 3]]) -> 0
A23: =IF(Table2[[#This Row],[नाम]]="","",ROWS($A$1:A20)) ->  | B23: =PROPER(IF(Table1[[#This Row],[नाम]]="","",Table1[[#This Row],[नाम]])) ->  | K23: =SUM(Table2[[#This Row],[मार्च मूल वेतन]:[अन्य 3]]) -> 0
A24: =IF(Table2[[#This Row],[नाम]]="","",ROWS($A$1:A21)) ->  | B24: =PROPER(IF(Table1[[#This Row],[नाम]]="","",Table1[[#This Row],[नाम]])) ->  | K24: =SUM(Table2[[#This Row],[मार्च मूल वेतन]:[अन्य 3]]) -> 0
A25: =IF(Table2[[#This Row],[नाम]]="","",ROWS($A$1:A22)) ->  | B25: =PROPER(IF(Table1[[#This Row],[नाम]]="","",Table1[[#This Row],[नाम]])) ->  | K25: =SUM(Table2[[#This Row],[मार्च मूल वेतन]:[अन्य 3]]) -> 0
A26: =IF(Table2[[#This Row],[नाम]]="","",ROWS($A$1:A23)) ->  | B26: =PROPER(IF(Table1[[#This Row],[नाम]]="","",Table1[[#This Row],[नाम]])) ->  | K26: =SUM(Table2[[#This Row],[मार्च मूल वेतन]:[अन्य 3]]) -> 0
A27: =IF(Table2[[#This Row],[नाम]]="","",ROWS($A$1:A24)) ->  | B27: =PROPER(IF(Table1[[#This Row],[नाम]]="","",Table1[[#This Row],[नाम]])) ->  | K27: =SUM(Table2[[#This Row],[मार्च मूल वेतन]:[अन्य 3]]) -> 0
A28: =IF(Table2[[#This Row],[नाम]]="","",ROWS($A$1:A25)) ->  | B28: =PROPER(IF(Table1[[#This Row],[नाम]]="","",Table1[[#This Row],[नाम]])) ->  | K28: =SUM(Table2[[#This Row],[मार्च मूल वेतन]:[अन्य 3]]) -> 0
A29: =IF(Table2[[#This Row],[नाम]]="","",ROWS($A$1:A26)) ->  | B29: =PROPER(IF(Table1[[#This Row],[नाम]]="","",Table1[[#This Row],[नाम]])) ->  | K29: =SUM(Table2[[#This Row],[मार्च मूल वेतन]:[अन्य 3]]) -> 0
A30: =IF(Table2[[#This Row],[नाम]]="","",ROWS($A$1:A27)) ->  | B30: =PROPER(IF(Table1[[#This Row],[नाम]]="","",Table1[[#This Row],[नाम]])) ->  | K30: =SUM(Table2[[#This Row],[मार्च मूल वेतन]:[अन्य 3]]) -> 0
A31: =IF(Table2[[#This Row],[नाम]]="","",ROWS($A$1:A28)) ->  | B31: =PROPER(IF(Table1[[#This Row],[नाम]]="","",Table1[[#This Row],[नाम]])) ->  | K31: =SUM(Table2[[#This Row],[मार्च मूल वेतन]:[अन्य 3]]) -> 0
A32: =IF(Table2[[#This Row],[नाम]]="","",ROWS($A$1:A29)) ->  | B32: =PROPER(IF(Table1[[#This Row],[नाम]]="","",Table1[[#This Row],[नाम]])) ->  | K32: =SUM(Table2[[#This Row],[मार्च मूल वेतन]:[अन्य 3]]) -> 0
A33: =IF(Table2[[#This Row],[नाम]]="","",ROWS($A$1:A30)) ->  | B33: =PROPER(IF(Table1[[#This Row],[नाम]]="","",Table1[[#This Row],[नाम]])) ->  | K33: =SUM(Table2[[#This Row],[मार्च मूल वेतन]:[अन्य 3]]) -> 0
A34: =IF(Table2[[#This Row],[नाम]]="","",ROWS($A$1:A31)) ->  | B34: =PROPER(IF(Table1[[#This Row],[नाम]]="","",Table1[[#This Row],[नाम]])) ->  | K34: =SUM(Table2[[#This Row],[मार्च मूल वेतन]:[अन्य 3]]) -> 0
A35: =IF(Table2[[#This Row],[नाम]]="","",ROWS($A$1:A32)) ->  | B35: =PROPER(IF(Table1[[#This Row],[नाम]]="","",Table1[[#This Row],[नाम]])) ->  | K35: =SUM(Table2[[#This Row],[मार्च मूल वेतन]:[अन्य 3]]) -> 0
A36: =IF(Table2[[#This Row],[नाम]]="","",ROWS($A$1:A33)) ->  | B36: =PROPER(IF(Table1[[#This Row],[नाम]]="","",Table1[[#This Row],[नाम]])) ->  | K36: =SUM(Table2[[#This Row],[मार्च मूल वेतन]:[अन्य 3]]) -> 0
A37: =IF(Table2[[#This Row],[नाम]]="","",ROWS($A$1:A34)) ->  | B37: =PROPER(IF(Table1[[#This Row],[नाम]]="","",Table1[[#This Row],[नाम]])) ->  | K37: =SUM(Table2[[#This Row],[मार्च मूल वेतन]:[अन्य 3]]) -> 0
A38: =IF(Table2[[#This Row],[नाम]]="","",ROWS($A$1:A35)) ->  | B38: =PROPER(IF(Table1[[#This Row],[नाम]]="","",Table1[[#This Row],[नाम]])) ->  | K38: =SUM(Table2[[#This Row],[मार्च मूल वेतन]:[अन्य 3]]) -> 0
A39: =IF(Table2[[#This Row],[नाम]]="","",ROWS($A$1:A36)) ->  | B39: =PROPER(IF(Table1[[#This Row],[नाम]]="","",Table1[[#This Row],[नाम]])) ->  | K39: =SUM(Table2[[#This Row],[मार्च मूल वेतन]:[अन्य 3]]) -> 0
A40: =IF(Table2[[#This Row],[नाम]]="","",ROWS($A$1:A37)) ->  | B40: =PROPER(IF(Table1[[#This Row],[नाम]]="","",Table1[[#This Row],[नाम]])) ->  | K40: =SUM(Table2[[#This Row],[मार्च मूल वेतन]:[अन्य 3]]) -> 0
A41: =IF(Table2[[#This Row],[नाम]]="","",ROWS($A$1:A38)) ->  | B41: =PROPER(IF(Table1[[#This Row],[नाम]]="","",Table1[[#This Row],[नाम]])) ->  | K41: =SUM(Table2[[#This Row],[मार्च मूल वेतन]:[अन्य 3]]) -> 0
A42: =IF(Table2[[#This Row],[नाम]]="","",ROWS($A$1:A39)) ->  | B42: =PROPER(IF(Table1[[#This Row],[नाम]]="","",Table1[[#This Row],[नाम]])) ->  | K42: =SUM(Table2[[#This Row],[मार्च मूल वेतन]:[अन्य 3]]) -> 0
A43: =IF(Table2[[#This Row],[नाम]]="","",ROWS($A$1:A40)) ->  | B43: =PROPER(IF(Table1[[#This Row],[नाम]]="","",Table1[[#This Row],[नाम]])) ->  | K43: =SUM(Table2[[#This Row],[मार्च मूल वेतन]:[अन्य 3]]) -> 0
A44: =IF(Table2[[#This Row],[नाम]]="","",ROWS($A$1:A41)) ->  | B44: =PROPER(IF(Table1[[#This Row],[नाम]]="","",Table1[[#This Row],[नाम]])) ->  | K44: =SUM(Table2[[#This Row],[मार्च मूल वेतन]:[अन्य 3]]) -> 0
A45: =IF(Table2[[#This Row],[नाम]]="","",ROWS($A$1:A42)) ->  | B45: =PROPER(IF(Table1[[#This Row],[नाम]]="","",Table1[[#This Row],[नाम]])) ->  | K45: =SUM(Table2[[#This Row],[मार्च मूल वेतन]:[अन्य 3]]) -> 0
A46: =IF(Table2[[#This Row],[नाम]]="","",ROWS($A$1:A43)) ->  | B46: =PROPER(IF(Table1[[#This Row],[नाम]]="","",Table1[[#This Row],[नाम]])) ->  | K46: =SUM(Table2[[#This Row],[मार्च मूल वेतन]:[अन्य 3]]) -> 0
A47: =IF(Table2[[#This Row],[नाम]]="","",ROWS($A$1:A44)) ->  | B47: =PROPER(IF(Table1[[#This Row],[नाम]]="","",Table1[[#This Row],[नाम]])) ->  | K47: =SUM(Table2[[#This Row],[मार्च मूल वेतन]:[अन्य 3]]) -> 0
A48: =IF(Table2[[#This Row],[नाम]]="","",ROWS($A$1:A45)) ->  | B48: =PROPER(IF(Table1[[#This Row],[नाम]]="","",Table1[[#This Row],[नाम]])) ->  | K48: =SUM(Table2[[#This Row],[मार्च मूल वेतन]:[अन्य 3]]) -> 0
A49: =IF(Table2[[#This Row],[नाम]]="","",ROWS($A$1:A46)) ->  | B49: =PROPER(IF(Table1[[#This Row],[नाम]]="","",Table1[[#This Row],[नाम]])) ->  | K49: =SUM(Table2[[#This Row],[मार्च मूल वेतन]:[अन्य 3]]) -> 0
A50: =IF(Table2[[#This Row],[नाम]]="","",ROWS($A$1:A47)) ->  | B50: =PROPER(IF(Table1[[#This Row],[नाम]]="","",Table1[[#This Row],[नाम]])) ->  | K50: =SUM(Table2[[#This Row],[मार्च मूल वेतन]:[अन्य 3]]) -> 0
A51: =IF(Table2[[#This Row],[नाम]]="","",ROWS($A$1:A48)) ->  | B51: =PROPER(IF(Table1[[#This Row],[नाम]]="","",Table1[[#This Row],[नाम]])) ->  | K51: =SUM(Table2[[#This Row],[मार्च मूल वेतन]:[अन्य 3]]) -> 0
A52: =IF(Table2[[#This Row],[नाम]]="","",ROWS($A$1:A49)) ->  | B52: =PROPER(IF(Table1[[#This Row],[नाम]]="","",Table1[[#This Row],[नाम]])) ->  | K52: =SUM(Table2[[#This Row],[मार्च मूल वेतन]:[अन्य 3]]) -> 0
A53: =IF(Table2[[#This Row],[नाम]]="","",ROWS($A$1:A50)) ->  | B53: =PROPER(IF(Table1[[#This Row],[नाम]]="","",Table1[[#This Row],[नाम]])) ->  | K53: =SUM(Table2[[#This Row],[मार्च मूल वेतन]:[अन्य 3]]) -> 0
A54: =IF(Table2[[#This Row],[नाम]]="","",ROWS($A$1:A51)) ->  | B54: =PROPER(IF(Table1[[#This Row],[नाम]]="","",Table1[[#This Row],[नाम]])) ->  | K54: =SUM(Table2[[#This Row],[मार्च मूल वेतन]:[अन्य 3]]) -> 0
A55: =IF(Table2[[#This Row],[नाम]]="","",ROWS($A$1:A52)) ->  | B55: =PROPER(IF(Table1[[#This Row],[नाम]]="","",Table1[[#This Row],[नाम]])) ->  | K55: =SUM(Table2[[#This Row],[मार्च मूल वेतन]:[अन्य 3]]) -> 0
A56: =IF(Table2[[#This Row],[नाम]]="","",ROWS($A$1:A53)) ->  | B56: =PROPER(IF(Table1[[#This Row],[नाम]]="","",Table1[[#This Row],[नाम]])) ->  | K56: =SUM(Table2[[#This Row],[मार्च मूल वेतन]:[अन्य 3]]) -> 0
A57: =IF(Table2[[#This Row],[नाम]]="","",ROWS($A$1:A54)) ->  | B57: =PROPER(IF(Table1[[#This Row],[नाम]]="","",Table1[[#This Row],[नाम]])) ->  | K57: =SUM(Table2[[#This Row],[मार्च मूल वेतन]:[अन्य 3]]) -> 0
A58: =IF(Table2[[#This Row],[नाम]]="","",ROWS($A$1:A55)) ->  | B58: =PROPER(IF(Table1[[#This Row],[नाम]]="","",Table1[[#This Row],[नाम]])) ->  | K58: =SUM(Table2[[#This Row],[मार्च मूल वेतन]:[अन्य 3]]) -> 0
A59: =IF(Table2[[#This Row],[नाम]]="","",ROWS($A$1:A56)) ->  | B59: =PROPER(IF(Table1[[#This Row],[नाम]]="","",Table1[[#This Row],[नाम]])) ->  | K59: =SUM(Table2[[#This Row],[मार्च मूल वेतन]:[अन्य 3]]) -> 0
A60: =IF(Table2[[#This Row],[नाम]]="","",ROWS($A$1:A57)) ->  | B60: =PROPER(IF(Table1[[#This Row],[नाम]]="","",Table1[[#This Row],[नाम]])) ->  | K60: =SUM(Table2[[#This Row],[मार्च मूल वेतन]:[अन्य 3]]) -> 0
A61: =IF(Table2[[#This Row],[नाम]]="","",ROWS($A$1:A58)) ->  | B61: =PROPER(IF(Table1[[#This Row],[नाम]]="","",Table1[[#This Row],[नाम]])) ->  | K61: =SUM(Table2[[#This Row],[मार्च मूल वेतन]:[अन्य 3]]) -> 0
A62: =IF(Table2[[#This Row],[नाम]]="","",ROWS($A$1:A59)) ->  | B62: =PROPER(IF(Table1[[#This Row],[नाम]]="","",Table1[[#This Row],[नाम]])) ->  | K62: =SUM(Table2[[#This Row],[मार्च मूल वेतन]:[अन्य 3]]) -> 0
A63: =IF(Table2[[#This Row],[नाम]]="","",ROWS($A$1:A60)) ->  | B63: =PROPER(IF(Table1[[#This Row],[नाम]]="","",Table1[[#This Row],[नाम]])) ->  | K63: =SUM(Table2[[#This Row],[मार्च मूल वेतन]:[अन्य 3]]) -> 0
A64: =IF(Table2[[#This Row],[नाम]]="","",ROWS($A$1:A61)) ->  | B64: =PROPER(IF(Table1[[#This Row],[नाम]]="","",Table1[[#This Row],[नाम]])) ->  | K64: =SUM(Table2[[#This Row],[मार्च मूल वेतन]:[अन्य 3]]) -> 0
A65: =IF(Table2[[#This Row],[नाम]]="","",ROWS($A$1:A62)) ->  | B65: =PROPER(IF(Table1[[#This Row],[नाम]]="","",Table1[[#This Row],[नाम]])) ->  | K65: =SUM(Table2[[#This Row],[मार्च मूल वेतन]:[अन्य 3]]) -> 0
A66: =IF(Table2[[#This Row],[नाम]]="","",ROWS($A$1:A63)) ->  | B66: =PROPER(IF(Table1[[#This Row],[नाम]]="","",Table1[[#This Row],[नाम]])) ->  | K66: =SUM(Table2[[#This Row],[मार्च मूल वेतन]:[अन्य 3]]) -> 0
A67: =IF(Table2[[#This Row],[नाम]]="","",ROWS($A$1:A64)) ->  | B67: =PROPER(IF(Table1[[#This Row],[नाम]]="","",Table1[[#This Row],[नाम]])) ->  | K67: =SUM(Table2[[#This Row],[मार्च मूल वेतन]:[अन्य 3]]) -> 0
A68: =IF(Table2[[#This Row],[नाम]]="","",ROWS($A$1:A65)) ->  | B68: =PROPER(IF(Table1[[#This Row],[नाम]]="","",Table1[[#This Row],[नाम]])) ->  | K68: =SUM(Table2[[#This Row],[मार्च मूल वेतन]:[अन्य 3]]) -> 0
A69: =IF(Table2[[#This Row],[नाम]]="","",ROWS($A$1:A66)) ->  | B69: =PROPER(IF(Table1[[#This Row],[नाम]]="","",Table1[[#This Row],[नाम]])) ->  | K69: =SUM(Table2[[#This Row],[मार्च मूल वेतन]:[अन्य 3]]) -> 0
A70: =IF(Table2[[#This Row],[नाम]]="","",ROWS($A$1:A67)) ->  | B70: =PROPER(IF(Table1[[#This Row],[नाम]]="","",Table1[[#This Row],[नाम]])) ->  | K70: =SUM(Table2[[#This Row],[मार्च मूल वेतन]:[अन्य 3]]) -> 0
A71: =IF(Table2[[#This Row],[नाम]]="","",ROWS($A$1:A68)) ->  | B71: =PROPER(IF(Table1[[#This Row],[नाम]]="","",Table1[[#This Row],[नाम]])) ->  | K71: =SUM(Table2[[#This Row],[मार्च मूल वेतन]:[अन्य 3]]) -> 0
A72: =IF(Table2[[#This Row],[नाम]]="","",ROWS($A$1:A69)) ->  | B72: =PROPER(IF(Table1[[#This Row],[नाम]]="","",Table1[[#This Row],[नाम]])) ->  | K72: =SUM(Table2[[#This Row],[मार्च मूल वेतन]:[अन्य 3]]) -> 0
A73: =IF(Table2[[#This Row],[नाम]]="","",ROWS($A$1:A70)) ->  | B73: =PROPER(IF(Table1[[#This Row],[नाम]]="","",Table1[[#This Row],[नाम]])) ->  | K73: =SUM(Table2[[#This Row],[मार्च मूल वेतन]:[अन्य 3]]) -> 0
A74: =IF(Table2[[#This Row],[नाम]]="","",ROWS($A$1:A71)) ->  | B74: =PROPER(IF(Table1[[#This Row],[नाम]]="","",Table1[[#This Row],[नाम]])) ->  | K74: =SUM(Table2[[#This Row],[मार्च मूल वेतन]:[अन्य 3]]) -> 0
A75: =IF(Table2[[#This Row],[नाम]]="","",ROWS($A$1:A72)) ->  | B75: =PROPER(IF(Table1[[#This Row],[नाम]]="","",Table1[[#This Row],[नाम]])) ->  | K75: =SUM(Table2[[#This Row],[मार्च मूल वेतन]:[अन्य 3]]) -> 0
A76: =IF(Table2[[#This Row],[नाम]]="","",ROWS($A$1:A73)) ->  | B76: =PROPER(IF(Table1[[#This Row],[नाम]]="","",Table1[[#This Row],[नाम]])) ->  | K76: =SUM(Table2[[#This Row],[मार्च मूल वेतन]:[अन्य 3]]) -> 0
A77: =IF(Table2[[#This Row],[नाम]]="","",ROWS($A$1:A74)) ->  | B77: =PROPER(IF(Table1[[#This Row],[नाम]]="","",Table1[[#This Row],[नाम]])) ->  | K77: =SUM(Table2[[#This Row],[मार्च मूल वेतन]:[अन्य 3]]) -> 0
A78: =IF(Table2[[#This Row],[नाम]]="","",ROWS($A$1:A75)) ->  | B78: =PROPER(IF(Table1[[#This Row],[नाम]]="","",Table1[[#This Row],[नाम]])) ->  | K78: =SUM(Table2[[#This Row],[मार्च मूल वेतन]:[अन्य 3]]) -> 0
A79: =IF(Table2[[#This Row],[नाम]]="","",ROWS($A$1:A76)) ->  | B79: =PROPER(IF(Table1[[#This Row],[नाम]]="","",Table1[[#This Row],[नाम]])) ->  | K79: =SUM(Table2[[#This Row],[मार्च मूल वेतन]:[अन्य 3]]) -> 0
A80: =IF(Table2[[#This Row],[नाम]]="","",ROWS($A$1:A77)) ->  | B80: =PROPER(IF(Table1[[#This Row],[नाम]]="","",Table1[[#This Row],[नाम]])) ->  | K80: =SUM(Table2[[#This Row],[मार्च मूल वेतन]:[अन्य 3]]) -> 0
A81: =IF(Table2[[#This Row],[नाम]]="","",ROWS($A$1:A78)) ->  | B81: =PROPER(IF(Table1[[#This Row],[नाम]]="","",Table1[[#This Row],[नाम]])) ->  | K81: =SUM(Table2[[#This Row],[मार्च मूल वेतन]:[अन्य 3]]) -> 0
A82: =IF(Table2[[#This Row],[नाम]]="","",ROWS($A$1:A79)) ->  | B82: =PROPER(IF(Table1[[#This Row],[नाम]]="","",Table1[[#This Row],[नाम]])) ->  | K82: =SUM(Table2[[#This Row],[मार्च मूल वेतन]:[अन्य 3]]) -> 0
A83: =IF(Table2[[#This Row],[नाम]]="","",ROWS($A$1:A80)) ->  | B83: =PROPER(IF(Table1[[#This Row],[नाम]]="","",Table1[[#This Row],[नाम]])) ->  | K83: =SUM(Table2[[#This Row],[मार्च मूल वेतन]:[अन्य 3]]) -> 0
A84: =IF(Table2[[#This Row],[नाम]]="","",ROWS($A$1:A81)) ->  | B84: =PROPER(IF(Table1[[#This Row],[नाम]]="","",Table1[[#This Row],[नाम]])) ->  | K84: =SUM(Table2[[#This Row],[मार्च मूल वेतन]:[अन्य 3]]) -> 0
A85: =IF(Table2[[#This Row],[नाम]]="","",ROWS($A$1:A82)) ->  | B85: =PROPER(IF(Table1[[#This Row],[नाम]]="","",Table1[[#This Row],[नाम]])) ->  | K85: =SUM(Table2[[#This Row],[मार्च मूल वेतन]:[अन्य 3]]) -> 0
A86: =IF(Table2[[#This Row],[नाम]]="","",ROWS($A$1:A83)) ->  | B86: =PROPER(IF(Table1[[#This Row],[नाम]]="","",Table1[[#This Row],[नाम]])) ->  | K86: =SUM(Table2[[#This Row],[मार्च मूल वेतन]:[अन्य 3]]) -> 0
A87: =IF(Table2[[#This Row],[नाम]]="","",ROWS($A$1:A84)) ->  | B87: =PROPER(IF(Table1[[#This Row],[नाम]]="","",Table1[[#This Row],[नाम]])) ->  | K87: =SUM(Table2[[#This Row],[मार्च मूल वेतन]:[अन्य 3]]) -> 0
A88: =IF(Table2[[#This Row],[नाम]]="","",ROWS($A$1:A85)) ->  | B88: =PROPER(IF(Table1[[#This Row],[नाम]]="","",Table1[[#This Row],[नाम]])) ->  | K88: =SUM(Table2[[#This Row],[मार्च मूल वेतन]:[अन्य 3]]) -> 0
A89: =IF(Table2[[#This Row],[नाम]]="","",ROWS($A$1:A86)) ->  | B89: =PROPER(IF(Table1[[#This Row],[नाम]]="","",Table1[[#This Row],[नाम]])) ->  | K89: =SUM(Table2[[#This Row],[मार्च मूल वेतन]:[अन्य 3]]) -> 0
A90: =IF(Table2[[#This Row],[नाम]]="","",ROWS($A$1:A87)) ->  | B90: =PROPER(IF(Table1[[#This Row],[नाम]]="","",Table1[[#This Row],[नाम]])) ->  | K90: =SUM(Table2[[#This Row],[मार्च मूल वेतन]:[अन्य 3]]) -> 0
A91: =IF(Table2[[#This Row],[नाम]]="","",ROWS($A$1:A88)) ->  | B91: =PROPER(IF(Table1[[#This Row],[नाम]]="","",Table1[[#This Row],[नाम]])) ->  | K91: =SUM(Table2[[#This Row],[मार्च मूल वेतन]:[अन्य 3]]) -> 0
A92: =IF(Table2[[#This Row],[नाम]]="","",ROWS($A$1:A89)) ->  | B92: =PROPER(IF(Table1[[#This Row],[नाम]]="","",Table1[[#This Row],[नाम]])) ->  | K92: =SUM(Table2[[#This Row],[मार्च मूल वेतन]:[अन्य 3]]) -> 0
A93: =IF(Table2[[#This Row],[नाम]]="","",ROWS($A$1:A90)) ->  | B93: =PROPER(IF(Table1[[#This Row],[नाम]]="","",Table1[[#This Row],[नाम]])) ->  | K93: =SUM(Table2[[#This Row],[मार्च मूल वेतन]:[अन्य 3]]) -> 0
A94: =IF(Table2[[#This Row],[नाम]]="","",ROWS($A$1:A91)) ->  | B94: =PROPER(IF(Table1[[#This Row],[नाम]]="","",Table1[[#This Row],[नाम]])) ->  | K94: =SUM(Table2[[#This Row],[मार्च मूल वेतन]:[अन्य 3]]) -> 0
A95: =IF(Table2[[#This Row],[नाम]]="","",ROWS($A$1:A92)) ->  | B95: =PROPER(IF(Table1[[#This Row],[नाम]]="","",Table1[[#This Row],[नाम]])) ->  | K95: =SUM(Table2[[#This Row],[मार्च मूल वेतन]:[अन्य 3]]) -> 0
A96: =IF(Table2[[#This Row],[नाम]]="","",ROWS($A$1:A93)) ->  | B96: =PROPER(IF(Table1[[#This Row],[नाम]]="","",Table1[[#This Row],[नाम]])) ->  | K96: =SUM(Table2[[#This Row],[मार्च मूल वेतन]:[अन्य 3]]) -> 0
A97: =IF(Table2[[#This Row],[नाम]]="","",ROWS($A$1:A94)) ->  | B97: =PROPER(IF(Table1[[#This Row],[नाम]]="","",Table1[[#This Row],[नाम]])) ->  | K97: =SUM(Table2[[#This Row],[मार्च मूल वेतन]:[अन्य 3]]) -> 0
A98: =IF(Table2[[#This Row],[नाम]]="","",ROWS($A$1:A95)) ->  | B98: =PROPER(IF(Table1[[#This Row],[नाम]]="","",Table1[[#This Row],[नाम]])) ->  | K98: =SUM(Table2[[#This Row],[मार्च मूल वेतन]:[अन्य 3]]) -> 0
A99: =IF(Table2[[#This Row],[नाम]]="","",ROWS($A$1:A96)) ->  | B99: =PROPER(IF(Table1[[#This Row],[नाम]]="","",Table1[[#This Row],[नाम]])) ->  | K99: =SUM(Table2[[#This Row],[मार्च मूल वेतन]:[अन्य 3]]) -> 0
A100: =IF(Table2[[#This Row],[नाम]]="","",ROWS($A$1:A97)) ->  | B100: =PROPER(IF(Table1[[#This Row],[नाम]]="","",Table1[[#This Row],[नाम]])) ->  | K100: =SUM(Table2[[#This Row],[मार्च मूल वेतन]:[अन्य 3]]) -> 0
A101: =IF(Table2[[#This Row],[नाम]]="","",ROWS($A$1:A98)) ->  | B101: =PROPER(IF(Table1[[#This Row],[नाम]]="","",Table1[[#This Row],[नाम]])) ->  | K101: =SUM(Table2[[#This Row],[मार्च मूल वेतन]:[अन्य 3]]) -> 0
A102: =IF(Table2[[#This Row],[नाम]]="","",ROWS($A$1:A99)) ->  | B102: =PROPER(IF(Table1[[#This Row],[नाम]]="","",Table1[[#This Row],[नाम]])) ->  | K102: =SUM(Table2[[#This Row],[मार्च मूल वेतन]:[अन्य 3]]) -> 0
A103: =IF(Table2[[#This Row],[नाम]]="","",ROWS($A$1:A100)) ->  | B103: =PROPER(IF(Table1[[#This Row],[नाम]]="","",Table1[[#This Row],[नाम]])) ->  | K103: =SUM(Table2[[#This Row],[मार्च मूल वेतन]:[अन्य 3]]) -> 0
A104: =IF(Table2[[#This Row],[नाम]]="","",ROWS($A$1:A101)) ->  | B104: =PROPER(IF(Table1[[#This Row],[नाम]]="","",Table1[[#This Row],[नाम]])) ->  | K104: =SUM(Table2[[#This Row],[मार्च मूल वेतन]:[अन्य 3]]) -> 0
A105: =IF(Table2[[#This Row],[नाम]]="","",ROWS($A$1:A102)) ->  | B105: =PROPER(IF(Table1[[#This Row],[नाम]]="","",Table1[[#This Row],[नाम]])) ->  | K105: =SUM(Table2[[#This Row],[मार्च मूल वेतन]:[अन्य 3]]) -> 0
A106: =IF(Table2[[#This Row],[नाम]]="","",ROWS($A$1:A103)) ->  | B106: =PROPER(IF(Table1[[#This Row],[नाम]]="","",Table1[[#This Row],[नाम]])) ->  | K106: =SUM(Table2[[#This Row],[मार्च मूल वेतन]:[अन्य 3]]) -> 0
A107: =IF(Table2[[#This Row],[नाम]]="","",ROWS($A$1:A104)) ->  | B107: =PROPER(IF(Table1[[#This Row],[नाम]]="","",Table1[[#This Row],[नाम]])) ->  | K107: =SUM(Table2[[#This Row],[मार्च मूल वेतन]:[अन्य 3]]) -> 0
A108: =IF(Table2[[#This Row],[नाम]]="","",ROWS($A$1:A105)) ->  | B108: =PROPER(IF(Table1[[#This Row],[नाम]]="","",Table1[[#This Row],[नाम]])) ->  | K108: =SUM(Table2[[#This Row],[मार्च मूल वेतन]:[अन्य 3]]) -> 0
A109: =IF(Table2[[#This Row],[नाम]]="","",ROWS($A$1:A106)) ->  | B109: =PROPER(IF(Table1[[#This Row],[नाम]]="","",Table1[[#This Row],[नाम]])) ->  | K109: =SUM(Table2[[#This Row],[मार्च मूल वेतन]:[अन्य 3]]) -> 0
A110: =IF(Table2[[#This Row],[नाम]]="","",ROWS($A$1:A107)) ->  | B110: =PROPER(IF(Table1[[#This Row],[नाम]]="","",Table1[[#This Row],[नाम]])) ->  | K110: =SUM(Table2[[#This Row],[मार्च मूल वेतन]:[अन्य 3]]) -> 0
A111: =IF(Table2[[#This Row],[नाम]]="","",ROWS($A$1:A108)) ->  | B111: =PROPER(IF(Table1[[#This Row],[नाम]]="","",Table1[[#This Row],[नाम]])) ->  | K111: =SUM(Table2[[#This Row],[मार्च मूल वेतन]:[अन्य 3]]) -> 0
A112: =IF(Table2[[#This Row],[नाम]]="","",ROWS($A$1:A109)) ->  | B112: =PROPER(IF(Table1[[#This Row],[नाम]]="","",Table1[[#This Row],[नाम]])) ->  | K112: =SUM(Table2[[#This Row],[मार्च मूल वेतन]:[अन्य 3]]) -> 0
A113: =IF(Table2[[#This Row],[नाम]]="","",ROWS($A$1:A110)) ->  | B113: =PROPER(IF(Table1[[#This Row],[नाम]]="","",Table1[[#This Row],[नाम]])) ->  | K113: =SUM(Table2[[#This Row],[मार्च मूल वेतन]:[अन्य 3]]) -> 0
A114: =IF(Table2[[#This Row],[नाम]]="","",ROWS($A$1:A111)) ->  | B114: =PROPER(IF(Table1[[#This Row],[नाम]]="","",Table1[[#This Row],[नाम]])) ->  | K114: =SUM(Table2[[#This Row],[मार्च मूल वेतन]:[अन्य 3]]) -> 0
A115: =IF(Table2[[#This Row],[नाम]]="","",ROWS($A$1:A112)) ->  | B115: =PROPER(IF(Table1[[#This Row],[नाम]]="","",Table1[[#This Row],[नाम]])) ->  | K115: =SUM(Table2[[#This Row],[मार्च मूल वेतन]:[अन्य 3]]) -> 0
A116: =IF(Table2[[#This Row],[नाम]]="","",ROWS($A$1:A113)) ->  | B116: =PROPER(IF(Table1[[#This Row],[नाम]]="","",Table1[[#This Row],[नाम]])) ->  | K116: =SUM(Table2[[#This Row],[मार्च मूल वेतन]:[अन्य 3]]) -> 0
A117: =IF(Table2[[#This Row],[नाम]]="","",ROWS($A$1:A114)) ->  | B117: =PROPER(IF(Table1[[#This Row],[नाम]]="","",Table1[[#This Row],[नाम]])) ->  | K117: =SUM(Table2[[#This Row],[मार्च मूल वेतन]:[अन्य 3]]) -> 0
A118: =IF(Table2[[#This Row],[नाम]]="","",ROWS($A$1:A115)) ->  | B118: =PROPER(IF(Table1[[#This Row],[नाम]]="","",Table1[[#This Row],[नाम]])) ->  | K118: =SUM(Table2[[#This Row],[मार्च मूल वेतन]:[अन्य 3]]) -> 0
A119: =IF(Table2[[#This Row],[नाम]]="","",ROWS($A$1:A116)) ->  | B119: =PROPER(IF(Table1[[#This Row],[नाम]]="","",Table1[[#This Row],[नाम]])) ->  | K119: =SUM(Table2[[#This Row],[मार्च मूल वेतन]:[अन्य 3]]) -> 0
A120: =IF(Table2[[#This Row],[नाम]]="","",ROWS($A$1:A117)) ->  | B120: =PROPER(IF(Table1[[#This Row],[नाम]]="","",Table1[[#This Row],[नाम]])) ->  | K120: =SUM(Table2[[#This Row],[मार्च मूल वेतन]:[अन्य 3]]) -> 0
A121: =IF(Table2[[#This Row],[नाम]]="","",ROWS($A$1:A118)) ->  | B121: =PROPER(IF(Table1[[#This Row],[नाम]]="","",Table1[[#This Row],[नाम]])) ->  | K121: =SUM(Table2[[#This Row],[मार्च मूल वेतन]:[अन्य 3]]) -> 0
A122: =IF(Table2[[#This Row],[नाम]]="","",ROWS($A$1:A119)) ->  | B122: =PROPER(IF(Table1[[#This Row],[नाम]]="","",Table1[[#This Row],[नाम]])) ->  | K122: =SUM(Table2[[#This Row],[मार्च मूल वेतन]:[अन्य 3]]) -> 0
A123: =IF(Table2[[#This Row],[नाम]]="","",ROWS($A$1:A120)) ->  | B123: =PROPER(IF(Table1[[#This Row],[नाम]]="","",Table1[[#This Row],[नाम]])) ->  | K123: =SUM(Table2[[#This Row],[मार्च मूल वेतन]:[अन्य 3]]) -> 0
A124: =IF(Table2[[#This Row],[नाम]]="","",ROWS($A$1:A121)) ->  | B124: =PROPER(IF(Table1[[#This Row],[नाम]]="","",Table1[[#This Row],[नाम]])) ->  | K124: =SUM(Table2[[#This Row],[मार्च मूल वेतन]:[अन्य 3]]) -> 0
A125: =IF(Table2[[#This Row],[नाम]]="","",ROWS($A$1:A122)) ->  | B125: =PROPER(IF(Table1[[#This Row],[नाम]]="","",Table1[[#This Row],[नाम]])) ->  | K125: =SUM(Table2[[#This Row],[मार्च मूल वेतन]:[अन्य 3]]) -> 0
A126: =IF(Table2[[#This Row],[नाम]]="","",ROWS($A$1:A123)) ->  | B126: =PROPER(IF(Table1[[#This Row],[नाम]]="","",Table1[[#This Row],[नाम]])) ->  | K126: =SUM(Table2[[#This Row],[मार्च मूल वेतन]:[अन्य 3]]) -> 0
A127: =IF(Table2[[#This Row],[नाम]]="","",ROWS($A$1:A124)) ->  | B127: =PROPER(IF(Table1[[#This Row],[नाम]]="","",Table1[[#This Row],[नाम]])) ->  | K127: =SUM(Table2[[#This Row],[मार्च मूल वेतन]:[अन्य 3]]) -> 0
A128: =IF(Table2[[#This Row],[नाम]]="","",ROWS($A$1:A125)) ->  | B128: =PROPER(IF(Table1[[#This Row],[नाम]]="","",Table1[[#This Row],[नाम]])) ->  | K128: =SUM(Table2[[#This Row],[मार्च मूल वेतन]:[अन्य 3]]) -> 0
A129: =IF(Table2[[#This Row],[नाम]]="","",ROWS($A$1:A126)) ->  | B129: =PROPER(IF(Table1[[#This Row],[नाम]]="","",Table1[[#This Row],[नाम]])) ->  | K129: =SUM(Table2[[#This Row],[मार्च मूल वेतन]:[अन्य 3]]) -> 0
A130: =IF(Table2[[#This Row],[नाम]]="","",ROWS($A$1:A127)) ->  | B130: =PROPER(IF(Table1[[#This Row],[नाम]]="","",Table1[[#This Row],[नाम]])) ->  | K130: =SUM(Table2[[#This Row],[मार्च मूल वेतन]:[अन्य 3]]) -> 0
A131: =IF(Table2[[#This Row],[नाम]]="","",ROWS($A$1:A128)) ->  | B131: =PROPER(IF(Table1[[#This Row],[नाम]]="","",Table1[[#This Row],[नाम]])) ->  | K131: =SUM(Table2[[#This Row],[मार्च मूल वेतन]:[अन्य 3]]) -> 0
A132: =IF(Table2[[#This Row],[नाम]]="","",ROWS($A$1:A129)) ->  | B132: =PROPER(IF(Table1[[#This Row],[नाम]]="","",Table1[[#This Row],[नाम]])) ->  | K132: =SUM(Table2[[#This Row],[मार्च मूल वेतन]:[अन्य 3]]) -> 0
A133: =IF(Table2[[#This Row],[नाम]]="","",ROWS($A$1:A130)) ->  | B133: =PROPER(IF(Table1[[#This Row],[नाम]]="","",Table1[[#This Row],[नाम]])) ->  | K133: =SUM(Table2[[#This Row],[मार्च मूल वेतन]:[अन्य 3]]) -> 0
A134: =IF(Table2[[#This Row],[नाम]]="","",ROWS($A$1:A131)) ->  | B134: =PROPER(IF(Table1[[#This Row],[नाम]]="","",Table1[[#This Row],[नाम]])) ->  | K134: =SUM(Table2[[#This Row],[मार्च मूल वेतन]:[अन्य 3]]) -> 0
A135: =IF(Table2[[#This Row],[नाम]]="","",ROWS($A$1:A132)) ->  | B135: =PROPER(IF(Table1[[#This Row],[नाम]]="","",Table1[[#This Row],[नाम]])) ->  | K135: =SUM(Table2[[#This Row],[मार्च मूल वेतन]:[अन्य 3]]) -> 0
A136: =IF(Table2[[#This Row],[नाम]]="","",ROWS($A$1:A133)) ->  | B136: =PROPER(IF(Table1[[#This Row],[नाम]]="","",Table1[[#This Row],[नाम]])) ->  | K136: =SUM(Table2[[#This Row],[मार्च मूल वेतन]:[अन्य 3]]) -> 0
A137: =IF(Table2[[#This Row],[नाम]]="","",ROWS($A$1:A134)) ->  | B137: =PROPER(IF(Table1[[#This Row],[नाम]]="","",Table1[[#This Row],[नाम]])) ->  | K137: =SUM(Table2[[#This Row],[मार्च मूल वेतन]:[अन्य 3]]) -> 0
A138: =IF(Table2[[#This Row],[नाम]]="","",ROWS($A$1:A135)) ->  | B138: =PROPER(IF(Table1[[#This Row],[नाम]]="","",Table1[[#This Row],[नाम]])) ->  | K138: =SUM(Table2[[#This Row],[मार्च मूल वेतन]:[अन्य 3]]) -> 0
A139: =IF(Table2[[#This Row],[नाम]]="","",ROWS($A$1:A136)) ->  | B139: =PROPER(IF(Table1[[#This Row],[नाम]]="","",Table1[[#This Row],[नाम]])) ->  | K139: =SUM(Table2[[#This Row],[मार्च मूल वेतन]:[अन्य 3]]) -> 0
A140: =IF(Table2[[#This Row],[नाम]]="","",ROWS($A$1:A137)) ->  | B140: =PROPER(IF(Table1[[#This Row],[नाम]]="","",Table1[[#This Row],[नाम]])) ->  | K140: =SUM(Table2[[#This Row],[मार्च मूल वेतन]:[अन्य 3]]) -> 0
A141: =IF(Table2[[#This Row],[नाम]]="","",ROWS($A$1:A138)) ->  | B141: =PROPER(IF(Table1[[#This Row],[नाम]]="","",Table1[[#This Row],[नाम]])) ->  | K141: =SUM(Table2[[#This Row],[मार्च मूल वेतन]:[अन्य 3]]) -> 0
A142: =IF(Table2[[#This Row],[नाम]]="","",ROWS($A$1:A139)) ->  | B142: =PROPER(IF(Table1[[#This Row],[नाम]]="","",Table1[[#This Row],[नाम]])) ->  | K142: =SUM(Table2[[#This Row],[मार्च मूल वेतन]:[अन्य 3]]) -> 0
A143: =IF(Table2[[#This Row],[नाम]]="","",ROWS($A$1:A140)) ->  | B143: =PROPER(IF(Table1[[#This Row],[नाम]]="","",Table1[[#This Row],[नाम]])) ->  | K143: =SUM(Table2[[#This Row],[मार्च मूल वेतन]:[अन्य 3]]) -> 0
A144: =IF(Table2[[#This Row],[नाम]]="","",ROWS($A$1:A141)) ->  | B144: =PROPER(IF(Table1[[#This Row],[नाम]]="","",Table1[[#This Row],[नाम]])) ->  | K144: =SUM(Table2[[#This Row],[मार्च मूल वेतन]:[अन्य 3]]) -> 0
A145: =IF(Table2[[#This Row],[नाम]]="","",ROWS($A$1:A142)) ->  | B145: =PROPER(IF(Table1[[#This Row],[नाम]]="","",Table1[[#This Row],[नाम]])) ->  | K145: =SUM(Table2[[#This Row],[मार्च मूल वेतन]:[अन्य 3]]) -> 0
A146: =IF(Table2[[#This Row],[नाम]]="","",ROWS($A$1:A143)) ->  | B146: =PROPER(IF(Table1[[#This Row],[नाम]]="","",Table1[[#This Row],[नाम]])) ->  | K146: =SUM(Table2[[#This Row],[मार्च मूल वेतन]:[अन्य 3]]) -> 0
A147: =IF(Table2[[#This Row],[नाम]]="","",ROWS($A$1:A144)) ->  | B147: =PROPER(IF(Table1[[#This Row],[नाम]]="","",Table1[[#This Row],[नाम]])) ->  | K147: =SUM(Table2[[#This Row],[मार्च मूल वेतन]:[अन्य 3]]) -> 0
A148: =IF(Table2[[#This Row],[नाम]]="","",ROWS($A$1:A145)) ->  | B148: =PROPER(IF(Table1[[#This Row],[नाम]]="","",Table1[[#This Row],[नाम]])) ->  | K148: =SUM(Table2[[#This Row],[मार्च मूल वेतन]:[अन्य 3]]) -> 0
A149: =IF(Table2[[#This Row],[नाम]]="","",ROWS($A$1:A146)) ->  | B149: =PROPER(IF(Table1[[#This Row],[नाम]]="","",Table1[[#This Row],[नाम]])) ->  | K149: =SUM(Table2[[#This Row],[मार्च मूल वेतन]:[अन्य 3]]) -> 0
A150: =IF(Table2[[#This Row],[नाम]]="","",ROWS($A$1:A147)) ->  | B150: =PROPER(IF(Table1[[#This Row],[नाम]]="","",Table1[[#This Row],[नाम]])) ->  | K150: =SUM(Table2[[#This Row],[मार्च मूल वेतन]:[अन्य 3]]) -> 0
A151: =IF(Table2[[#This Row],[नाम]]="","",ROWS($A$1:A148)) ->  | B151: =PROPER(IF(Table1[[#This Row],[नाम]]="","",Table1[[#This Row],[नाम]])) ->  | K151: =SUM(Table2[[#This Row],[मार्च मूल वेतन]:[अन्य 3]]) -> 0
A152: =IF(Table2[[#This Row],[नाम]]="","",ROWS($A$1:A149)) ->  | B152: =PROPER(IF(Table1[[#This Row],[नाम]]="","",Table1[[#This Row],[नाम]])) ->  | K152: =SUM(Table2[[#This Row],[मार्च मूल वेतन]:[अन्य 3]]) -> 0
A153: =IF(Table2[[#This Row],[नाम]]="","",ROWS($A$1:A150)) ->  | B153: =PROPER(IF(Table1[[#This Row],[नाम]]="","",Table1[[#This Row],[नाम]])) ->  | K153: =SUM(Table2[[#This Row],[मार्च मूल वेतन]:[अन्य 3]]) -> 0
A154: =IF(Table2[[#This Row],[नाम]]="","",ROWS($A$1:A151)) ->  | B154: =PROPER(IF(Table1[[#This Row],[नाम]]="","",Table1[[#This Row],[नाम]])) ->  | K154: =SUM(Table2[[#This Row],[मार्च मूल वेतन]:[अन्य 3]]) -> 0
A155: =IF(Table2[[#This Row],[नाम]]="","",ROWS($A$1:A152)) ->  | B155: =PROPER(IF(Table1[[#This Row],[नाम]]="","",Table1[[#This Row],[नाम]])) ->  | K155: =SUM(Table2[[#This Row],[मार्च मूल वेतन]:[अन्य 3]]) -> 0
A156: =IF(Table2[[#This Row],[नाम]]="","",ROWS($A$1:A153)) ->  | B156: =PROPER(IF(Table1[[#This Row],[नाम]]="","",Table1[[#This Row],[नाम]])) ->  | K156: =SUM(Table2[[#This Row],[मार्च मूल वेतन]:[अन्य 3]]) -> 0
A157: =IF(Table2[[#This Row],[नाम]]="","",ROWS($A$1:A154)) ->  | B157: =PROPER(IF(Table1[[#This Row],[नाम]]="","",Table1[[#This Row],[नाम]])) ->  | K157: =SUM(Table2[[#This Row],[मार्च मूल वेतन]:[अन्य 3]]) -> 0
A158: =IF(Table2[[#This Row],[नाम]]="","",ROWS($A$1:A155)) ->  | B158: =PROPER(IF(Table1[[#This Row],[नाम]]="","",Table1[[#This Row],[नाम]])) ->  | K158: =SUM(Table2[[#This Row],[मार्च मूल वेतन]:[अन्य 3]]) -> 0
A159: =IF(Table2[[#This Row],[नाम]]="","",ROWS($A$1:A156)) ->  | B159: =PROPER(IF(Table1[[#This Row],[नाम]]="","",Table1[[#This Row],[नाम]])) ->  | K159: =SUM(Table2[[#This Row],[मार्च मूल वेतन]:[अन्य 3]]) -> 0
A160: =IF(Table2[[#This Row],[नाम]]="","",ROWS($A$1:A157)) ->  | B160: =PROPER(IF(Table1[[#This Row],[नाम]]="","",Table1[[#This Row],[नाम]])) ->  | K160: =SUM(Table2[[#This Row],[मार्च मूल वेतन]:[अन्य 3]]) -> 0
A161: =IF(Table2[[#This Row],[नाम]]="","",ROWS($A$1:A158)) ->  | B161: =PROPER(IF(Table1[[#This Row],[नाम]]="","",Table1[[#This Row],[नाम]])) ->  | K161: =SUM(Table2[[#This Row],[मार्च मूल वेतन]:[अन्य 3]]) -> 0
A162: =IF(Table2[[#This Row],[नाम]]="","",ROWS($A$1:A159)) ->  | B162: =PROPER(IF(Table1[[#This Row],[नाम]]="","",Table1[[#This Row],[नाम]])) ->  | K162: =SUM(Table2[[#This Row],[मार्च मूल वेतन]:[अन्य 3]]) -> 0
A163: =IF(Table2[[#This Row],[नाम]]="","",ROWS($A$1:A160)) ->  | B163: =PROPER(IF(Table1[[#This Row],[नाम]]="","",Table1[[#This Row],[नाम]])) ->  | K163: =SUM(Table2[[#This Row],[मार्च मूल वेतन]:[अन्य 3]]) -> 0
A164: =IF(Table2[[#This Row],[नाम]]="","",ROWS($A$1:A161)) ->  | B164: =PROPER(IF(Table1[[#This Row],[नाम]]="","",Table1[[#This Row],[नाम]])) ->  | K164: =SUM(Table2[[#This Row],[मार्च मूल वेतन]:[अन्य 3]]) -> 0
A165: =IF(Table2[[#This Row],[नाम]]="","",ROWS($A$1:A162)) ->  | B165: =PROPER(IF(Table1[[#This Row],[नाम]]="","",Table1[[#This Row],[नाम]])) ->  | K165: =SUM(Table2[[#This Row],[मार्च मूल वेतन]:[अन्य 3]]) -> 0
A166: =IF(Table2[[#This Row],[नाम]]="","",ROWS($A$1:A163)) ->  | B166: =PROPER(IF(Table1[[#This Row],[नाम]]="","",Table1[[#This Row],[नाम]])) ->  | K166: =SUM(Table2[[#This Row],[मार्च मूल वेतन]:[अन्य 3]]) -> 0
A167: =IF(Table2[[#This Row],[नाम]]="","",ROWS($A$1:A164)) ->  | B167: =PROPER(IF(Table1[[#This Row],[नाम]]="","",Table1[[#This Row],[नाम]])) ->  | K167: =SUM(Table2[[#This Row],[मार्च मूल वेतन]:[अन्य 3]]) -> 0
A168: =IF(Table2[[#This Row],[नाम]]="","",ROWS($A$1:A165)) ->  | B168: =PROPER(IF(Table1[[#This Row],[नाम]]="","",Table1[[#This Row],[नाम]])) ->  | K168: =SUM(Table2[[#This Row],[मार्च मूल वेतन]:[अन्य 3]]) -> 0
A169: =IF(Table2[[#This Row],[नाम]]="","",ROWS($A$1:A166)) ->  | B169: =PROPER(IF(Table1[[#This Row],[नाम]]="","",Table1[[#This Row],[नाम]])) ->  | K169: =SUM(Table2[[#This Row],[मार्च मूल वेतन]:[अन्य 3]]) -> 0
A170: =IF(Table2[[#This Row],[नाम]]="","",ROWS($A$1:A167)) ->  | B170: =PROPER(IF(Table1[[#This Row],[नाम]]="","",Table1[[#This Row],[नाम]])) ->  | K170: =SUM(Table2[[#This Row],[मार्च मूल वेतन]:[अन्य 3]]) -> 0
A171: =IF(Table2[[#This Row],[नाम]]="","",ROWS($A$1:A168)) ->  | B171: =PROPER(IF(Table1[[#This Row],[नाम]]="","",Table1[[#This Row],[नाम]])) ->  | K171: =SUM(Table2[[#This Row],[मार्च मूल वेतन]:[अन्य 3]]) -> 0
A172: =IF(Table2[[#This Row],[नाम]]="","",ROWS($A$1:A169)) ->  | B172: =PROPER(IF(Table1[[#This Row],[नाम]]="","",Table1[[#This Row],[नाम]])) ->  | K172: =SUM(Table2[[#This Row],[मार्च मूल वेतन]:[अन्य 3]]) -> 0
A173: =IF(Table2[[#This Row],[नाम]]="","",ROWS($A$1:A170)) ->  | B173: =PROPER(IF(Table1[[#This Row],[नाम]]="","",Table1[[#This Row],[नाम]])) ->  | K173: =SUM(Table2[[#This Row],[मार्च मूल वेतन]:[अन्य 3]]) -> 0
A174: =IF(Table2[[#This Row],[नाम]]="","",ROWS($A$1:A171)) ->  | B174: =PROPER(IF(Table1[[#This Row],[नाम]]="","",Table1[[#This Row],[नाम]])) ->  | K174: =SUM(Table2[[#This Row],[मार्च मूल वेतन]:[अन्य 3]]) -> 0
A175: =IF(Table2[[#This Row],[नाम]]="","",ROWS($A$1:A172)) ->  | B175: =PROPER(IF(Table1[[#This Row],[नाम]]="","",Table1[[#This Row],[नाम]])) ->  | K175: =SUM(Table2[[#This Row],[मार्च मूल वेतन]:[अन्य 3]]) -> 0
A176: =IF(Table2[[#This Row],[नाम]]="","",ROWS($A$1:A173)) ->  | B176: =PROPER(IF(Table1[[#This Row],[नाम]]="","",Table1[[#This Row],[नाम]])) ->  | K176: =SUM(Table2[[#This Row],[मार्च मूल वेतन]:[अन्य 3]]) -> 0
A177: =IF(Table2[[#This Row],[नाम]]="","",ROWS($A$1:A174)) ->  | B177: =PROPER(IF(Table1[[#This Row],[नाम]]="","",Table1[[#This Row],[नाम]])) ->  | K177: =SUM(Table2[[#This Row],[मार्च मूल वेतन]:[अन्य 3]]) -> 0
A178: =IF(Table2[[#This Row],[नाम]]="","",ROWS($A$1:A175)) ->  | B178: =PROPER(IF(Table1[[#This Row],[नाम]]="","",Table1[[#This Row],[नाम]])) ->  | K178: =SUM(Table2[[#This Row],[मार्च मूल वेतन]:[अन्य 3]]) -> 0
A179: =IF(Table2[[#This Row],[नाम]]="","",ROWS($A$1:A176)) ->  | B179: =PROPER(IF(Table1[[#This Row],[नाम]]="","",Table1[[#This Row],[नाम]])) ->  | K179: =SUM(Table2[[#This Row],[मार्च मूल वेतन]:[अन्य 3]]) -> 0
A180: =IF(Table2[[#This Row],[नाम]]="","",ROWS($A$1:A177)) ->  | B180: =PROPER(IF(Table1[[#This Row],[नाम]]="","",Table1[[#This Row],[नाम]])) ->  | K180: =SUM(Table2[[#This Row],[मार्च मूल वेतन]:[अन्य 3]]) -> 0
A181: =IF(Table2[[#This Row],[नाम]]="","",ROWS($A$1:A178)) ->  | B181: =PROPER(IF(Table1[[#This Row],[नाम]]="","",Table1[[#This Row],[नाम]])) ->  | K181: =SUM(Table2[[#This Row],[मार्च मूल वेतन]:[अन्य 3]]) -> 0
A182: =IF(Table2[[#This Row],[नाम]]="","",ROWS($A$1:A179)) ->  | B182: =PROPER(IF(Table1[[#This Row],[नाम]]="","",Table1[[#This Row],[नाम]])) ->  | K182: =SUM(Table2[[#This Row],[मार्च मूल वेतन]:[अन्य 3]]) -> 0
A183: =IF(Table2[[#This Row],[नाम]]="","",ROWS($A$1:A180)) ->  | B183: =PROPER(IF(Table1[[#This Row],[नाम]]="","",Table1[[#This Row],[नाम]])) ->  | K183: =SUM(Table2[[#This Row],[मार्च मूल वेतन]:[अन्य 3]]) -> 0
A184: =IF(Table2[[#This Row],[नाम]]="","",ROWS($A$1:A181)) ->  | B184: =PROPER(IF(Table1[[#This Row],[नाम]]="","",Table1[[#This Row],[नाम]])) ->  | K184: =SUM(Table2[[#This Row],[मार्च मूल वेतन]:[अन्य 3]]) -> 0
A185: =IF(Table2[[#This Row],[नाम]]="","",ROWS($A$1:A182)) ->  | B185: =PROPER(IF(Table1[[#This Row],[नाम]]="","",Table1[[#This Row],[नाम]])) ->  | K185: =SUM(Table2[[#This Row],[मार्च मूल वेतन]:[अन्य 3]]) -> 0
A186: =IF(Table2[[#This Row],[नाम]]="","",ROWS($A$1:A183)) ->  | B186: =PROPER(IF(Table1[[#This Row],[नाम]]="","",Table1[[#This Row],[नाम]])) ->  | K186: =SUM(Table2[[#This Row],[मार्च मूल वेतन]:[अन्य 3]]) -> 0
A187: =IF(Table2[[#This Row],[नाम]]="","",ROWS($A$1:A184)) ->  | B187: =PROPER(IF(Table1[[#This Row],[नाम]]="","",Table1[[#This Row],[नाम]])) ->  | K187: =SUM(Table2[[#This Row],[मार्च मूल वेतन]:[अन्य 3]]) -> 0
A188: =IF(Table2[[#This Row],[नाम]]="","",ROWS($A$1:A185)) ->  | B188: =PROPER(IF(Table1[[#This Row],[नाम]]="","",Table1[[#This Row],[नाम]])) ->  | K188: =SUM(Table2[[#This Row],[मार्च मूल वेतन]:[अन्य 3]]) -> 0
A189: =IF(Table2[[#This Row],[नाम]]="","",ROWS($A$1:A186)) ->  | B189: =PROPER(IF(Table1[[#This Row],[नाम]]="","",Table1[[#This Row],[नाम]])) ->  | K189: =SUM(Table2[[#This Row],[मार्च मूल वेतन]:[अन्य 3]]) -> 0
A190: =IF(Table2[[#This Row],[नाम]]="","",ROWS($A$1:A187)) ->  | B190: =PROPER(IF(Table1[[#This Row],[नाम]]="","",Table1[[#This Row],[नाम]])) ->  | K190: =SUM(Table2[[#This Row],[मार्च मूल वेतन]:[अन्य 3]]) -> 0
A191: =IF(Table2[[#This Row],[नाम]]="","",ROWS($A$1:A188)) ->  | B191: =PROPER(IF(Table1[[#This Row],[नाम]]="","",Table1[[#This Row],[नाम]])) ->  | K191: =SUM(Table2[[#This Row],[मार्च मूल वेतन]:[अन्य 3]]) -> 0
A192: =IF(Table2[[#This Row],[नाम]]="","",ROWS($A$1:A189)) ->  | B192: =PROPER(IF(Table1[[#This Row],[नाम]]="","",Table1[[#This Row],[नाम]])) ->  | K192: =SUM(Table2[[#This Row],[मार्च मूल वेतन]:[अन्य 3]]) -> 0
A193: =IF(Table2[[#This Row],[नाम]]="","",ROWS($A$1:A190)) ->  | B193: =PROPER(IF(Table1[[#This Row],[नाम]]="","",Table1[[#This Row],[नाम]])) ->  | K193: =SUM(Table2[[#This Row],[मार्च मूल वेतन]:[अन्य 3]]) -> 0
A194: =IF(Table2[[#This Row],[नाम]]="","",ROWS($A$1:A191)) ->  | B194: =PROPER(IF(Table1[[#This Row],[नाम]]="","",Table1[[#This Row],[नाम]])) ->  | K194: =SUM(Table2[[#This Row],[मार्च मूल वेतन]:[अन्य 3]]) -> 0
A195: =IF(Table2[[#This Row],[नाम]]="","",ROWS($A$1:A192)) ->  | B195: =PROPER(IF(Table1[[#This Row],[नाम]]="","",Table1[[#This Row],[नाम]])) ->  | K195: =SUM(Table2[[#This Row],[मार्च मूल वेतन]:[अन्य 3]]) -> 0
A196: =IF(Table2[[#This Row],[नाम]]="","",ROWS($A$1:A193)) ->  | B196: =PROPER(IF(Table1[[#This Row],[नाम]]="","",Table1[[#This Row],[नाम]])) ->  | K196: =SUM(Table2[[#This Row],[मार्च मूल वेतन]:[अन्य 3]]) -> 0
A197: =IF(Table2[[#This Row],[नाम]]="","",ROWS($A$1:A194)) ->  | B197: =PROPER(IF(Table1[[#This Row],[नाम]]="","",Table1[[#This Row],[नाम]])) ->  | K197: =SUM(Table2[[#This Row],[मार्च मूल वेतन]:[अन्य 3]]) -> 0
A198: =IF(Table2[[#This Row],[नाम]]="","",ROWS($A$1:A195)) ->  | B198: =PROPER(IF(Table1[[#This Row],[नाम]]="","",Table1[[#This Row],[नाम]])) ->  | K198: =SUM(Table2[[#This Row],[मार्च मूल वेतन]:[अन्य 3]]) -> 0
A199: =IF(Table2[[#This Row],[नाम]]="","",ROWS($A$1:A196)) ->  | B199: =PROPER(IF(Table1[[#This Row],[नाम]]="","",Table1[[#This Row],[नाम]])) ->  | K199: =SUM(Table2[[#This Row],[मार्च मूल वेतन]:[अन्य 3]]) -> 0
A200: =IF(Table2[[#This Row],[नाम]]="","",ROWS($A$1:A197)) ->  | B200: =PROPER(IF(Table1[[#This Row],[नाम]]="","",Table1[[#This Row],[नाम]])) ->  | K200: =SUM(Table2[[#This Row],[मार्च मूल वेतन]:[अन्य 3]]) -> 0
... 99 more rows

Sheet Deductions
A1: ='Emp. Data'!$A$1 -> Government Senior Secondary School, Rooppura
A2: Deductions Detail
A3: क्र.सं. | B3: नाम | C3: GPF | D3: GPF Loan | E3: SI | F3: SI Loan | G3: ITAX | H3: RPMF | I3: LIC | J3: CM CORONA | K3: GIS | L3: अन्य 1 | M3: अन्य 2 | N3: अन्य 3 | O3: योग (ब)
A4: =IF(Table3[[#This Row],[नाम]]="","",ROWS($A$1:A1)) -> 1 | B4: =PROPER(IF(Table1[[#This Row],[नाम]]="","",Table1[[#This Row],[नाम]])) -> Aditya Jakhad | C4: 0 | D4: 0 | E4: 3000 | F4: 0 | G4: 0 | H4: 0 | I4: 0 | J4: 0 | K4: 220 | L4: 0 | M4: 0 | N4: 0 | O4: =SUM(Table3[[#This Row],[GPF]:[अन्य 3]]) -> 3220
A5: =IF(Table3[[#This Row],[नाम]]="","",ROWS($A$1:A2)) -> 2 | B5: =PROPER(IF(Table1[[#This Row],[नाम]]="","",Table1[[#This Row],[नाम]])) -> Ashwini Kumar | C5: 0 | D5: 0 | E5: 3000 | F5: 0 | G5: 0 | H5: 0 | I5: 0 | J5: 0 | K5: 220 | L5: 0 | M5: 0 | N5: 0 | O5: =SUM(Table3[[#This Row],[GPF]:[अन्य 3]]) -> 3220
A6: =IF(Table3[[#This Row],[नाम]]="","",ROWS($A$1:A3)) -> 3 | B6: =PROPER(IF(Table1[[#This Row],[नाम]]="","",Table1[[#This Row],[नाम]])) -> Banwari | C6: 0 | D6: 0 | E6: 3000 | F6: 0 | G6: 0 | H6: 0 | I6: 0 | J6: 0 | K6: 220 | L6: 0 | M6: 0 | N6: 0 | O6: =SUM(Table3[[#This Row],[GPF]:[अन्य 3]]) -> 3220
A7: =IF(Table3[[#This Row],[नाम]]="","",ROWS($A$1:A4)) -> 4 | B7: =PROPER(IF(Table1[[#This Row],[नाम]]="","",Table1[[#This Row],[नाम]])) -> Chetan Ram Riyar | K7: 220 | O7: =SUM(Table3[[#This Row],[GPF]:[अन्य 3]]) -> 220
A8: =IF(Table3[[#This Row],[नाम]]="","",ROWS($A$1:A5)) -> 5 | B8: =PROPER(IF(Table1[[#This Row],[नाम]]="","",Table1[[#This Row],[नाम]])) -> Chhotoo Singh | K8: 220 | O8: =SUM(Table3[[#This Row],[GPF]:[अन्य 3]]) -> 220
A9: =IF(Table3[[#This Row],[नाम]]="","",ROWS($A$1:A6)) -> 6 | B9: =PROPER(IF(Table1[[#This Row],[नाम]]="","",Table1[[#This Row],[नाम]])) -> Hemlata Sharma | K9: 220 | O9: =SUM(Table3[[#This Row],[GPF]:[अन्य 3]]) -> 220
A10: =IF(Table3[[#This Row],[नाम]]="","",ROWS($A$1:A7)) -> 7 | B10: =PROPER(IF(Table1[[#This Row],[नाम]]="","",Table1[[#This Row],[नाम]])) -> Kamla Barupal | K10: 220 | O10: =SUM(Table3[[#This Row],[GPF]:[अन्य 3]]) -> 220
A11: =IF(Table3[[#This Row],[नाम]]="","",ROWS($A$1:A8)) -> 8 | B11: =PROPER(IF(Table1[[#This Row],[नाम]]="","",Table1[[#This Row],[नाम]])) -> Kamla Sesma | K11: 220 | O11: =SUM(Table3[[#This Row],[GPF]:[अन्य 3]]) -> 220
A12: =IF(Table3[[#This Row],[नाम]]="","",ROWS($A$1:A9)) -> 9 | B12: =PROPER(IF(Table1[[#This Row],[नाम]]="","",Table1[[#This Row],[नाम]])) -> Pramod Kanwar | K12: 220 | O12: =SUM(Table3[[#This Row],[GPF]:[अन्य 3]]) -> 220
A13: =IF(Table3[[#This Row],[नाम]]="","",ROWS($A$1:A10)) -> 10 | B13: =PROPER(IF(Table1[[#This Row],[नाम]]="","",Table1[[#This Row],[नाम]])) -> Rajkumari Jhhala | K13: 220 | O13: =SUM(Table3[[#This Row],[GPF]:[अन्य 3]]) -> 220
A14: =IF(Table3[[#This Row],[नाम]]="","",ROWS($A$1:A11)) -> 11 | B14: =PROPER(IF(Table1[[#This Row],[नाम]]="","",Table1[[#This Row],[नाम]])) -> Rameshwar Lal | K14: 220 | O14: =SUM(Table3[[#This Row],[GPF]:[अन्य 3]]) -> 220
A15: =IF(Table3[[#This Row],[नाम]]="","",ROWS($A$1:A12)) -> 12 | B15: =PROPER(IF(Table1[[#This Row],[नाम]]="","",Table1[[#This Row],[नाम]])) -> Randheer Singh Shekhawat | K15: 220 | O15: =SUM(Table3[[#This Row],[GPF]:[अन्य 3]]) -> 220
A16: =IF(Table3[[#This Row],[नाम]]="","",ROWS($A$1:A13)) -> 13 | B16: =PROPER(IF(Table1[[#This Row],[नाम]]="","",Table1[[#This Row],[नाम]])) -> Santosh Mohanpuriya | K16: 220 | O16: =SUM(Table3[[#This Row],[GPF]:[अन्य 3]]) -> 220
A17: =IF(Table3[[#This Row],[नाम]]="","",ROWS($A$1:A14)) -> 14 | B17: =PROPER(IF(Table1[[#This Row],[नाम]]="","",Table1[[#This Row],[नाम]])) -> Saroj Sunariwal | K17: 220 | O17: =SUM(Table3[[#This Row],[GPF]:[अन्य 3]]) -> 220
A18: =IF(Table3[[#This Row],[नाम]]="","",ROWS($A$1:A15)) -> 15 | B18: =PROPER(IF(Table1[[#This Row],[नाम]]="","",Table1[[#This Row],[नाम]])) -> Sita Ram Balai | K18: 220 | O18: =SUM(Table3[[#This Row],[GPF]:[अन्य 3]]) -> 220
A19: =IF(Table3[[#This Row],[नाम]]="","",ROWS($A$1:A16)) -> 16 | B19: =PROPER(IF(Table1[[#This Row],[नाम]]="","",Table1[[#This Row],[नाम]])) -> Sukha Ram Muhal | K19: 220 | O19: =SUM(Table3[[#This Row],[GPF]:[अन्य 3]]) -> 220
A20: =IF(Table3[[#This Row],[नाम]]="","",ROWS($A$1:A17)) ->  | B20: =PROPER(IF(Table1[[#This Row],[नाम]]="","",Table1[[#This Row],[नाम]])) ->  | K20: 220 | O20: =SUM(Table3[[#This Row],[GPF]:[अन्य 3]]) -> 220
A21: =IF(Table3[[#This Row],[नाम]]="","",ROWS($A$1:A18)) ->  | B21: =PROPER(IF(Table1[[#This Row],[नाम]]="","",Table1[[#This Row],[नाम]])) ->  | K21: 220 | O21: =SUM(Table3[[#This Row],[GPF]:[अन्य 3]]) -> 220
A22: =IF(Table3[[#This Row],[नाम]]="","",ROWS($A$1:A19)) ->  | B22: =PROPER(IF(Table1[[#This Row],[नाम]]="","",Table1[[#This Row],[नाम]])) ->  | K22: 220 | O22: =SUM(Table3[[#This Row],[GPF]:[अन्य 3]]) -> 220
A23: =IF(Table3[[#This Row],[नाम]]="","",ROWS($A$1:A20)) ->  | B23: =PROPER(IF(Table1[[#This Row],[नाम]]="","",Table1[[#This Row],[नाम]])) ->  | K23: 220 | O23: =SUM(Table3[[#This Row],[GPF]:[अन्य 3]]) -> 220
A24: =IF(Table3[[#This Row],[नाम]]="","",ROWS($A$1:A21)) ->  | B24: =PROPER(IF(Table1[[#This Row],[नाम]]="","",Table1[[#This Row],[नाम]])) ->  | K24: 220 | O24: =SUM(Table3[[#This Row],[GPF]:[अन्य 3]]) -> 220
A25: =IF(Table3[[#This Row],[नाम]]="","",ROWS($A$1:A22)) ->  | B25: =PROPER(IF(Table1[[#This Row],[नाम]]="","",Table1[[#This Row],[नाम]])) ->  | K25: 220 | O25: =SUM(Table3[[#This Row],[GPF]:[अन्य 3]]) -> 220
A26: =IF(Table3[[#This Row],[नाम]]="","",ROWS($A$1:A23)) ->  | B26: =PROPER(IF(Table1[[#This Row],[नाम]]="","",Table1[[#This Row],[नाम]])) ->  | K26: 220 | O26: =SUM(Table3[[#This Row],[GPF]:[अन्य 3]]) -> 220
A27: =IF(Table3[[#This Row],[नाम]]="","",ROWS($A$1:A24)) ->  | B27: =PROPER(IF(Table1[[#This Row],[नाम]]="","",Table1[[#This Row],[नाम]])) ->  | K27: 220 | O27: =SUM(Table3[[#This Row],[GPF]:[अन्य 3]]) -> 220
A28: =IF(Table3[[#This Row],[नाम]]="","",ROWS($A$1:A25)) ->  | B28: =PROPER(IF(Table1[[#This Row],[नाम]]="","",Table1[[#This Row],[नाम]])) ->  | K28: 220 | O28: =SUM(Table3[[#This Row],[GPF]:[अन्य 3]]) -> 220
A29: =IF(Table3[[#This Row],[नाम]]="","",ROWS($A$1:A26)) ->  | B29: =PROPER(IF(Table1[[#This Row],[नाम]]="","",Table1[[#This Row],[नाम]])) ->  | K29: 220 | O29: =SUM(Table3[[#This Row],[GPF]:[अन्य 3]]) -> 220
A30: =IF(Table3[[#This Row],[नाम]]="","",ROWS($A$1:A27)) ->  | B30: =PROPER(IF(Table1[[#This Row],[नाम]]="","",Table1[[#This Row],[नाम]])) ->  | K30: 220 | O30: =SUM(Table3[[#This Row],[GPF]:[अन्य 3]]) -> 220
A31: =IF(Table3[[#This Row],[नाम]]="","",ROWS($A$1:A28)) ->  | B31: =PROPER(IF(Table1[[#This Row],[नाम]]="","",Table1[[#This Row],[नाम]])) ->  | K31: 220 | O31: =SUM(Table3[[#This Row],[GPF]:[अन्य 3]]) -> 220
A32: =IF(Table3[[#This Row],[नाम]]="","",ROWS($A$1:A29)) ->  | B32: =PROPER(IF(Table1[[#This Row],[नाम]]="","",Table1[[#This Row],[नाम]])) ->  | K32: 220 | O32: =SUM(Table3[[#This Row],[GPF]:[अन्य 3]]) -> 220
A33: =IF(Table3[[#This Row],[नाम]]="","",ROWS($A$1:A30)) ->  | B33: =PROPER(IF(Table1[[#This Row],[नाम]]="","",Table1[[#This Row],[नाम]])) ->  | K33: 220 | O33: =SUM(Table3[[#This Row],[GPF]:[अन्य 3]]) -> 220
A34: =IF(Table3[[#This Row],[नाम]]="","",ROWS($A$1:A31)) ->  | B34: =PROPER(IF(Table1[[#This Row],[नाम]]="","",Table1[[#This Row],[नाम]])) ->  | K34: 220 | O34: =SUM(Table3[[#This Row],[GPF]:[अन्य 3]]) -> 220
A35: =IF(Table3[[#This Row],[नाम]]="","",ROWS($A$1:A32)) ->  | B35: =PROPER(IF(Table1[[#This Row],[नाम]]="","",Table1[[#This Row],[नाम]])) ->  | K35: 220 | O35: =SUM(Table3[[#This Row],[GPF]:[अन्य 3]]) -> 220
A36: =IF(Table3[[#This Row],[नाम]]="","",ROWS($A$1:A33)) ->  | B36: =PROPER(IF(Table1[[#This Row],[नाम]]="","",Table1[[#This Row],[नाम]])) ->  | K36: 220 | O36: =SUM(Table3[[#This Row],[GPF]:[अन्य 3]]) -> 220
A37: =IF(Table3[[#This Row],[नाम]]="","",ROWS($A$1:A34)) ->  | B37: =PROPER(IF(Table1[[#This Row],[नाम]]="","",Table1[[#This Row],[नाम]])) ->  | K37: 220 | O37: =SUM(Table3[[#This Row],[GPF]:[अन्य 3]]) -> 220
A38: =IF(Table3[[#This Row],[नाम]]="","",ROWS($A$1:A35)) ->  | B38: =PROPER(IF(Table1[[#This Row],[नाम]]="","",Table1[[#This Row],[नाम]])) ->  | K38: 220 | O38: =SUM(Table3[[#This Row],[GPF]:[अन्य 3]]) -> 220
A39: =IF(Table3[[#This Row],[नाम]]="","",ROWS($A$1:A36)) ->  | B39: =PROPER(IF(Table1[[#This Row],[नाम]]="","",Table1[[#This Row],[नाम]])) ->  | K39: 220 | O39: =SUM(Table3[[#This Row],[GPF]:[अन्य 3]]) -> 220
A40: =IF(Table3[[#This Row],[नाम]]="","",ROWS($A$1:A37)) ->  | B40: =PROPER(IF(Table1[[#This Row],[नाम]]="","",Table1[[#This Row],[नाम]])) ->  | K40: 220 | O40: =SUM(Table3[[#This Row],[GPF]:[अन्य 3]]) -> 220
A41: =IF(Table3[[#This Row],[नाम]]="","",ROWS($A$1:A38)) ->  | B41: =PROPER(IF(Table1[[#This Row],[नाम]]="","",Table1[[#This Row],[नाम]])) ->  | K41: 220 | O41: =SUM(Table3[[#This Row],[GPF]:[अन्य 3]]) -> 220
A42: =IF(Table3[[#This Row],[नाम]]="","",ROWS($A$1:A39)) ->  | B42: =PROPER(IF(Table1[[#This Row],[नाम]]="","",Table1[[#This Row],[नाम]])) ->  | K42: 220 | O42: =SUM(Table3[[#This Row],[GPF]:[अन्य 3]]) -> 220
A43: =IF(Table3[[#This Row],[नाम]]="","",ROWS($A$1:A40)) ->  | B43: =PROPER(IF(Table1[[#This Row],[नाम]]="","",Table1[[#This Row],[नाम]])) ->  | K43: 220 | O43: =SUM(Table3[[#This Row],[GPF]:[अन्य 3]]) -> 220
A44: =IF(Table3[[#This Row],[नाम]]="","",ROWS($A$1:A41)) ->  | B44: =PROPER(IF(Table1[[#This Row],[नाम]]="","",Table1[[#This Row],[नाम]])) ->  | K44: 220 | O44: =SUM(Table3[[#This Row],[GPF]:[अन्य 3]]) -> 220
A45: =IF(Table3[[#This Row],[नाम]]="","",ROWS($A$1:A42)) ->  | B45: =PROPER(IF(Table1[[#This Row],[नाम]]="","",Table1[[#This Row],[नाम]])) ->  | K45: 220 | O45: =SUM(Table3[[#This Row],[GPF]:[अन्य 3]]) -> 220
A46: =IF(Table3[[#This Row],[नाम]]="","",ROWS($A$1:A43)) ->  | B46: =PROPER(IF(Table1[[#This Row],[नाम]]="","",Table1[[#This Row],[नाम]])) ->  | K46: 220 | O46: =SUM(Table3[[#This Row],[GPF]:[अन्य 3]]) -> 220
A47: =IF(Table3[[#This Row],[नाम]]="","",ROWS($A$1:A44)) ->  | B47: =PROPER(IF(Table1[[#This Row],[नाम]]="","",Table1[[#This Row],[नाम]])) ->  | K47: 220 | O47: =SUM(Table3[[#This Row],[GPF]:[अन्य 3]]) -> 220
A48: =IF(Table3[[#This Row],[नाम]]="","",ROWS($A$1:A45)) ->  | B48: =PROPER(IF(Table1[[#This Row],[नाम]]="","",Table1[[#This Row],[नाम]])) ->  | K48: 220 | O48: =SUM(Table3[[#This Row],[GPF]:[अन्य 3]]) -> 220
A49: =IF(Table3[[#This Row],[नाम]]="","",ROWS($A$1:A46)) ->  | B49: =PROPER(IF(Table1[[#This Row],[नाम]]="","",Table1[[#This Row],[नाम]])) ->  | K49: 220 | O49: =SUM(Table3[[#This Row],[GPF]:[अन्य 3]]) -> 220
A50: =IF(Table3[[#This Row],[नाम]]="","",ROWS($A$1:A47)) ->  | B50: =PROPER(IF(Table1[[#This Row],[नाम]]="","",Table1[[#This Row],[नाम]])) ->  | K50: 220 | O50: =SUM(Table3[[#This Row],[GPF]:[अन्य 3]]) -> 220
A51: =IF(Table3[[#This Row],[नाम]]="","",ROWS($A$1:A48)) ->  | B51: =PROPER(IF(Table1[[#This Row],[नाम]]="","",Table1[[#This Row],[नाम]])) ->  | K51: 220 | O51: =SUM(Table3[[#This Row],[GPF]:[अन्य 3]]) -> 220
A52: =IF(Table3[[#This Row],[नाम]]="","",ROWS($A$1:A49)) ->  | B52: =PROPER(IF(Table1[[#This Row],[नाम]]="","",Table1[[#This Row],[नाम]])) ->  | K52: 220 | O52: =SUM(Table3[[#This Row],[GPF]:[अन्य 3]]) -> 220
A53: =IF(Table3[[#This Row],[नाम]]="","",ROWS($A$1:A50)) ->  | B53: =PROPER(IF(Table1[[#This Row],[नाम]]="","",Table1[[#This Row],[नाम]])) ->  | K53: 220 | O53: =SUM(Table3[[#This Row],[GPF]:[अन्य 3]]) -> 220
A54: =IF(Table3[[#This Row],[नाम]]="","",ROWS($A$1:A51)) ->  | B54: =PROPER(IF(Table1[[#This Row],[नाम]]="","",Table1[[#This Row],[नाम]])) ->  | K54: 220 | O54: =SUM(Table3[[#This Row],[GPF]:[अन्य 3]]) -> 220
A55: =IF(Table3[[#This Row],[नाम]]="","",ROWS($A$1:A52)) ->  | B55: =PROPER(IF(Table1[[#This Row],[नाम]]="","",Table1[[#This Row],[नाम]])) ->  | K55: 220 | O55: =SUM(Table3[[#This Row],[GPF]:[अन्य 3]]) -> 220
A56: =IF(Table3[[#This Row],[नाम]]="","",ROWS($A$1:A53)) ->  | B56: =PROPER(IF(Table1[[#This Row],[नाम]]="","",Table1[[#This Row],[नाम]])) ->  | K56: 220 | O56: =SUM(Table3[[#This Row],[GPF]:[अन्य 3]]) -> 220
A57: =IF(Table3[[#This Row],[नाम]]="","",ROWS($A$1:A54)) ->  | B57: =PROPER(IF(Table1[[#This Row],[नाम]]="","",Table1[[#This Row],[नाम]])) ->  | K57: 220 | O57: =SUM(Table3[[#This Row],[GPF]:[अन्य 3]]) -> 220
A58: =IF(Table3[[#This Row],[नाम]]="","",ROWS($A$1:A55)) ->  | B58: =PROPER(IF(Table1[[#This Row],[नाम]]="","",Table1[[#This Row],[नाम]])) ->  | K58: 220 | O58: =SUM(Table3[[#This Row],[GPF]:[अन्य 3]]) -> 220
A59: =IF(Table3[[#This Row],[नाम]]="","",ROWS($A$1:A56)) ->  | B59: =PROPER(IF(Table1[[#This Row],[नाम]]="","",Table1[[#This Row],[नाम]])) ->  | K59: 220 | O59: =SUM(Table3[[#This Row],[GPF]:[अन्य 3]]) -> 220
A60: =IF(Table3[[#This Row],[नाम]]="","",ROWS($A$1:A57)) ->  | B60: =PROPER(IF(Table1[[#This Row],[नाम]]="","",Table1[[#This Row],[नाम]])) ->  | K60: 220 | O60: =SUM(Table3[[#This Row],[GPF]:[अन्य 3]]) -> 220
A61: =IF(Table3[[#This Row],[नाम]]="","",ROWS($A$1:A58)) ->  | B61: =PROPER(IF(Table1[[#This Row],[नाम]]="","",Table1[[#This Row],[नाम]])) ->  | K61: 220 | O61: =SUM(Table3[[#This Row],[GPF]:[अन्य 3]]) -> 220
A62: =IF(Table3[[#This Row],[नाम]]="","",ROWS($A$1:A59)) ->  | B62: =PROPER(IF(Table1[[#This Row],[नाम]]="","",Table1[[#This Row],[नाम]])) ->  | K62: 220 | O62: =SUM(Table3[[#This Row],[GPF]:[अन्य 3]]) -> 220
A63: =IF(Table3[[#This Row],[नाम]]="","",ROWS($A$1:A60)) ->  | B63: =PROPER(IF(Table1[[#This Row],[नाम]]="","",Table1[[#This Row],[नाम]])) ->  | K63: 220 | O63: =SUM(Table3[[#This Row],[GPF]:[अन्य 3]]) -> 220
A64: =IF(Table3[[#This Row],[नाम]]="","",ROWS($A$1:A61)) ->  | B64: =PROPER(IF(Table1[[#This Row],[नाम]]="","",Table1[[#This Row],[नाम]])) ->  | K64: 220 | O64: =SUM(Table3[[#This Row],[GPF]:[अन्य 3]]) -> 220
A65: =IF(Table3[[#This Row],[नाम]]="","",ROWS($A$1:A62)) ->  | B65: =PROPER(IF(Table1[[#This Row],[नाम]]="","",Table1[[#This Row],[नाम]])) ->  | K65: 220 | O65: =SUM(Table3[[#This Row],[GPF]:[अन्य 3]]) -> 220
A66: =IF(Table3[[#This Row],[नाम]]="","",ROWS($A$1:A63)) ->  | B66: =PROPER(IF(Table1[[#This Row],[नाम]]="","",Table1[[#This Row],[नाम]])) ->  | K66: 220 | O66: =SUM(Table3[[#This Row],[GPF]:[अन्य 3]]) -> 220
A67: =IF(Table3[[#This Row],[नाम]]="","",ROWS($A$1:A64)) ->  | B67: =PROPER(IF(Table1[[#This Row],[नाम]]="","",Table1[[#This Row],[नाम]])) ->  | K67: 220 | O67: =SUM(Table3[[#This Row],[GPF]:[अन्य 3]]) -> 220
A68: =IF(Table3[[#This Row],[नाम]]="","",ROWS($A$1:A65)) ->  | B68: =PROPER(IF(Table1[[#This Row],[नाम]]="","",Table1[[#This Row],[नाम]])) ->  | K68: 220 | O68: =SUM(Table3[[#This Row],[GPF]:[अन्य 3]]) -> 220
A69: =IF(Table3[[#This Row],[नाम]]="","",ROWS($A$1:A66)) ->  | B69: =PROPER(IF(Table1[[#This Row],[नाम]]="","",Table1[[#This Row],[नाम]])) ->  | K69: 220 | O69: =SUM(Table3[[#This Row],[GPF]:[अन्य 3]]) -> 220
A70: =IF(Table3[[#This Row],[नाम]]="","",ROWS($A$1:A67)) ->  | B70: =PROPER(IF(Table1[[#This Row],[नाम]]="","",Table1[[#This Row],[नाम]])) ->  | K70: 220 | O70: =SUM(Table3[[#This Row],[GPF]:[अन्य 3]]) -> 220
A71: =IF(Table3[[#This Row],[नाम]]="","",ROWS($A$1:A68)) ->  | B71: =PROPER(IF(Table1[[#This Row],[नाम]]="","",Table1[[#This Row],[नाम]])) ->  | K71: 220 | O71: =SUM(Table3[[#This Row],[GPF]:[अन्य 3]]) -> 220
A72: =IF(Table3[[#This Row],[नाम]]="","",ROWS($A$1:A69)) ->  | B72: =PROPER(IF(Table1[[#This Row],[नाम]]="","",Table1[[#This Row],[नाम]])) ->  | K72: 220 | O72: =SUM(Table3[[#This Row],[GPF]:[अन्य 3]]) -> 220
A73: =IF(Table3[[#This Row],[नाम]]="","",ROWS($A$1:A70)) ->  | B73: =PROPER(IF(Table1[[#This Row],[नाम]]="","",Table1[[#This Row],[नाम]])) ->  | K73: 220 | O73: =SUM(Table3[[#This Row],[GPF]:[अन्य 3]]) -> 220
A74: =IF(Table3[[#This Row],[नाम]]="","",ROWS($A$1:A71)) ->  | B74: =PROPER(IF(Table1[[#This Row],[नाम]]="","",Table1[[#This Row],[नाम]])) ->  | K74: 220 | O74: =SUM(Table3[[#This Row],[GPF]:[अन्य 3]]) -> 220
A75: =IF(Table3[[#This Row],[नाम]]="","",ROWS($A$1:A72)) ->  | B75: =PROPER(IF(Table1[[#This Row],[नाम]]="","",Table1[[#This Row],[नाम]])) ->  | K75: 220 | O75: =SUM(Table3[[#This Row],[GPF]:[अन्य 3]]) -> 220
A76: =IF(Table3[[#This Row],[नाम]]="","",ROWS($A$1:A73)) ->  | B76: =PROPER(IF(Table1[[#This Row],[नाम]]="","",Table1[[#This Row],[नाम]])) ->  | K76: 220 | O76: =SUM(Table3[[#This Row],[GPF]:[अन्य 3]]) -> 220
A77: =IF(Table3[[#This Row],[नाम]]="","",ROWS($A$1:A74)) ->  | B77: =PROPER(IF(Table1[[#This Row],[नाम]]="","",Table1[[#This Row],[नाम]])) ->  | K77: 220 | O77: =SUM(Table3[[#This Row],[GPF]:[अन्य 3]]) -> 220
A78: =IF(Table3[[#This Row],[नाम]]="","",ROWS($A$1:A75)) ->  | B78: =PROPER(IF(Table1[[#This Row],[नाम]]="","",Table1[[#This Row],[नाम]])) ->  | K78: 220 | O78: =SUM(Table3[[#This Row],[GPF]:[अन्य 3]]) -> 220
A79: =IF(Table3[[#This Row],[नाम]]="","",ROWS($A$1:A76)) ->  | B79: =PROPER(IF(Table1[[#This Row],[नाम]]="","",Table1[[#This Row],[नाम]])) ->  | K79: 220 | O79: =SUM(Table3[[#This Row],[GPF]:[अन्य 3]]) -> 220
A80: =IF(Table3[[#This Row],[नाम]]="","",ROWS($A$1:A77)) ->  | B80: =PROPER(IF(Table1[[#This Row],[नाम]]="","",Table1[[#This Row],[नाम]])) ->  | K80: 220 | O80: =SUM(Table3[[#This Row],[GPF]:[अन्य 3]]) -> 220
A81: =IF(Table3[[#This Row],[नाम]]="","",ROWS($A$1:A78)) ->  | B81: =PROPER(IF(Table1[[#This Row],[नाम]]="","",Table1[[#This Row],[नाम]])) ->  | K81: 220 | O81: =SUM(Table3[[#This Row],[GPF]:[अन्य 3]]) -> 220
A82: =IF(Table3[[#This Row],[नाम]]="","",ROWS($A$1:A79)) ->  | B82: =PROPER(IF(Table1[[#This Row],[नाम]]="","",Table1[[#This Row],[नाम]])) ->  | K82: 220 | O82: =SUM(Table3[[#This Row],[GPF]:[अन्य 3]]) -> 220
A83: =IF(Table3[[#This Row],[नाम]]="","",ROWS($A$1:A80)) ->  | B83: =PROPER(IF(Table1[[#This Row],[नाम]]="","",Table1[[#This Row],[नाम]])) ->  | K83: 220 | O83: =SUM(Table3[[#This Row],[GPF]:[अन्य 3]]) -> 220
A84: =IF(Table3[[#This Row],[नाम]]="","",ROWS($A$1:A81)) ->  | B84: =PROPER(IF(Table1[[#This Row],[नाम]]="","",Table1[[#This Row],[नाम]])) ->  | K84: 220 | O84: =SUM(Table3[[#This Row],[GPF]:[अन्य 3]]) -> 220
A85: =IF(Table3[[#This Row],[नाम]]="","",ROWS($A$1:A82)) ->  | B85: =PROPER(IF(Table1[[#This Row],[नाम]]="","",Table1[[#This Row],[नाम]])) ->  | K85: 220 | O85: =SUM(Table3[[#This Row],[GPF]:[अन्य 3]]) -> 220
A86: =IF(Table3[[#This Row],[नाम]]="","",ROWS($A$1:A83)) ->  | B86: =PROPER(IF(Table1[[#This Row],[नाम]]="","",Table1[[#This Row],[नाम]])) ->  | K86: 220 | O86: =SUM(Table3[[#This Row],[GPF]:[अन्य 3]]) -> 220
A87: =IF(Table3[[#This Row],[नाम]]="","",ROWS($A$1:A84)) ->  | B87: =PROPER(IF(Table1[[#This Row],[नाम]]="","",Table1[[#This Row],[नाम]])) ->  | K87: 220 | O87: =SUM(Table3[[#This Row],[GPF]:[अन्य 3]]) -> 220
A88: =IF(Table3[[#This Row],[नाम]]="","",ROWS($A$1:A85)) ->  | B88: =PROPER(IF(Table1[[#This Row],[नाम]]="","",Table1[[#This Row],[नाम]])) ->  | K88: 220 | O88: =SUM(Table3[[#This Row],[GPF]:[अन्य 3]]) -> 220
A89: =IF(Table3[[#This Row],[नाम]]="","",ROWS($A$1:A86)) ->  | B89: =PROPER(IF(Table1[[#This Row],[नाम]]="","",Table1[[#This Row],[नाम]])) ->  | K89: 220 | O89: =SUM(Table3[[#This Row],[GPF]:[अन्य 3]]) -> 220
A90: =IF(Table3[[#This Row],[नाम]]="","",ROWS($A$1:A87)) ->  | B90: =PROPER(IF(Table1[[#This Row],[नाम]]="","",Table1[[#This Row],[नाम]])) ->  | K90: 220 | O90: =SUM(Table3[[#This Row],[GPF]:[अन्य 3]]) -> 220
A91: =IF(Table3[[#This Row],[नाम]]="","",ROWS($A$1:A88)) ->  | B91: =PROPER(IF(Table1[[#This Row],[नाम]]="","",Table1[[#This Row],[नाम]])) ->  | K91: 220 | O91: =SUM(Table3[[#This Row],[GPF]:[अन्य 3]]) -> 220
A92: =IF(Table3[[#This Row],[नाम]]="","",ROWS($A$1:A89)) ->  | B92: =PROPER(IF(Table1[[#This Row],[नाम]]="","",Table1[[#This Row],[नाम]])) ->  | K92: 220 | O92: =SUM(Table3[[#This Row],[GPF]:[अन्य 3]]) -> 220
A93: =IF(Table3[[#This Row],[नाम]]="","",ROWS($A$1:A90)) ->  | B93: =PROPER(IF(Table1[[#This Row],[नाम]]="","",Table1[[#This Row],[नाम]])) ->  | K93: 220 | O93: =SUM(Table3[[#This Row],[GPF]:[अन्य 3]]) -> 220
A94: =IF(Table3[[#This Row],[नाम]]="","",ROWS($A$1:A91)) ->  | B94: =PROPER(IF(Table1[[#This Row],[नाम]]="","",Table1[[#This Row],[नाम]])) ->  | K94: 220 | O94: =SUM(Table3[[#This Row],[GPF]:[अन्य 3]]) -> 220
A95: =IF(Table3[[#This Row],[नाम]]="","",ROWS($A$1:A92)) ->  | B95: =PROPER(IF(Table1[[#This Row],[नाम]]="","",Table1[[#This Row],[नाम]])) ->  | K95: 220 | O95: =SUM(Table3[[#This Row],[GPF]:[अन्य 3]]) -> 220
A96: =IF(Table3[[#This Row],[नाम]]="","",ROWS($A$1:A93)) ->  | B96: =PROPER(IF(Table1[[#This Row],[नाम]]="","",Table1[[#This Row],[नाम]])) ->  | K96: 220 | O96: =SUM(Table3[[#This Row],[GPF]:[अन्य 3]]) -> 220
A97: =IF(Table3[[#This Row],[नाम]]="","",ROWS($A$1:A94)) ->  | B97: =PROPER(IF(Table1[[#This Row],[नाम]]="","",Table1[[#This Row],[नाम]])) ->  | K97: 220 | O97: =SUM(Table3[[#This Row],[GPF]:[अन्य 3]]) -> 220
A98: =IF(Table3[[#This Row],[नाम]]="","",ROWS($A$1:A95)) ->  | B98: =PROPER(IF(Table1[[#This Row],[नाम]]="","",Table1[[#This Row],[नाम]])) ->  | K98: 220 | O98: =SUM(Table3[[#This Row],[GPF]:[अन्य 3]]) -> 220
A99: =IF(Table3[[#This Row],[नाम]]="","",ROWS($A$1:A96)) ->  | B99: =PROPER(IF(Table1[[#This Row],[नाम]]="","",Table1[[#This Row],[नाम]])) ->  | K99: 220 | O99: =SUM(Table3[[#This Row],[GPF]:[अन्य 3]]) -> 220
A100: =IF(Table3[[#This Row],[नाम]]="","",ROWS($A$1:A97)) ->  | B100: =PROPER(IF(Table1[[#This Row],[नाम]]="","",Table1[[#This Row],[नाम]])) ->  | K100: 220 | O100: =SUM(Table3[[#This Row],[GPF]:[अन्य 3]]) -> 220
A101: =IF(Table3[[#This Row],[नाम]]="","",ROWS($A$1:A98)) ->  | B101: =PROPER(IF(Table1[[#This Row],[नाम]]="","",Table1[[#This Row],[नाम]])) ->  | K101: 220 | O101: =SUM(Table3[[#This Row],[GPF]:[अन्य 3]]) -> 220
A102: =IF(Table3[[#This Row],[नाम]]="","",ROWS($A$1:A99)) ->  | B102: =PROPER(IF(Table1[[#This Row],[नाम]]="","",Table1[[#This Row],[नाम]])) ->  | K102: 220 | O102: =SUM(Table3[[#This Row],[GPF]:[अन्य 3]]) -> 220
A103: =IF(Table3[[#This Row],[नाम]]="","",ROWS($A$1:A100)) ->  | B103: =PROPER(IF(Table1[[#This Row],[नाम]]="","",Table1[[#This Row],[नाम]])) ->  | K103: 220 | O103: =SUM(Table3[[#This Row],[GPF]:[अन्य 3]]) -> 220
A104: =IF(Table3[[#This Row],[नाम]]="","",ROWS($A$1:A101)) ->  | B104: =PROPER(IF(Table1[[#This Row],[नाम]]="","",Table1[[#This Row],[नाम]])) ->  | K104: 220 | O104: =SUM(Table3[[#This Row],[GPF]:[अन्य 3]]) -> 220
A105: =IF(Table3[[#This Row],[नाम]]="","",ROWS($A$1:A102)) ->  | B105: =PROPER(IF(Table1[[#This Row],[नाम]]="","",Table1[[#This Row],[नाम]])) ->  | K105: 220 | O105: =SUM(Table3[[#This Row],[GPF]:[अन्य 3]]) -> 220
A106: =IF(Table3[[#This Row],[नाम]]="","",ROWS($A$1:A103)) ->  | B106: =PROPER(IF(Table1[[#This Row],[नाम]]="","",Table1[[#This Row],[नाम]])) ->  | K106: 220 | O106: =SUM(Table3[[#This Row],[GPF]:[अन्य 3]]) -> 220
A107: =IF(Table3[[#This Row],[नाम]]="","",ROWS($A$1:A104)) ->  | B107: =PROPER(IF(Table1[[#This Row],[नाम]]="","",Table1[[#This Row],[नाम]])) ->  | K107: 220 | O107: =SUM(Table3[[#This Row],[GPF]:[अन्य 3]]) -> 220
A108: =IF(Table3[[#This Row],[नाम]]="","",ROWS($A$1:A105)) ->  | B108: =PROPER(IF(Table1[[#This Row],[नाम]]="","",Table1[[#This Row],[नाम]])) ->  | K108: 220 | O108: =SUM(Table3[[#This Row],[GPF]:[अन्य 3]]) -> 220
A109: =IF(Table3[[#This Row],[नाम]]="","",ROWS($A$1:A106)) ->  | B109: =PROPER(IF(Table1[[#This Row],[नाम]]="","",Table1[[#This Row],[नाम]])) ->  | K109: 220 | O109: =SUM(Table3[[#This Row],[GPF]:[अन्य 3]]) -> 220
A110: =IF(Table3[[#This Row],[नाम]]="","",ROWS($A$1:A107)) ->  | B110: =PROPER(IF(Table1[[#This Row],[नाम]]="","",Table1[[#This Row],[नाम]])) ->  | K110: 220 | O110: =SUM(Table3[[#This Row],[GPF]:[अन्य 3]]) -> 220
A111: =IF(Table3[[#This Row],[नाम]]="","",ROWS($A$1:A108)) ->  | B111: =PROPER(IF(Table1[[#This Row],[नाम]]="","",Table1[[#This Row],[नाम]])) ->  | K111: 220 | O111: =SUM(Table3[[#This Row],[GPF]:[अन्य 3]]) -> 220
A112: =IF(Table3[[#This Row],[नाम]]="","",ROWS($A$1:A109)) ->  | B112: =PROPER(IF(Table1[[#This Row],[नाम]]="","",Table1[[#This Row],[नाम]])) ->  | K112: 220 | O112: =SUM(Table3[[#This Row],[GPF]:[अन्य 3]]) -> 220
A113: =IF(Table3[[#This Row],[नाम]]="","",ROWS($A$1:A110)) ->  | B113: =PROPER(IF(Table1[[#This Row],[नाम]]="","",Table1[[#This Row],[नाम]])) ->  | K113: 220 | O113: =SUM(Table3[[#This Row],[GPF]:[अन्य 3]]) -> 220
A114: =IF(Table3[[#This Row],[नाम]]="","",ROWS($A$1:A111)) ->  | B114: =PROPER(IF(Table1[[#This Row],[नाम]]="","",Table1[[#This Row],[नाम]])) ->  | K114: 220 | O114: =SUM(Table3[[#This Row],[GPF]:[अन्य 3]]) -> 220
A115: =IF(Table3[[#This Row],[नाम]]="","",ROWS($A$1:A112)) ->  | B115: =PROPER(IF(Table1[[#This Row],[नाम]]="","",Table1[[#This Row],[नाम]])) ->  | K115: 220 | O115: =SUM(Table3[[#This Row],[GPF]:[अन्य 3]]) -> 220
A116: =IF(Table3[[#This Row],[नाम]]="","",ROWS($A$1:A113)) ->  | B116: =PROPER(IF(Table1[[#This Row],[नाम]]="","",Table1[[#This Row],[नाम]])) ->  | K116: 220 | O116: =SUM(Table3[[#This Row],[GPF]:[अन्य 3]]) -> 220
A117: =IF(Table3[[#This Row],[नाम]]="","",ROWS($A$1:A114)) ->  | B117: =PROPER(IF(Table1[[#This Row],[नाम]]="","",Table1[[#This Row],[नाम]])) ->  | K117: 220 | O117: =SUM(Table3[[#This Row],[GPF]:[अन्य 3]]) -> 220
A118: =IF(Table3[[#This Row],[नाम]]="","",ROWS($A$1:A115)) ->  | B118: =PROPER(IF(Table1[[#This Row],[नाम]]="","",Table1[[#This Row],[नाम]])) ->  | K118: 220 | O118: =SUM(Table3[[#This Row],[GPF]:[अन्य 3]]) -> 220
A119: =IF(Table3[[#This Row],[नाम]]="","",ROWS($A$1:A116)) ->  | B119: =PROPER(IF(Table1[[#This Row],[नाम]]="","",Table1[[#This Row],[नाम]])) ->  | K119: 220 | O119: =SUM(Table3[[#This Row],[GPF]:[अन्य 3]]) -> 220
A120: =IF(Table3[[#This Row],[नाम]]="","",ROWS($A$1:A117)) ->  | B120: =PROPER(IF(Table1[[#This Row],[नाम]]="","",Table1[[#This Row],[नाम]])) ->  | K120: 220 | O120: =SUM(Table3[[#This Row],[GPF]:[अन्य 3]]) -> 220
A121: =IF(Table3[[#This Row],[नाम]]="","",ROWS($A$1:A118)) ->  | B121: =PROPER(IF(Table1[[#This Row],[नाम]]="","",Table1[[#This Row],[नाम]])) ->  | K121: 220 | O121: =SUM(Table3[[#This Row],[GPF]:[अन्य 3]]) -> 220
A122: =IF(Table3[[#This Row],[नाम]]="","",ROWS($A$1:A119)) ->  | B122: =PROPER(IF(Table1[[#This Row],[नाम]]="","",Table1[[#This Row],[नाम]])) ->  | K122: 220 | O122: =SUM(Table3[[#This Row],[GPF]:[अन्य 3]]) -> 220
A123: =IF(Table3[[#This Row],[नाम]]="","",ROWS($A$1:A120)) ->  | B123: =PROPER(IF(Table1[[#This Row],[नाम]]="","",Table1[[#This Row],[नाम]])) ->  | K123: 220 | O123: =SUM(Table3[[#This Row],[GPF]:[अन्य 3]]) -> 220
A124: =IF(Table3[[#This Row],[नाम]]="","",ROWS($A$1:A121)) ->  | B124: =PROPER(IF(Table1[[#This Row],[नाम]]="","",Table1[[#This Row],[नाम]])) ->  | K124: 220 | O124: =SUM(Table3[[#This Row],[GPF]:[अन्य 3]]) -> 220
A125: =IF(Table3[[#This Row],[नाम]]="","",ROWS($A$1:A122)) ->  | B125: =PROPER(IF(Table1[[#This Row],[नाम]]="","",Table1[[#This Row],[नाम]])) ->  | K125: 220 | O125: =SUM(Table3[[#This Row],[GPF]:[अन्य 3]]) -> 220
A126: =IF(Table3[[#This Row],[नाम]]="","",ROWS($A$1:A123)) ->  | B126: =PROPER(IF(Table1[[#This Row],[नाम]]="","",Table1[[#This Row],[नाम]])) ->  | K126: 220 | O126: =SUM(Table3[[#This Row],[GPF]:[अन्य 3]]) -> 220
A127: =IF(Table3[[#This Row],[नाम]]="","",ROWS($A$1:A124)) ->  | B127: =PROPER(IF(Table1[[#This Row],[नाम]]="","",Table1[[#This Row],[नाम]])) ->  | K127: 220 | O127: =SUM(Table3[[#This Row],[GPF]:[अन्य 3]]) -> 220
A128: =IF(Table3[[#This Row],[नाम]]="","",ROWS($A$1:A125)) ->  | B128: =PROPER(IF(Table1[[#This Row],[नाम]]="","",Table1[[#This Row],[नाम]])) ->  | K128: 220 | O128: =SUM(Table3[[#This Row],[GPF]:[अन्य 3]]) -> 220
A129: =IF(Table3[[#This Row],[नाम]]="","",ROWS($A$1:A126)) ->  | B129: =PROPER(IF(Table1[[#This Row],[नाम]]="","",Table1[[#This Row],[नाम]])) ->  | K129: 220 | O129: =SUM(Table3[[#This Row],[GPF]:[अन्य 3]]) -> 220
A130: =IF(Table3[[#This Row],[नाम]]="","",ROWS($A$1:A127)) ->  | B130: =PROPER(IF(Table1[[#This Row],[नाम]]="","",Table1[[#This Row],[नाम]])) ->  | K130: 220 | O130: =SUM(Table3[[#This Row],[GPF]:[अन्य 3]]) -> 220
A131: =IF(Table3[[#This Row],[नाम]]="","",ROWS($A$1:A128)) ->  | B131: =PROPER(IF(Table1[[#This Row],[नाम]]="","",Table1[[#This Row],[नाम]])) ->  | K131: 220 | O131: =SUM(Table3[[#This Row],[GPF]:[अन्य 3]]) -> 220
A132: =IF(Table3[[#This Row],[नाम]]="","",ROWS($A$1:A129)) ->  | B132: =PROPER(IF(Table1[[#This Row],[नाम]]="","",Table1[[#This Row],[नाम]])) ->  | K132: 220 | O132: =SUM(Table3[[#This Row],[GPF]:[अन्य 3]]) -> 220
A133: =IF(Table3[[#This Row],[नाम]]="","",ROWS($A$1:A130)) ->  | B133: =PROPER(IF(Table1[[#This Row],[नाम]]="","",Table1[[#This Row],[नाम]])) ->  | K133: 220 | O133: =SUM(Table3[[#This Row],[GPF]:[अन्य 3]]) -> 220
A134: =IF(Table3[[#This Row],[नाम]]="","",ROWS($A$1:A131)) ->  | B134: =PROPER(IF(Table1[[#This Row],[नाम]]="","",Table1[[#This Row],[नाम]])) ->  | K134: 220 | O134: =SUM(Table3[[#This Row],[GPF]:[अन्य 3]]) -> 220
A135: =IF(Table3[[#This Row],[नाम]]="","",ROWS($A$1:A132)) ->  | B135: =PROPER(IF(Table1[[#This Row],[नाम]]="","",Table1[[#This Row],[नाम]])) ->  | K135: 220 | O135: =SUM(Table3[[#This Row],[GPF]:[अन्य 3]]) -> 220
A136: =IF(Table3[[#This Row],[नाम]]="","",ROWS($A$1:A133)) ->  | B136: =PROPER(IF(Table1[[#This Row],[नाम]]="","",Table1[[#This Row],[नाम]])) ->  | K136: 220 | O136: =SUM(Table3[[#This Row],[GPF]:[अन्य 3]]) -> 220
A137: =IF(Table3[[#This Row],[नाम]]="","",ROWS($A$1:A134)) ->  | B137: =PROPER(IF(Table1[[#This Row],[नाम]]="","",Table1[[#This Row],[नाम]])) ->  | K137: 220 | O137: =SUM(Table3[[#This Row],[GPF]:[अन्य 3]]) -> 220
A138: =IF(Table3[[#This Row],[नाम]]="","",ROWS($A$1:A135)) ->  | B138: =PROPER(IF(Table1[[#This Row],[नाम]]="","",Table1[[#This Row],[नाम]])) ->  | K138: 220 | O138: =SUM(Table3[[#This Row],[GPF]:[अन्य 3]]) -> 220
A139: =IF(Table3[[#This Row],[नाम]]="","",ROWS($A$1:A136)) ->  | B139: =PROPER(IF(Table1[[#This Row],[नाम]]="","",Table1[[#This Row],[नाम]])) ->  | K139: 220 | O139: =SUM(Table3[[#This Row],[GPF]:[अन्य 3]]) -> 220
A140: =IF(Table3[[#This Row],[नाम]]="","",ROWS($A$1:A137)) ->  | B140: =PROPER(IF(Table1[[#This Row],[नाम]]="","",Table1[[#This Row],[नाम]])) ->  | K140: 220 | O140: =SUM(Table3[[#This Row],[GPF]:[अन्य 3]]) -> 220
A141: =IF(Table3[[#This Row],[नाम]]="","",ROWS($A$1:A138)) ->  | B141: =PROPER(IF(Table1[[#This Row],[नाम]]="","",Table1[[#This Row],[नाम]])) ->  | K141: 220 | O141: =SUM(Table3[[#This Row],[GPF]:[अन्य 3]]) -> 220
A142: =IF(Table3[[#This Row],[नाम]]="","",ROWS($A$1:A139)) ->  | B142: =PROPER(IF(Table1[[#This Row],[नाम]]="","",Table1[[#This Row],[नाम]])) ->  | K142: 220 | O142: =SUM(Table3[[#This Row],[GPF]:[अन्य 3]]) -> 220
A143: =IF(Table3[[#This Row],[नाम]]="","",ROWS($A$1:A140)) ->  | B143: =PROPER(IF(Table1[[#This Row],[नाम]]="","",Table1[[#This Row],[नाम]])) ->  | K143: 220 | O143: =SUM(Table3[[#This Row],[GPF]:[अन्य 3]]) -> 220
A144: =IF(Table3[[#This Row],[नाम]]="","",ROWS($A$1:A141)) ->  | B144: =PROPER(IF(Table1[[#This Row],[नाम]]="","",Table1[[#This Row],[नाम]])) ->  | K144: 220 | O144: =SUM(Table3[[#This Row],[GPF]:[अन्य 3]]) -> 220
A145: =IF(Table3[[#This Row],[नाम]]="","",ROWS($A$1:A142)) ->  | B145: =PROPER(IF(Table1[[#This Row],[नाम]]="","",Table1[[#This Row],[नाम]])) ->  | K145: 220 | O145: =SUM(Table3[[#This Row],[GPF]:[अन्य 3]]) -> 220
A146: =IF(Table3[[#This Row],[नाम]]="","",ROWS($A$1:A143)) ->  | B146: =PROPER(IF(Table1[[#This Row],[नाम]]="","",Table1[[#This Row],[नाम]])) ->  | K146: 220 | O146: =SUM(Table3[[#This Row],[GPF]:[अन्य 3]]) -> 220
A147: =IF(Table3[[#This Row],[नाम]]="","",ROWS($A$1:A144)) ->  | B147: =PROPER(IF(Table1[[#This Row],[नाम]]="","",Table1[[#This Row],[नाम]])) ->  | K147: 220 | O147: =SUM(Table3[[#This Row],[GPF]:[अन्य 3]]) -> 220
A148: =IF(Table3[[#This Row],[नाम]]="","",ROWS($A$1:A145)) ->  | B148: =PROPER(IF(Table1[[#This Row],[नाम]]="","",Table1[[#This Row],[नाम]])) ->  | K148: 220 | O148: =SUM(Table3[[#This Row],[GPF]:[अन्य 3]]) -> 220
A149: =IF(Table3[[#This Row],[नाम]]="","",ROWS($A$1:A146)) ->  | B149: =PROPER(IF(Table1[[#This Row],[नाम]]="","",Table1[[#This Row],[नाम]])) ->  | K149: 220 | O149: =SUM(Table3[[#This Row],[GPF]:[अन्य 3]]) -> 220
A150: =IF(Table3[[#This Row],[नाम]]="","",ROWS($A$1:A147)) ->  | B150: =PROPER(IF(Table1[[#This Row],[नाम]]="","",Table1[[#This Row],[नाम]])) ->  | K150: 220 | O150: =SUM(Table3[[#This Row],[GPF]:[अन्य 3]]) -> 220
A151: =IF(Table3[[#This Row],[नाम]]="","",ROWS($A$1:A148)) ->  | B151: =PROPER(IF(Table1[[#This Row],[नाम]]="","",Table1[[#This Row],[नाम]])) ->  | K151: 220 | O151: =SUM(Table3[[#This Row],[GPF]:[अन्य 3]]) -> 220
A152: =IF(Table3[[#This Row],[नाम]]="","",ROWS($A$1:A149)) ->  | B152: =PROPER(IF(Table1[[#This Row],[नाम]]="","",Table1[[#This Row],[नाम]])) ->  | K152: 220 | O152: =SUM(Table3[[#This Row],[GPF]:[अन्य 3]]) -> 220
A153: =IF(Table3[[#This Row],[नाम]]="","",ROWS($A$1:A150)) ->  | B153: =PROPER(IF(Table1[[#This Row],[नाम]]="","",Table1[[#This Row],[नाम]])) ->  | K153: 220 | O153: =SUM(Table3[[#This Row],[GPF]:[अन्य 3]]) -> 220
A154: =IF(Table3[[#This Row],[नाम]]="","",ROWS($A$1:A151)) ->  | B154: =PROPER(IF(Table1[[#This Row],[नाम]]="","",Table1[[#This Row],[नाम]])) ->  | K154: 220 | O154: =SUM(Table3[[#This Row],[GPF]:[अन्य 3]]) -> 220
A155: =IF(Table3[[#This Row],[नाम]]="","",ROWS($A$1:A152)) ->  | B155: =PROPER(IF(Table1[[#This Row],[नाम]]="","",Table1[[#This Row],[नाम]])) ->  | K155: 220 | O155: =SUM(Table3[[#This Row],[GPF]:[अन्य 3]]) -> 220
A156: =IF(Table3[[#This Row],[नाम]]="","",ROWS($A$1:A153)) ->  | B156: =PROPER(IF(Table1[[#This Row],[नाम]]="","",Table1[[#This Row],[नाम]])) ->  | K156: 220 | O156: =SUM(Table3[[#This Row],[GPF]:[अन्य 3]]) -> 220
A157: =IF(Table3[[#This Row],[नाम]]="","",ROWS($A$1:A154)) ->  | B157: =PROPER(IF(Table1[[#This Row],[नाम]]="","",Table1[[#This Row],[नाम]])) ->  | K157: 220 | O157: =SUM(Table3[[#This Row],[GPF]:[अन्य 3]]) -> 220
A158: =IF(Table3[[#This Row],[नाम]]="","",ROWS($A$1:A155)) ->  | B158: =PROPER(IF(Table1[[#This Row],[नाम]]="","",Table1[[#This Row],[नाम]])) ->  | K158: 220 | O158: =SUM(Table3[[#This Row],[GPF]:[अन्य 3]]) -> 220
A159: =IF(Table3[[#This Row],[नाम]]="","",ROWS($A$1:A156)) ->  | B159: =PROPER(IF(Table1[[#This Row],[नाम]]="","",Table1[[#This Row],[नाम]])) ->  | K159: 220 | O159: =SUM(Table3[[#This Row],[GPF]:[अन्य 3]]) -> 220
A160: =IF(Table3[[#This Row],[नाम]]="","",ROWS($A$1:A157)) ->  | B160: =PROPER(IF(Table1[[#This Row],[नाम]]="","",Table1[[#This Row],[नाम]])) ->  | K160: 220 | O160: =SUM(Table3[[#This Row],[GPF]:[अन्य 3]]) -> 220
A161: =IF(Table3[[#This Row],[नाम]]="","",ROWS($A$1:A158)) ->  | B161: =PROPER(IF(Table1[[#This Row],[नाम]]="","",Table1[[#This Row],[नाम]])) ->  | K161: 220 | O161: =SUM(Table3[[#This Row],[GPF]:[अन्य 3]]) -> 220
A162: =IF(Table3[[#This Row],[नाम]]="","",ROWS($A$1:A159)) ->  | B162: =PROPER(IF(Table1[[#This Row],[नाम]]="","",Table1[[#This Row],[नाम]])) ->  | K162: 220 | O162: =SUM(Table3[[#This Row],[GPF]:[अन्य 3]]) -> 220
A163: =IF(Table3[[#This Row],[नाम]]="","",ROWS($A$1:A160)) ->  | B163: =PROPER(IF(Table1[[#This Row],[नाम]]="","",Table1[[#This Row],[नाम]])) ->  | K163: 220 | O163: =SUM(Table3[[#This Row],[GPF]:[अन्य 3]]) -> 220
A164: =IF(Table3[[#This Row],[नाम]]="","",ROWS($A$1:A161)) ->  | B164: =PROPER(IF(Table1[[#This Row],[नाम]]="","",Table1[[#This Row],[नाम]])) ->  | K164: 220 | O164: =SUM(Table3[[#This Row],[GPF]:[अन्य 3]]) -> 220
A165: =IF(Table3[[#This Row],[नाम]]="","",ROWS($A$1:A162)) ->  | B165: =PROPER(IF(Table1[[#This Row],[नाम]]="","",Table1[[#This Row],[नाम]])) ->  | K165: 220 | O165: =SUM(Table3[[#This Row],[GPF]:[अन्य 3]]) -> 220
A166: =IF(Table3[[#This Row],[नाम]]="","",ROWS($A$1:A163)) ->  | B166: =PROPER(IF(Table1[[#This Row],[नाम]]="","",Table1[[#This Row],[नाम]])) ->  | K166: 220 | O166: =SUM(Table3[[#This Row],[GPF]:[अन्य 3]]) -> 220
A167: =IF(Table3[[#This Row],[नाम]]="","",ROWS($A$1:A164)) ->  | B167: =PROPER(IF(Table1[[#This Row],[नाम]]="","",Table1[[#This Row],[नाम]])) ->  | K167: 220 | O167: =SUM(Table3[[#This Row],[GPF]:[अन्य 3]]) -> 220
A168: =IF(Table3[[#This Row],[नाम]]="","",ROWS($A$1:A165)) ->  | B168: =PROPER(IF(Table1[[#This Row],[नाम]]="","",Table1[[#This Row],[नाम]])) ->  | K168: 220 | O168: =SUM(Table3[[#This Row],[GPF]:[अन्य 3]]) -> 220
A169: =IF(Table3[[#This Row],[नाम]]="","",ROWS($A$1:A166)) ->  | B169: =PROPER(IF(Table1[[#This Row],[नाम]]="","",Table1[[#This Row],[नाम]])) ->  | K169: 220 | O169: =SUM(Table3[[#This Row],[GPF]:[अन्य 3]]) -> 220
A170: =IF(Table3[[#This Row],[नाम]]="","",ROWS($A$1:A167)) ->  | B170: =PROPER(IF(Table1[[#This Row],[नाम]]="","",Table1[[#This Row],[नाम]])) ->  | K170: 220 | O170: =SUM(Table3[[#This Row],[GPF]:[अन्य 3]]) -> 220
A171: =IF(Table3[[#This Row],[नाम]]="","",ROWS($A$1:A168)) ->  | B171: =PROPER(IF(Table1[[#This Row],[नाम]]="","",Table1[[#This Row],[नाम]])) ->  | K171: 220 | O171: =SUM(Table3[[#This Row],[GPF]:[अन्य 3]]) -> 220
A172: =IF(Table3[[#This Row],[नाम]]="","",ROWS($A$1:A169)) ->  | B172: =PROPER(IF(Table1[[#This Row],[नाम]]="","",Table1[[#This Row],[नाम]])) ->  | K172: 220 | O172: =SUM(Table3[[#This Row],[GPF]:[अन्य 3]]) -> 220
A173: =IF(Table3[[#This Row],[नाम]]="","",ROWS($A$1:A170)) ->  | B173: =PROPER(IF(Table1[[#This Row],[नाम]]="","",Table1[[#This Row],[नाम]])) ->  | K173: 220 | O173: =SUM(Table3[[#This Row],[GPF]:[अन्य 3]]) -> 220
A174: =IF(Table3[[#This Row],[नाम]]="","",ROWS($A$1:A171)) ->  | B174: =PROPER(IF(Table1[[#This Row],[नाम]]="","",Table1[[#This Row],[नाम]])) ->  | K174: 220 | O174: =SUM(Table3[[#This Row],[GPF]:[अन्य 3]]) -> 220
A175: =IF(Table3[[#This Row],[नाम]]="","",ROWS($A$1:A172)) ->  | B175: =PROPER(IF(Table1[[#This Row],[नाम]]="","",Table1[[#This Row],[नाम]])) ->  | K175: 220 | O175: =SUM(Table3[[#This Row],[GPF]:[अन्य 3]]) -> 220
A176: =IF(Table3[[#This Row],[नाम]]="","",ROWS($A$1:A173)) ->  | B176: =PROPER(IF(Table1[[#This Row],[नाम]]="","",Table1[[#This Row],[नाम]])) ->  | K176: 220 | O176: =SUM(Table3[[#This Row],[GPF]:[अन्य 3]]) -> 220
A177: =IF(Table3[[#This Row],[नाम]]="","",ROWS($A$1:A174)) ->  | B177: =PROPER(IF(Table1[[#This Row],[नाम]]="","",Table1[[#This Row],[नाम]])) ->  | K177: 220 | O177: =SUM(Table3[[#This Row],[GPF]:[अन्य 3]]) -> 220
A178: =IF(Table3[[#This Row],[नाम]]="","",ROWS($A$1:A175)) ->  | B178: =PROPER(IF(Table1[[#This Row],[नाम]]="","",Table1[[#This Row],[नाम]])) ->  | K178: 220 | O178: =SUM(Table3[[#This Row],[GPF]:[अन्य 3]]) -> 220
A179: =IF(Table3[[#This Row],[नाम]]="","",ROWS($A$1:A176)) ->  | B179: =PROPER(IF(Table1[[#This Row],[नाम]]="","",Table1[[#This Row],[नाम]])) ->  | K179: 220 | O179: =SUM(Table3[[#This Row],[GPF]:[अन्य 3]]) -> 220
A180: =IF(Table3[[#This Row],[नाम]]="","",ROWS($A$1:A177)) ->  | B180: =PROPER(IF(Table1[[#This Row],[नाम]]="","",Table1[[#This Row],[नाम]])) ->  | K180: 220 | O180: =SUM(Table3[[#This Row],[GPF]:[अन्य 3]]) -> 220
A181: =IF(Table3[[#This Row],[नाम]]="","",ROWS($A$1:A178)) ->  | B181: =PROPER(IF(Table1[[#This Row],[नाम]]="","",Table1[[#This Row],[नाम]])) ->  | K181: 220 | O181: =SUM(Table3[[#This Row],[GPF]:[अन्य 3]]) -> 220
A182: =IF(Table3[[#This Row],[नाम]]="","",ROWS($A$1:A179)) ->  | B182: =PROPER(IF(Table1[[#This Row],[नाम]]="","",Table1[[#This Row],[नाम]])) ->  | K182: 220 | O182: =SUM(Table3[[#This Row],[GPF]:[अन्य 3]]) -> 220
A183: =IF(Table3[[#This Row],[नाम]]="","",ROWS($A$1:A180)) ->  | B183: =PROPER(IF(Table1[[#This Row],[नाम]]="","",Table1[[#This Row],[नाम]])) ->  | K183: 220 | O183: =SUM(Table3[[#This Row],[GPF]:[अन्य 3]]) -> 220
A184: =IF(Table3[[#This Row],[नाम]]="","",ROWS($A$1:A181)) ->  | B184: =PROPER(IF(Table1[[#This Row],[नाम]]="","",Table1[[#This Row],[नाम]])) ->  | K184: 220 | O184: =SUM(Table3[[#This Row],[GPF]:[अन्य 3]]) -> 220
A185: =IF(Table3[[#This Row],[नाम]]="","",ROWS($A$1:A182)) ->  | B185: =PROPER(IF(Table1[[#This Row],[नाम]]="","",Table1[[#This Row],[नाम]])) ->  | K185: 220 | O185: =SUM(Table3[[#This Row],[GPF]:[अन्य 3]]) -> 220
A186: =IF(Table3[[#This Row],[नाम]]="","",ROWS($A$1:A183)) ->  | B186: =PROPER(IF(Table1[[#This Row],[नाम]]="","",Table1[[#This Row],[नाम]])) ->  | K186: 220 | O186: =SUM(Table3[[#This Row],[GPF]:[अन्य 3]]) -> 220
A187: =IF(Table3[[#This Row],[नाम]]="","",ROWS($A$1:A184)) ->  | B187: =PROPER(IF(Table1[[#This Row],[नाम]]="","",Table1[[#This Row],[नाम]])) ->  | K187: 220 | O187: =SUM(Table3[[#This Row],[GPF]:[अन्य 3]]) -> 220
A188: =IF(Table3[[#This Row],[नाम]]="","",ROWS($A$1:A185)) ->  | B188: =PROPER(IF(Table1[[#This Row],[नाम]]="","",Table1[[#This Row],[नाम]])) ->  | K188: 220 | O188: =SUM(Table3[[#This Row],[GPF]:[अन्य 3]]) -> 220
A189: =IF(Table3[[#This Row],[नाम]]="","",ROWS($A$1:A186)) ->  | B189: =PROPER(IF(Table1[[#This Row],[नाम]]="","",Table1[[#This Row],[नाम]])) ->  | K189: 220 | O189: =SUM(Table3[[#This Row],[GPF]:[अन्य 3]]) -> 220
A190: =IF(Table3[[#This Row],[नाम]]="","",ROWS($A$1:A187)) ->  | B190: =PROPER(IF(Table1[[#This Row],[नाम]]="","",Table1[[#This Row],[नाम]])) ->  | K190: 220 | O190: =SUM(Table3[[#This Row],[GPF]:[अन्य 3]]) -> 220
A191: =IF(Table3[[#This Row],[नाम]]="","",ROWS($A$1:A188)) ->  | B191: =PROPER(IF(Table1[[#This Row],[नाम]]="","",Table1[[#This Row],[नाम]])) ->  | K191: 220 | O191: =SUM(Table3[[#This Row],[GPF]:[अन्य 3]]) -> 220
A192: =IF(Table3[[#This Row],[नाम]]="","",ROWS($A$1:A189)) ->  | B192: =PROPER(IF(Table1[[#This Row],[नाम]]="","",Table1[[#This Row],[नाम]])) ->  | K192: 220 | O192: =SUM(Table3[[#This Row],[GPF]:[अन्य 3]]) -> 220
A193: =IF(Table3[[#This Row],[नाम]]="","",ROWS($A$1:A190)) ->  | B193: =PROPER(IF(Table1[[#This Row],[नाम]]="","",Table1[[#This Row],[नाम]])) ->  | K193: 220 | O193: =SUM(Table3[[#This Row],[GPF]:[अन्य 3]]) -> 220
A194: =IF(Table3[[#This Row],[नाम]]="","",ROWS($A$1:A191)) ->  | B194: =PROPER(IF(Table1[[#This Row],[नाम]]="","",Table1[[#This Row],[नाम]])) ->  | K194: 220 | O194: =SUM(Table3[[#This Row],[GPF]:[अन्य 3]]) -> 220
A195: =IF(Table3[[#This Row],[नाम]]="","",ROWS($A$1:A192)) ->  | B195: =PROPER(IF(Table1[[#This Row],[नाम]]="","",Table1[[#This Row],[नाम]])) ->  | K195: 220 | O195: =SUM(Table3[[#This Row],[GPF]:[अन्य 3]]) -> 220
A196: =IF(Table3[[#This Row],[नाम]]="","",ROWS($A$1:A193)) ->  | B196: =PROPER(IF(Table1[[#This Row],[नाम]]="","",Table1[[#This Row],[नाम]])) ->  | K196: 220 | O196: =SUM(Table3[[#This Row],[GPF]:[अन्य 3]]) -> 220
A197: =IF(Table3[[#This Row],[नाम]]="","",ROWS($A$1:A194)) ->  | B197: =PROPER(IF(Table1[[#This Row],[नाम]]="","",Table1[[#This Row],[नाम]])) ->  | K197: 220 | O197: =SUM(Table3[[#This Row],[GPF]:[अन्य 3]]) -> 220
A198: =IF(Table3[[#This Row],[नाम]]="","",ROWS($A$1:A195)) ->  | B198: =PROPER(IF(Table1[[#This Row],[नाम]]="","",Table1[[#This Row],[नाम]])) ->  | K198: 220 | O198: =SUM(Table3[[#This Row],[GPF]:[अन्य 3]]) -> 220
A199: =IF(Table3[[#This Row],[नाम]]="","",ROWS($A$1:A196)) ->  | B199: =PROPER(IF(Table1[[#This Row],[नाम]]="","",Table1[[#This Row],[नाम]])) ->  | K199: 220 | O199: =SUM(Table3[[#This Row],[GPF]:[अन्य 3]]) -> 220
A200: =IF(Table3[[#This Row],[नाम]]="","",ROWS($A$1:A197)) ->  | B200: =PROPER(IF(Table1[[#This Row],[नाम]]="","",Table1[[#This Row],[नाम]])) ->  | K200: 220 | O200: =SUM(Table3[[#This Row],[GPF]:[अन्य 3]]) -> 220
... 99 more rows

Sheet Edit Pay Posting
A1: ='Emp. Data'!A1 -> Government Senior Secondary School, Rooppura | P1: 2 | T1: =VLOOKUP($P$1,Table1[#All],16,0) -> No
A2: Pay Posting Register | T2: =VLOOKUP($P$1,Table1[#All],7,0) -> Yes
A4: नाम- | B4: =IFERROR(PROPER(VLOOKUP($P$1,Table1[#All],2,0)),"NoData") -> Ashwini Kumar | E4: पद- | F4: =IFERROR(PROPER(VLOOKUP($P$1,Table1[#All],3,0)),"NoData") -> Senior Teacher (Ii Gr.) | I4: DOB- | J4: =IFERROR(VLOOKUP($P$1,Table1[#All],4,0),"NoData") -> 1988-02-06 | L4: पैन नंबर- | M4: =IFERROR(VLOOKUP($P$1,Table1[#All],5,0),"NoData") -> XXXXK5921Q | P4: If Basic Change
A5: Emp. ID- | B5: =IFERROR(VLOOKUP($P$1,Table1[#All],6,0),"NoData") -> RJNA201228008021 | E5: SI No.- | F5: =IFERROR(VLOOKUP($P$1,Table1[#All],9,0),"NoData") -> 123 | I5: GPF No.- | J5: =IFERROR(VLOOKUP($P$1,Table1[#All],10,0),"NoData") -> 1234 | L5: PRAN No. | M5: =IFERROR(VLOOKUP($P$1,Table1[#All],11,0),"NoData") -> 1234567891011 | P5: DEC | R5: 47000
A6: आधार कार्ड नंबर- | B6: =IFERROR(VLOOKUP($P$1,Table1[#All],12,0),"NoData") -> XXXXXXXX6191 | E6: बैंक नाम- | F6: =IFERROR(VLOOKUP($P$1,Table1[#All],13,0),"NoData") -> SBI | I6: IFSC Cod- | J6: =IFERROR(VLOOKUP($P$1,Table1[#All],14,0),"NoData") -> SBIN0031733 | L6: बैंक A/c- | M6: =IFERROR(VLOOKUP($P$1,Table1[#All],15,0),"NoData") -> 1234567891011 | P6: Surrender Month | S6: राजपत्रित
A8: =$B$4 -> Ashwini Kumar | B8: Month | C8: APR | D8: MAY | E8: JUN | F8: JUL | G8: AUG | H8: SEP | I8: OCT | J8: NOV | K8: DEC | L8: JAN | M8: FEB | N8: MAR | P8: OCT | S8: Yes
A9: वेतन एवं कटौती का विवरण | B9: DA Rates | C9: 17% | D9: 17% | E9: 17% | F9: 17% | G9: 17% | H9: 17% | I9: 17% | J9: 17% | K9: 17% | L9: 17% | M9: 17% | N9: 17%
B10: Bill No. | C10: =IFERROR(VLOOKUP(C8,'Bill and TV No.'!$B$3:$F$15,2,0),"") -> 1 | D10: =IFERROR(VLOOKUP(D8,'Bill and TV No.'!$B$3:$F$15,2,0),"") -> 2 | E10: =IFERROR(VLOOKUP(E8,'Bill and TV No.'!$B$3:$F$15,2,0),"") -> 3 | F10: =IFERROR(VLOOKUP(F8,'Bill and TV No.'!$B$3:$F$15,2,0),"") -> 4 | G10: =IFERROR(VLOOKUP(G8,'Bill and TV No.'!$B$3:$F$15,2,0),"") -> 5 | H10: =IFERROR(VLOOKUP(H8,'Bill and TV No.'!$B$3:$F$15,2,0),"") -> 6 | I10: =IFERROR(VLOOKUP(I8,'Bill and TV No.'!$B$3:$F$15,2,0),"") -> 7 | J10: =IFERROR(VLOOKUP(J8,'Bill and TV No.'!$B$3:$F$15,2,0),"") -> 8 | K10: =IFERROR(VLOOKUP(K8,'Bill and TV No.'!$B$3:$F$15,2,0),"") -> 9 | L10: =IFERROR(VLOOKUP(L8,'Bill and TV No.'!$B$3:$F$15,2,0),"") -> 10 | M10: =IFERROR(VLOOKUP(M8,'Bill and TV No.'!$B$3:$F$15,2,0),"") -> 11 | N10: =IFERROR(VLOOKUP(N8,'Bill and TV No.'!$B$3:$F$15,2,0),"") -> 12
B11: Date | C11: =IFERROR(VLOOKUP(C8,'Bill and TV No.'!$B$3:$F$15,3,0),"") -> 2021-03-21 | D11: =IFERROR(VLOOKUP(D8,'Bill and TV No.'!$B$3:$F$15,3,0),"") -> 2021-03-22 | E11: =IFERROR(VLOOKUP(E8,'Bill and TV No.'!$B$3:$F$15,3,0),"") -> 2021-03-23 | F11: =IFERROR(VLOOKUP(F8,'Bill and TV No.'!$B$3:$F$15,3,0),"") -> 2021-03-24 | G11: =IFERROR(VLOOKUP(G8,'Bill and TV No.'!$B$3:$F$15,3,0),"") -> 2021-03-25 | H11: =IFERROR(VLOOKUP(H8,'Bill and TV No.'!$B$3:$F$15,3,0),"") -> 2021-03-26 | I11: =IFERROR(VLOOKUP(I8,'Bill and TV No.'!$B$3:$F$15,3,0),"") -> 2021-03-27 | J11: =IFERROR(VLOOKUP(J8,'Bill and TV No.'!$B$3:$F$15,3,0),"") -> 2021-03-28 | K11: =IFERROR(VLOOKUP(K8,'Bill and TV No.'!$B$3:$F$15,3,0),"") -> 2021-03-29 | L11: =IFERROR(VLOOKUP(L8,'Bill and TV No.'!$B$3:$F$15,3,0),"") -> 2021-03-30 | M11: =IFERROR(VLOOKUP(M8,'Bill and TV No.'!$B$3:$F$15,3,0),"") -> 2021-03-31 | N11: =IFERROR(VLOOKUP(N8,'Bill and TV No.'!$B$3:$F$15,3,0),"") -> 2021-04-01
B12: TV No. | C12: =IFERROR(VLOOKUP(C8,'Bill and TV No.'!$B$3:$F$15,4,0),"") -> 6258 | D12: =IFERROR(VLOOKUP(D8,'Bill and TV No.'!$B$3:$F$15,4,0),"") -> 6259 | E12: =IFERROR(VLOOKUP(E8,'Bill and TV No.'!$B$3:$F$15,4,0),"") -> 6260 | F12: =IFERROR(VLOOKUP(F8,'Bill and TV No.'!$B$3:$F$15,4,0),"") -> 6261 | G12: =IFERROR(VLOOKUP(G8,'Bill and TV No.'!$B$3:$F$15,4,0),"") -> 6262 | H12: =IFERROR(VLOOKUP(H8,'Bill and TV No.'!$B$3:$F$15,4,0),"") -> 6263 | I12: =IFERROR(VLOOKUP(I8,'Bill and TV No.'!$B$3:$F$15,4,0),"") -> 6264 | J12: =IFERROR(VLOOKUP(J8,'Bill and TV No.'!$B$3:$F$15,4,0),"") -> 6265 | K12: =IFERROR(VLOOKUP(K8,'Bill and TV No.'!$B$3:$F$15,4,0),"") -> 6266 | L12: =IFERROR(VLOOKUP(L8,'Bill and TV No.'!$B$3:$F$15,4,0),"") -> 6267 | M12: =IFERROR(VLOOKUP(M8,'Bill and TV No.'!$B$3:$F$15,4,0),"") -> 6268 | N12: =IFERROR(VLOOKUP(N8,'Bill and TV No.'!$B$3:$F$15,4,0),"") -> 6269
B13: Date | C13: =IFERROR(VLOOKUP(C8,'Bill and TV No.'!$B$3:$F$15,5,0),"") -> 2021-04-01 | D13: =IFERROR(VLOOKUP(D8,'Bill and TV No.'!$B$3:$F$15,5,0),"") -> 2021-04-02 | E13: =IFERROR(VLOOKUP(E8,'Bill and TV No.'!$B$3:$F$15,5,0),"") -> 2021-04-03 | F13: =IFERROR(VLOOKUP(F8,'Bill and TV No.'!$B$3:$F$15,5,0),"") -> 2021-04-04 | G13: =IFERROR(VLOOKUP(G8,'Bill and TV No.'!$B$3:$F$15,5,0),"") -> 2021-04-05 | H13: =IFERROR(VLOOKUP(H8,'Bill and TV No.'!$B$3:$F$15,5,0),"") -> 2021-04-06 | I13: =IFERROR(VLOOKUP(I8,'Bill and TV No.'!$B$3:$F$15,5,0),"") -> 2021-04-07 | J13: =IFERROR(VLOOKUP(J8,'Bill and TV No.'!$B$3:$F$15,5,0),"") -> 2021-04-08 | K13: =IFERROR(VLOOKUP(K8,'Bill and TV No.'!$B$3:$F$15,5,0),"") -> 2021-04-09 | L13: =IFERROR(VLOOKUP(L8,'Bill and TV No.'!$B$3:$F$15,5,0),"") -> 2021-04-10 | M13: =IFERROR(VLOOKUP(M8,'Bill and TV No.'!$B$3:$F$15,5,0),"") -> 2021-04-11 | N13: =IFERROR(VLOOKUP(N8,'Bill and TV No.'!$B$3:$F$15,5,0),"") -> 2021-04-12
A15: (अ) वेतन
A16: मूल वेतन | C16: =VLOOKUP($P$1,Table2[#All],3,0) -> 43800 | D16: =IF(D8=$P$5,$R$5,C16) -> 43800 | E16: =IF(E8=$P$5,$R$5,D16) -> 43800 | F16: =IF(AND($B$4=VLOOKUP($P$1,Table1[#All],2,0),$T$1="YES"),$E$16,MROUND(E16*1.03,100)) -> 45100 | G16: =IF(G8=$P$5,$R$5,F16) -> 45100 | H16: =IF(H8=$P$5,$R$5,G16) -> 45100 | I16: 45100 | J16: 45100 | K16: 47000 | L16: 47000 | M16: 47000 | N16: 47000
A17: अवकाश वेतन | C17: =VLOOKUP($P$1,Table2[#All],4,0) -> 0 | D17: =C17 -> 0 | E17: =D17 -> 0 | F17: 0 | G17: 0 | H17: 0 | I17: 0 | J17: 0 | K17: 0 | L17: 0 | M17: 0 | N17: 0
A18: विशेष वेतन | C18: =VLOOKUP($P$1,Table2[#All],5,0) -> 0 | D18: =C18 -> 0 | E18: =D18 -> 0 | F18: 0 | G18: 0 | H18: 0 | I18: 0 | J18: 0 | K18: 0 | L18: 0 | M18: 0 | N18: 0
A19: मंहगाई भत्ता | C19: =IF($T$1="Yes",0,IF(C16="","",ROUND(C16*C9,0))) -> 7446 | D19: =IF($T$1="Yes",0,IF(D16="","",ROUND(D16*D9,0))) -> 7446 | E19: 7446 | F19: 7667 | G19: 7667 | H19: 7667 | I19: 7667 | J19: 7667 | K19: 7990 | L19: 7990 | M19: 7990 | N19: 7990
A20: मकान किराया भत्ता | C20: =IF($T$1="Yes",0,IF(OR(C16="",VLOOKUP($P$1,Table1[#All],8,0)="NA"),0,ROUND(C16*VLOOKUP($P$1,Table1[#All],8,0),0))) -> 3504 | D20: =IF($T$1="Yes",0,IF(OR(D16="",VLOOKUP($P$1,Table1[#All],8,0)="NA"),0,ROUND(D16*VLOOKUP($P$1,Table1[#All],8,0),0))) -> 3504 | E20: =IF($T$1="Yes",0,IF(OR(E16="",VLOOKUP($P$1,Table1[#All],8,0)="NA"),0,ROUND(E16*VLOOKUP($P$1,Table1[#All],8,0),0))) -> 3504 | F20: =IF($T$1="Yes",0,IF(OR(F16="",VLOOKUP($P$1,Table1[#All],8,0)="NA"),0,ROUND(F16*VLOOKUP($P$1,Table1[#All],8,0),0))) -> 3608 | G20: =IF($T$1="Yes",0,IF(OR(G16="",VLOOKUP($P$1,Table1[#All],8,0)="NA"),0,ROUND(G16*VLOOKUP($P$1,Table1[#All],8,0),0))) -> 3608 | H20: =IF($T$1="Yes",0,IF(OR(H16="",VLOOKUP($P$1,Table1[#All],8,0)="NA"),0,ROUND(H16*VLOOKUP($P$1,Table1[#All],8,0),0))) -> 3608 | I20: =IF($T$1="Yes",0,IF(OR(I16="",VLOOKUP($P$1,Table1[#All],8,0)="NA"),0,ROUND(I16*VLOOKUP($P$1,Table1[#All],8,0),0))) -> 3608 | J20: =IF($T$1="Yes",0,IF(OR(J16="",VLOOKUP($P$1,Table1[#All],8,0)="NA"),0,ROUND(J16*VLOOKUP($P$1,Table1[#All],8,0),0))) -> 3608 | K20: =IF($T$1="Yes",0,IF(OR(K16="",VLOOKUP($P$1,Table1[#All],8,0)="NA"),0,ROUND(K16*VLOOKUP($P$1,Table1[#All],8,0),0))) -> 3760 | L20: =IF($T$1="Yes",0,IF(OR(L16="",VLOOKUP($P$1,Table1[#All],8,0)="NA"),0,ROUND(L16*VLOOKUP($P$1,Table1[#All],8,0),0))) -> 3760 | M20: =IF($T$1="Yes",0,IF(OR(M16="",VLOOKUP($P$1,Table1[#All],8,0)="NA"),0,ROUND(M16*VLOOKUP($P$1,Table1[#All],8,0),0))) -> 3760 | N20: =IF($T$1="Yes",0,IF(OR(N16="",VLOOKUP($P$1,Table1[#All],8,0)="NA"),0,ROUND(N16*VLOOKUP($P$1,Table1[#All],8,0),0))) -> 3760
A21: विकलांग भत्ता | C21: =VLOOKUP($P$1,Table2[#All],6,0) -> 0 | D21: =C21 -> 0 | E21: =D21 -> 0 | F21: 0 | G21: 0 | H21: 0 | I21: 0 | J21: 0 | K21: 0 | L21: 0 | M21: 0 | N21: 0
A22: शहरी भत्ता | C22: =VLOOKUP($P$1,Table2[#All],7,0) -> 0 | D22: =C22 -> 0 | E22: =D22 -> 0 | F22: 0 | G22: 0 | H22: 0 | I22: 0 | J22: 0 | K22: 0 | L22: 0 | M22: 0 | N22: 0
A23: अन्य 1 | C23: =VLOOKUP($P$1,Table2[#All],8,0) -> 0 | D23: =C23 -> 0 | E23: =D23 -> 0 | F23: 0 | G23: 0 | H23: 0 | I23: 0 | J23: 0 | K23: 0 | L23: 0 | M23: 0 | N23: 0
A24: अन्य 2 | C24: =VLOOKUP($P$1,Table2[#All],9,0) -> 0 | D24: =C24 -> 0 | E24: =D24 -> 0 | F24: 0 | G24: 0 | H24: 0 | I24: 0 | J24: 0 | K24: 0 | L24: 0 | M24: 0 | N24: 0
A25: अन्य 3 | C25: =VLOOKUP($P$1,Table2[#All],10,0) -> 0 | D25: =C25 -> 0 | E25: =D25 -> 0 | F25: 0 | G25: 0 | H25: 0 | I25: 0 | J25: 0 | K25: 0 | L25: 0 | M25: 0 | N25: 0
A26: योग (अ) | C26: =SUM(C16:C25) -> 54750 | D26: =SUM(D16:D25) -> 54750 | E26: 54750 | F26: 56375 | G26: 56375 | H26: 56375 | I26: 56375 | J26: 56375 | K26: 58750 | L26: 58750 | M26: 58750 | N26: 58750
A28: (ब) कटौतियां
A29: GPF | C29: =VLOOKUP($P$1,Table3[#All],3,0) -> 0 | D29: =C29 -> 0 | E29: =D29 -> 0 | F29: 0 | G29: 0 | H29: 0 | I29: 0 | J29: 0 | K29: 0 | L29: 0 | M29: 0 | N29: 0
A30: GPF Loan | C30: =VLOOKUP($P$1,Table3[#All],4,0) -> 0 | D30: =C30 -> 0 | E30: =D30 -> 0 | F30: 0 | G30: 0 | H30: 0 | I30: 0 | J30: 0 | K30: 0 | L30: 0 | M30: 0 | N30: 0
A31: NPS | C31: =IF($T$2="No",0,ROUND(SUM(C16,C19)*10%,0)) -> 5125 | D31: =IF($T$2="No",0,ROUND(SUM(D16,D19)*10%,0)) -> 5125 | E31: 5125 | F31: 5277 | G31: 5277 | H31: 5277 | I31: 5277 | J31: 5277 | K31: 5499 | L31: 5499 | M31: 5499 | N31: 5499
A32: SI | C32: =VLOOKUP($P$1,Table3[#All],5,0) -> 3000 | D32: =C32 -> 3000 | E32: =D32 -> 3000 | F32: 3000 | G32: 3000 | H32: 3000 | I32: 3000 | J32: 3000 | K32: 3000 | L32: 3000 | M32: 3000 | N32: 3000
A33: SI Loan | C33: =VLOOKUP($P$1,Table3[#All],6,0) -> 0 | D33: 0 | E33: =D33 -> 0 | F33: 0 | G33: 0 | H33: 0 | I33: 0 | J33: 0 | K33: 0 | L33: 0 | M33: 0 | N33: 0
A34: ITAX | C34: =VLOOKUP($P$1,Table3[#All],7,0) -> 0 | D34: 0 | E34: =D34 -> 0 | F34: 0 | G34: 0 | H34: 0 | I34: 0 | J34: 0 | K34: 0 | L34: 0 | M34: 0 | N34: 0
A35: RPMF | C35: =VLOOKUP($P$1,Table3[#All],8,0) -> 0 | D35: 0 | E35: =D35 -> 0 | F35: 0 | G35: 0 | H35: 0 | I35: 0 | J35: 0 | K35: 0 | L35: 0 | M35: 0 | N35: 0
A36: LIC | C36: =VLOOKUP($P$1,Table3[#All],9,0) -> 0 | D36: 0 | E36: =D36 -> 0 | F36: 0 | G36: 0 | H36: 0 | I36: 0 | J36: 0 | K36: 0 | L36: 0 | M36: 0 | N36: 0
A37: CM CORONA | C37: =VLOOKUP($P$1,Table3[#All],10,0) -> 0 | D37: 0 | E37: =D37 -> 0 | F37: 0 | G37: 0 | H37: 0 | I37: 0 | J37: 0 | K37: 0 | L37: 0 | M37: 0 | N37: 0
A38: GIS | C38: =VLOOKUP($P$1,Table3[#All],11,0) -> 220 | D38: 0 | E38: 0 | F38: 0 | G38: 0 | H38: 0 | I38: 0 | J38: 0 | K38: 0 | L38: 0 | M38: 0 | N38: 0
A39: हितकारी निधि | C39: 0 | D39: 0 | E39: 0 | F39: 0 | G39: 0 | H39: 0 | I39: 0 | J39: 0 | K39: =IF($S$8="Yes",500,250) -> 500 | L39: 0 | M39: 0 | N39: 0
A40: अन्य 1 | C40: =VLOOKUP($P$1,Table3[#All],13,0) -> 0 | D40: =C40 -> 0 | E40: =D40 -> 0 | F40: 0 | G40: 0 | H40: 0 | I40: 0 | J40: 0 | K40: 0 | L40: 0 | M40: 0 | N40: 0
A41: अन्य 2 | C41: =VLOOKUP($P$1,Table3[#All],14,0) -> 0 | D41: =C41 -> 0 | E41: =D41 -> 0 | F41: 0 | G41: 0 | H41: 0 | I41: 0 | J41: 0 | K41: 0 | L41: 0 | M41: 0 | N41: 0
A42: अन्य 3 | C42: =VLOOKUP($P$1,Table3[#All],15,0) -> 3220 | D42: =C42 -> 3220 | E42: =D42 -> 3220 | F42: 3220 | G42: 3220 | H42: 3220 | I42: 3220 | J42: 3220 | K42: 3220 | L42: 3220 | M42: 3220 | N42: 3220
A43: योग (ब) | C43: =SUM(C29:C42) -> 11565 | D43: =SUM(D29:D42) -> 11345 | E43: 11345 | F43: 11497 | G43: 11497 | H43: 11497 | I43: 11497 | J43: 11497 | K43: 12219 | L43: 11719 | M43: 11719 | N43: 11719
A44: कुल देय वेतन राशि (अ-ब) | C44: =C26-C43 -> 43185 | D44: =D26-D43 -> 43405 | E44: 43405 | F44: 44878 | G44: 44878 | H44: 44878 | I44: 44878 | J44: 44878 | K44: 46531 | L44: 47031 | M44: 47031 | N44: 47031
A46: Arrear Type | B46: Bill No. and TV No. | C46: (स) शेष बकाया भुगतान का विवरण
A47: Arrear 1
A48: Arrear 2
A49: Arrear 3
A50: Arrear 4
A51: कुल राशि | C51: =SUM(C47:C50) -> 0 | D51: =SUM(D47:D50) -> 0 | E51: 0 | F51: 0 | G51: 0 | H51: 0 | I51: 0 | J51: 0 | K51: 0 | L51: 0 | M51: 0 | N51: 0
A53: समर्पित या अंतिम उपार्जित अवकाश | B53: Bill No. and TV No. | C53: (द) समर्पित या अंतिम उपार्जित अवकाश का भुगतान विवरण
C54: =ROUND(IF($P$8=C8,SUM(C16+C19)/2,0),0) -> 0 | D54: 0 | E54: 0 | F54: 0 | G54: 0 | H54: 0 | I54: 26384 | J54: 0 | K54: 0 | L54: 0 | M54: 0 | N54: 0
A56: सकल योग माह | C56: =SUM(C44,C50,C54) -> 43185 | D56: =SUM(D44,D50,D54) -> 43405 | E56: 43405 | F56: 44878 | G56: 44878 | H56: 44878 | I56: 71262 | J56: 44878 | K56: 46531 | L56: 47031 | M56: 47031 | N56: 47031
A58: लिपिक के हस्ताक्षर
A60: DDO के हस्ताक्षर

Sheet Print Pay Posting
A1: ='Edit Pay Posting'!A1 -> Government Senior Secondary School, Rooppura
A2: Pay Posting Register
A4: नाम- | B4: ='Edit Pay Posting'!B4 -> Ashwini Kumar | E4: पद- | F4: ='Edit Pay Posting'!F4 -> Senior Teacher (Ii Gr.) | I4: DOB- | J4: ='Edit Pay Posting'!J4 -> 1988-02-06 | L4: पैन नंबर- | M4: ='Edit Pay Posting'!M4 -> XXXXK5921Q
A5: Emp. ID- | B5: ='Edit Pay Posting'!B5 -> RJNA201228008021 | E5: SI No.- | F5: ='Edit Pay Posting'!F5 -> 123 | I5: GPF No.- | J5: ='Edit Pay Posting'!J5 -> 1234 | L5: PRAN No. | M5: ='Edit Pay Posting'!M5 -> 1234567891011
A6: आधार कार्ड नंबर- | B6: ='Edit Pay Posting'!B6 -> XXXXXXXX6191 | E6: बैंक नाम- | F6: ='Edit Pay Posting'!F6 -> SBI | I6: IFSC Cod- | J6: ='Edit Pay Posting'!J6 -> SBIN0031733 | L6: बैंक A/c- | M6: ='Edit Pay Posting'!M6 -> 1234567891011
A8: ='Edit Pay Posting'!A8 -> Ashwini Kumar | B8: Month | C8: APR | D8: MAY | E8: JUN | F8: JUL | G8: AUG | H8: SEP | I8: OCT | J8: NOV | K8: DEC | L8: JAN | M8: FEB | N8: MAR
A9: वेतन एवं कटौती का विवरण | B9: DA Rates | C9: ='Edit Pay Posting'!C9 -> 17% | D9: ='Edit Pay Posting'!D9 -> 17% | E9: ='Edit Pay Posting'!E9 -> 17% | F9: ='Edit Pay Posting'!F9 -> 17% | G9: ='Edit Pay Posting'!G9 -> 17% | H9: ='Edit Pay Posting'!H9 -> 17% | I9: ='Edit Pay Posting'!I9 -> 17% | J9: ='Edit Pay Posting'!J9 -> 17% | K9: ='Edit Pay Posting'!K9 -> 17% | L9: ='Edit Pay Posting'!L9 -> 17% | M9: ='Edit Pay Posting'!M9 -> 17% | N9: ='Edit Pay Posting'!N9 -> 17%
B10: Bill No. | C10: ='Edit Pay Posting'!C10 -> 1 | D10: ='Edit Pay Posting'!D10 -> 2 | E10: ='Edit Pay Posting'!E10 -> 3 | F10: ='Edit Pay Posting'!F10 -> 4 | G10: ='Edit Pay Posting'!G10 -> 5 | H10: ='Edit Pay Posting'!H10 -> 6 | I10: ='Edit Pay Posting'!I10 -> 7 | J10: ='Edit Pay Posting'!J10 -> 8 | K10: ='Edit Pay Posting'!K10 -> 9 | L10: ='Edit Pay Posting'!L10 -> 10 | M10: ='Edit Pay Posting'!M10 -> 11 | N10: ='Edit Pay Posting'!N10 -> 12
B11: Date | C11: ='Edit Pay Posting'!C11 -> 2021-03-21 | D11: ='Edit Pay Posting'!D11 -> 2021-03-22 | E11: ='Edit Pay Posting'!E11 -> 2021-03-23 | F11: ='Edit Pay Posting'!F11 -> 2021-03-24 | G11: ='Edit Pay Posting'!G11 -> 2021-03-25 | H11: ='Edit Pay Posting'!H11 -> 2021-03-26 | I11: ='Edit Pay Posting'!I11 -> 2021-03-27 | J11: ='Edit Pay Posting'!J11 -> 2021-03-28 | K11: ='Edit Pay Posting'!K11 -> 2021-03-29 | L11: ='Edit Pay Posting'!L11 -> 2021-03-30 | M11: ='Edit Pay Posting'!M11 -> 2021-03-31 | N11: ='Edit Pay Posting'!N11 -> 2021-04-01
B12: TV No. | C12: ='Edit Pay Posting'!C12 -> 1917-02-17 | D12: ='Edit Pay Posting'!D12 -> 1917-02-18 | E12: ='Edit Pay Posting'!E12 -> 1917-02-19 | F12: ='Edit Pay Posting'!F12 -> 1917-02-20 | G12: ='Edit Pay Posting'!G12 -> 1917-02-21 | H12: ='Edit Pay Posting'!H12 -> 1917-02-22 | I12: ='Edit Pay Posting'!I12 -> 1917-02-23 | J12: ='Edit Pay Posting'!J12 -> 1917-02-24 | K12: ='Edit Pay Posting'!K12 -> 1917-02-25 | L12: ='Edit Pay Posting'!L12 -> 1917-02-26 | M12: ='Edit Pay Posting'!M12 -> 1917-02-27 | N12: ='Edit Pay Posting'!N12 -> 1917-02-28
B13: Date | C13: ='Edit Pay Posting'!C13 -> 2021-04-01 | D13: ='Edit Pay Posting'!D13 -> 2021-04-02 | E13: ='Edit Pay Posting'!E13 -> 2021-04-03 | F13: ='Edit Pay Posting'!F13 -> 2021-04-04 | G13: ='Edit Pay Posting'!G13 -> 2021-04-05 | H13: ='Edit Pay Posting'!H13 -> 2021-04-06 | I13: ='Edit Pay Posting'!I13 -> 2021-04-07 | J13: ='Edit Pay Posting'!J13 -> 2021-04-08 | K13: ='Edit Pay Posting'!K13 -> 2021-04-09 | L13: ='Edit Pay Posting'!L13 -> 2021-04-10 | M13: ='Edit Pay Posting'!M13 -> 2021-04-11 | N13: ='Edit Pay Posting'!N13 -> 2021-04-12
A15: (अ) वेतन
A16: ='Edit Pay Posting'!A16 -> मूल वेतन | C16: ='Edit Pay Posting'!C16 -> 43800 | D16: ='Edit Pay Posting'!D16 -> 43800 | E16: ='Edit Pay Posting'!E16 -> 43800 | F16: ='Edit Pay Posting'!F16 -> 45100 | G16: ='Edit Pay Posting'!G16 -> 45100 | H16: ='Edit Pay Posting'!H16 -> 45100 | I16: ='Edit Pay Posting'!I16 -> 45100 | J16: ='Edit Pay Posting'!J16 -> 45100 | K16: ='Edit Pay Posting'!K16 -> 47000 | L16: ='Edit Pay Posting'!L16 -> 47000 | M16: ='Edit Pay Posting'!M16 -> 47000 | N16: ='Edit Pay Posting'!N16 -> 47000
A17: ='Edit Pay Posting'!A17 -> अवकाश वेतन | C17: ='Edit Pay Posting'!C17 -> 0 | D17: ='Edit Pay Posting'!D17 -> 0 | E17: ='Edit Pay Posting'!E17 -> 0 | F17: ='Edit Pay Posting'!F17 -> 0 | G17: ='Edit Pay Posting'!G17 -> 0 | H17: ='Edit Pay Posting'!H17 -> 0 | I17: ='Edit Pay Posting'!I17 -> 0 | J17: ='Edit Pay Posting'!J17 -> 0 | K17: ='Edit Pay Posting'!K17 -> 0 | L17: ='Edit Pay Posting'!L17 -> 0 | M17: ='Edit Pay Posting'!M17 -> 0 | N17: ='Edit Pay Posting'!N17 -> 0
A18: ='Edit Pay Posting'!A18 -> विशेष वेतन | C18: ='Edit Pay Posting'!C18 -> 0 | D18: ='Edit Pay Posting'!D18 -> 0 | E18: ='Edit Pay Posting'!E18 -> 0 | F18: ='Edit Pay Posting'!F18 -> 0 | G18: ='Edit Pay Posting'!G18 -> 0 | H18: ='Edit Pay Posting'!H18 -> 0 | I18: ='Edit Pay Posting'!I18 -> 0 | J18: ='Edit Pay Posting'!J18 -> 0 | K18: ='Edit Pay Posting'!K18 -> 0 | L18: ='Edit Pay Posting'!L18 -> 0 | M18: ='Edit Pay Posting'!M18 -> 0 | N18: ='Edit Pay Posting'!N18 -> 0
A19: ='Edit Pay Posting'!A19 -> मंहगाई भत्ता | C19: ='Edit Pay Posting'!C19 -> 7446 | D19: ='Edit Pay Posting'!D19 -> 7446 | E19: ='Edit Pay Posting'!E19 -> 7446 | F19: ='Edit Pay Posting'!F19 -> 7667 | G19: ='Edit Pay Posting'!G19 -> 7667 | H19: ='Edit Pay Posting'!H19 -> 7667 | I19: ='Edit Pay Posting'!I19 -> 7667 | J19: ='Edit Pay Posting'!J19 -> 7667 | K19: ='Edit Pay Posting'!K19 -> 7990 | L19: ='Edit Pay Posting'!L19 -> 7990 | M19: ='Edit Pay Posting'!M19 -> 7990 | N19: ='Edit Pay Posting'!N19 -> 7990
A20: ='Edit Pay Posting'!A20 -> मकान किराया भत्ता | C20: ='Edit Pay Posting'!C20 -> 3504 | D20: ='Edit Pay Posting'!D20 -> 3504 | E20: ='Edit Pay Posting'!E20 -> 3504 | F20: ='Edit Pay Posting'!F20 -> 3608 | G20: ='Edit Pay Posting'!G20 -> 3608 | H20: ='Edit Pay Posting'!H20 -> 3608 | I20: ='Edit Pay Posting'!I20 -> 3608 | J20: ='Edit Pay Posting'!J20 -> 3608 | K20: ='Edit Pay Posting'!K20 -> 3760 | L20: ='Edit Pay Posting'!L20 -> 3760 | M20: ='Edit Pay Posting'!M20 -> 3760 | N20: ='Edit Pay Posting'!N20 -> 3760
A21: ='Edit Pay Posting'!A21 -> विकलांग भत्ता | C21: ='Edit Pay Posting'!C21 -> 0 | D21: ='Edit Pay Posting'!D21 -> 0 | E21: ='Edit Pay Posting'!E21 -> 0 | F21: ='Edit Pay Posting'!F21 -> 0 | G21: ='Edit Pay Posting'!G21 -> 0 | H21: ='Edit Pay Posting'!H21 -> 0 | I21: ='Edit Pay Posting'!I21 -> 0 | J21: ='Edit Pay Posting'!J21 -> 0 | K21: ='Edit Pay Posting'!K21 -> 0 | L21: ='Edit Pay Posting'!L21 -> 0 | M21: ='Edit Pay Posting'!M21 -> 0 | N21: ='Edit Pay Posting'!N21 -> 0
A22: ='Edit Pay Posting'!A22 -> शहरी भत्ता | C22: ='Edit Pay Posting'!C22 -> 0 | D22: ='Edit Pay Posting'!D22 -> 0 | E22: ='Edit Pay Posting'!E22 -> 0 | F22: ='Edit Pay Posting'!F22 -> 0 | G22: ='Edit Pay Posting'!G22 -> 0 | H22: ='Edit Pay Posting'!H22 -> 0 | I22: ='Edit Pay Posting'!I22 -> 0 | J22: ='Edit Pay Posting'!J22 -> 0 | K22: ='Edit Pay Posting'!K22 -> 0 | L22: ='Edit Pay Posting'!L22 -> 0 | M22: ='Edit Pay Posting'!M22 -> 0 | N22: ='Edit Pay Posting'!N22 -> 0
A23: ='Edit Pay Posting'!A23 -> अन्य 1 | C23: ='Edit Pay Posting'!C23 -> 0 | D23: ='Edit Pay Posting'!D23 -> 0 | E23: ='Edit Pay Posting'!E23 -> 0 | F23: ='Edit Pay Posting'!F23 -> 0 | G23: ='Edit Pay Posting'!G23 -> 0 | H23: ='Edit Pay Posting'!H23 -> 0 | I23: ='Edit Pay Posting'!I23 -> 0 | J23: ='Edit Pay Posting'!J23 -> 0 | K23: ='Edit Pay Posting'!K23 -> 0 | L23: ='Edit Pay Posting'!L23 -> 0 | M23: ='Edit Pay Posting'!M23 -> 0 | N23: ='Edit Pay Posting'!N23 -> 0
A24: ='Edit Pay Posting'!A24 -> अन्य 2 | C24: ='Edit Pay Posting'!C24 -> 0 | D24: ='Edit Pay Posting'!D24 -> 0 | E24: ='Edit Pay Posting'!E24 -> 0 | F24: ='Edit Pay Posting'!F24 -> 0 | G24: ='Edit Pay Posting'!G24 -> 0 | H24: ='Edit Pay Posting'!H24 -> 0 | I24: ='Edit Pay Posting'!I24 -> 0 | J24: ='Edit Pay Posting'!J24 -> 0 | K24: ='Edit Pay Posting'!K24 -> 0 | L24: ='Edit Pay Posting'!L24 -> 0 | M24: ='Edit Pay Posting'!M24 -> 0 | N24: ='Edit Pay Posting'!N24 -> 0
A25: ='Edit Pay Posting'!A25 -> अन्य 3 | C25: ='Edit Pay Posting'!C25 -> 0 | D25: ='Edit Pay Posting'!D25 -> 0 | E25: ='Edit Pay Posting'!E25 -> 0 | F25: ='Edit Pay Posting'!F25 -> 0 | G25: ='Edit Pay Posting'!G25 -> 0 | H25: ='Edit Pay Posting'!H25 -> 0 | I25: ='Edit Pay Posting'!I25 -> 0 | J25: ='Edit Pay Posting'!J25 -> 0 | K25: ='Edit Pay Posting'!K25 -> 0 | L25: ='Edit Pay Posting'!L25 -> 0 | M25: ='Edit Pay Posting'!M25 -> 0 | N25: ='Edit Pay Posting'!N25 -> 0
A26: योग (अ) | C26: =SUM(C16:C25) -> 54750 | D26: =SUM(D16:D25) -> 54750 | E26: 54750 | F26: 56375 | G26: 56375 | H26: 56375 | I26: 56375 | J26: 56375 | K26: 58750 | L26: 58750 | M26: 58750 | N26: 58750
A28: (ब) कटौतियां
A29: ='Edit Pay Posting'!A29 -> GPF | C29: ='Edit Pay Posting'!C29 -> 0 | D29: ='Edit Pay Posting'!D29 -> 0 | E29: ='Edit Pay Posting'!E29 -> 0 | F29: ='Edit Pay Posting'!F29 -> 0 | G29: ='Edit Pay Posting'!G29 -> 0 | H29: ='Edit Pay Posting'!H29 -> 0 | I29: ='Edit Pay Posting'!I29 -> 0 | J29: ='Edit Pay Posting'!J29 -> 0 | K29: ='Edit Pay Posting'!K29 -> 0 | L29: ='Edit Pay Posting'!L29 -> 0 | M29: ='Edit Pay Posting'!M29 -> 0 | N29: ='Edit Pay Posting'!N29 -> 0
A30: ='Edit Pay Posting'!A30 -> GPF Loan | C30: ='Edit Pay Posting'!C30 -> 0 | D30: ='Edit Pay Posting'!D30 -> 0 | E30: ='Edit Pay Posting'!E30 -> 0 | F30: ='Edit Pay Posting'!F30 -> 0 | G30: ='Edit Pay Posting'!G30 -> 0 | H30: ='Edit Pay Posting'!H30 -> 0 | I30: ='Edit Pay Posting'!I30 -> 0 | J30: ='Edit Pay Posting'!J30 -> 0 | K30: ='Edit Pay Posting'!K30 -> 0 | L30: ='Edit Pay Posting'!L30 -> 0 | M30: ='Edit Pay Posting'!M30 -> 0 | N30: ='Edit Pay Posting'!N30 -> 0
A31: ='Edit Pay Posting'!A31 -> NPS | C31: ='Edit Pay Posting'!C31 -> 5125 | D31: ='Edit Pay Posting'!D31 -> 5125 | E31: ='Edit Pay Posting'!E31 -> 5125 | F31: ='Edit Pay Posting'!F31 -> 5277 | G31: ='Edit Pay Posting'!G31 -> 5277 | H31: ='Edit Pay Posting'!H31 -> 5277 | I31: ='Edit Pay Posting'!I31 -> 5277 | J31: ='Edit Pay Posting'!J31 -> 5277 | K31: ='Edit Pay Posting'!K31 -> 5499 | L31: ='Edit Pay Posting'!L31 -> 5499 | M31: ='Edit Pay Posting'!M31 -> 5499 | N31: ='Edit Pay Posting'!N31 -> 5499
A32: ='Edit Pay Posting'!A32 -> SI | C32: ='Edit Pay Posting'!C32 -> 3000 | D32: ='Edit Pay Posting'!D32 -> 3000 | E32: ='Edit Pay Posting'!E32 -> 3000 | F32: ='Edit Pay Posting'!F32 -> 3000 | G32: ='Edit Pay Posting'!G32 -> 3000 | H32: ='Edit Pay Posting'!H32 -> 3000 | I32: ='Edit Pay Posting'!I32 -> 3000 | J32: ='Edit Pay Posting'!J32 -> 3000 | K32: ='Edit Pay Posting'!K32 -> 3000 | L32: ='Edit Pay Posting'!L32 -> 3000 | M32: ='Edit Pay Posting'!M32 -> 3000 | N32: ='Edit Pay Posting'!N32 -> 3000
A33: ='Edit Pay Posting'!A33 -> SI Loan | C33: ='Edit Pay Posting'!C33 -> 0 | D33: ='Edit Pay Posting'!D33 -> 0 | E33: ='Edit Pay Posting'!E33 -> 0 | F33: ='Edit Pay Posting'!F33 -> 0 | G33: ='Edit Pay Posting'!G33 -> 0 | H33: ='Edit Pay Posting'!H33 -> 0 | I33: ='Edit Pay Posting'!I33 -> 0 | J33: ='Edit Pay Posting'!J33 -> 0 | K33: ='Edit Pay Posting'!K33 -> 0 | L33: ='Edit Pay Posting'!L33 -> 0 | M33: ='Edit Pay Posting'!M33 -> 0 | N33: ='Edit Pay Posting'!N33 -> 0
A34: ='Edit Pay Posting'!A34 -> ITAX | C34: ='Edit Pay Posting'!C34 -> 0 | D34: ='Edit Pay Posting'!D34 -> 0 | E34: ='Edit Pay Posting'!E34 -> 0 | F34: ='Edit Pay Posting'!F34 -> 0 | G34: ='Edit Pay Posting'!G34 -> 0 | H34: ='Edit Pay Posting'!H34 -> 0 | I34: ='Edit Pay Posting'!I34 -> 0 | J34: ='Edit Pay Posting'!J34 -> 0 | K34: ='Edit Pay Posting'!K34 -> 0 | L34: ='Edit Pay Posting'!L34 -> 0 | M34: ='Edit Pay Posting'!M34 -> 0 | N34: ='Edit Pay Posting'!N34 -> 0
A35: ='Edit Pay Posting'!A35 -> RPMF | C35: ='Edit Pay Posting'!C35 -> 0 | D35: ='Edit Pay Posting'!D35 -> 0 | E35: ='Edit Pay Posting'!E35 -> 0 | F35: ='Edit Pay Posting'!F35 -> 0 | G35: ='Edit Pay Posting'!G35 -> 0 | H35: ='Edit Pay Posting'!H35 -> 0 | I35: ='Edit Pay Posting'!I35 -> 0 | J35: ='Edit Pay Posting'!J35 -> 0 | K35: ='Edit Pay Posting'!K35 -> 0 | L35: ='Edit Pay Posting'!L35 -> 0 | M35: ='Edit Pay Posting'!M35 -> 0 | N35: ='Edit Pay Posting'!N35 -> 0
A36: ='Edit Pay Posting'!A36 -> LIC | C36: ='Edit Pay Posting'!C36 -> 0 | D36: ='Edit Pay Posting'!D36 -> 0 | E36: ='Edit Pay Posting'!E36 -> 0 | F36: ='Edit Pay Posting'!F36 -> 0 | G36: ='Edit Pay Posting'!G36 -> 0 | H36: ='Edit Pay Posting'!H36 -> 0 | I36: ='Edit Pay Posting'!I36 -> 0 | J36: ='Edit Pay Posting'!J36 -> 0 | K36: ='Edit Pay Posting'!K36 -> 0 | L36: ='Edit Pay Posting'!L36 -> 0 | M36: ='Edit Pay Posting'!M36 -> 0 | N36: ='Edit Pay Posting'!N36 -> 0
A37: ='Edit Pay Posting'!A37 -> CM CORONA | C37: ='Edit Pay Posting'!C37 -> 0 | D37: ='Edit Pay Posting'!D37 -> 0 | E37: ='Edit Pay Posting'!E37 -> 0 | F37: ='Edit Pay Posting'!F37 -> 0 | G37: ='Edit Pay Posting'!G37 -> 0 | H37: ='Edit Pay Posting'!H37 -> 0 | I37: ='Edit Pay Posting'!I37 -> 0 | J37: ='Edit Pay Posting'!J37 -> 0 | K37: ='Edit Pay Posting'!K37 -> 0 | L37: ='Edit Pay Posting'!L37 -> 0 | M37: ='Edit Pay Posting'!M37 -> 0 | N37: ='Edit Pay Posting'!N37 -> 0
A38: ='Edit Pay Posting'!A38 -> GIS | C38: ='Edit Pay Posting'!C38 -> 220 | D38: ='Edit Pay Posting'!D38 -> 0 | E38: ='Edit Pay Posting'!E38 -> 0 | F38: ='Edit Pay Posting'!F38 -> 0 | G38: ='Edit Pay Posting'!G38 -> 0 | H38: ='Edit Pay Posting'!H38 -> 0 | I38: ='Edit Pay Posting'!I38 -> 0 | J38: ='Edit Pay Posting'!J38 -> 0 | K38: ='Edit Pay Posting'!K38 -> 0 | L38: ='Edit Pay Posting'!L38 -> 0 | M38: ='Edit Pay Posting'!M38 -> 0 | N38: ='Edit Pay Posting'!N38 -> 0
A39: ='Edit Pay Posting'!A39 -> हितकारी निधि | C39: ='Edit Pay Posting'!C39 -> 0 | D39: ='Edit Pay Posting'!D39 -> 0 | E39: ='Edit Pay Posting'!E39 -> 0 | F39: ='Edit Pay Posting'!F39 -> 0 | G39: ='Edit Pay Posting'!G39 -> 0 | H39: ='Edit Pay Posting'!H39 -> 0 | I39: ='Edit Pay Posting'!I39 -> 0 | J39: ='Edit Pay Posting'!J39 -> 0 | K39: ='Edit Pay Posting'!K39 -> 500 | L39: ='Edit Pay Posting'!L39 -> 0 | M39: ='Edit Pay Posting'!M39 -> 0 | N39: ='Edit Pay Posting'!N39 -> 0
A40: ='Edit Pay Posting'!A40 -> अन्य 1 | C40: ='Edit Pay Posting'!C40 -> 0 | D40: ='Edit Pay Posting'!D40 -> 0 | E40: ='Edit Pay Posting'!E40 -> 0 | F40: ='Edit Pay Posting'!F40 -> 0 | G40: ='Edit Pay Posting'!G40 -> 0 | H40: ='Edit Pay Posting'!H40 -> 0 | I40: ='Edit Pay Posting'!I40 -> 0 | J40: ='Edit Pay Posting'!J40 -> 0 | K40: ='Edit Pay Posting'!K40 -> 0 | L40: ='Edit Pay Posting'!L40 -> 0 | M40: ='Edit Pay Posting'!M40 -> 0 | N40: ='Edit Pay Posting'!N40 -> 0
A41: ='Edit Pay Posting'!A41 -> अन्य 2 | C41: ='Edit Pay Posting'!C41 -> 0 | D41: ='Edit Pay Posting'!D41 -> 0 | E41: ='Edit Pay Posting'!E41 -> 0 | F41: ='Edit Pay Posting'!F41 -> 0 | G41: ='Edit Pay Posting'!G41 -> 0 | H41: ='Edit Pay Posting'!H41 -> 0 | I41: ='Edit Pay Posting'!I41 -> 0 | J41: ='Edit Pay Posting'!J41 -> 0 | K41: ='Edit Pay Posting'!K41 -> 0 | L41: ='Edit Pay Posting'!L41 -> 0 | M41: ='Edit Pay Posting'!M41 -> 0 | N41: ='Edit Pay Posting'!N41 -> 0
A42: ='Edit Pay Posting'!A42 -> अन्य 3 | C42: ='Edit Pay Posting'!C42 -> 3220 | D42: ='Edit Pay Posting'!D42 -> 3220 | E42: ='Edit Pay Posting'!E42 -> 3220 | F42: ='Edit Pay Posting'!F42 -> 3220 | G42: ='Edit Pay Posting'!G42 -> 3220 | H42: ='Edit Pay Posting'!H42 -> 3220 | I42: ='Edit Pay Posting'!I42 -> 3220 | J42: ='Edit Pay Posting'!J42 -> 3220 | K42: ='Edit Pay Posting'!K42 -> 3220 | L42: ='Edit Pay Posting'!L42 -> 3220 | M42: ='Edit Pay Posting'!M42 -> 3220 | N42: ='Edit Pay Posting'!N42 -> 3220
A43: ='Edit Pay Posting'!A43 -> योग (ब) | C43: =SUM(C29:C42) -> 11565 | D43: =SUM(D29:D42) -> 11345 | E43: 11345 | F43: 11497 | G43: 11497 | H43: 11497 | I43: 11497 | J43: 11497 | K43: 12219 | L43: 11719 | M43: 11719 | N43: 11719
A44: कुल देय वेतन राशि (अ-ब) | C44: =C26-C43 -> 43185 | D44: =D26-D43 -> 43405 | E44: 43405 | F44: 44878 | G44: 44878 | H44: 44878 | I44: 44878 | J44: 44878 | K44: 46531 | L44: 47031 | M44: 47031 | N44: 47031
A46: Arrear Type | B46: Bill No. and TV No. | C46: (स) शेष बकाया भुगतान का विवरण
A47: ='Edit Pay Posting'!A47 -> Arrear 1 | B47: ='Edit Pay Posting'!B47 -> 0 | C47: ='Edit Pay Posting'!C47 -> 0 | D47: ='Edit Pay Posting'!D47 -> 0 | E47: ='Edit Pay Posting'!E47 -> 0 | F47: ='Edit Pay Posting'!F47 -> 0 | G47: ='Edit Pay Posting'!G47 -> 0 | H47: ='Edit Pay Posting'!H47 -> 0 | I47: ='Edit Pay Posting'!I47 -> 0 | J47: ='Edit Pay Posting'!J47 -> 0 | K47: ='Edit Pay Posting'!K47 -> 0 | L47: ='Edit Pay Posting'!L47 -> 0 | M47: ='Edit Pay Posting'!M47 -> 0 | N47: ='Edit Pay Posting'!N47 -> 0
A48: ='Edit Pay Posting'!A48 -> Arrear 2 | B48: ='Edit Pay Posting'!B48 -> 0 | C48: ='Edit Pay Posting'!C48 -> 0 | D48: ='Edit Pay Posting'!D48 -> 0 | E48: ='Edit Pay Posting'!E48 -> 0 | F48: ='Edit Pay Posting'!F48 -> 0 | G48: ='Edit Pay Posting'!G48 -> 0 | H48: ='Edit Pay Posting'!H48 -> 0 | I48: ='Edit Pay Posting'!I48 -> 0 | J48: ='Edit Pay Posting'!J48 -> 0 | K48: ='Edit Pay Posting'!K48 -> 0 | L48: ='Edit Pay Posting'!L48 -> 0 | M48: ='Edit Pay Posting'!M48 -> 0 | N48: ='Edit Pay Posting'!N48 -> 0
A49: ='Edit Pay Posting'!A49 -> Arrear 3 | B49: ='Edit Pay Posting'!B49 -> 0 | C49: ='Edit Pay Posting'!C49 -> 0 | D49: ='Edit Pay Posting'!D49 -> 0 | E49: ='Edit Pay Posting'!E49 -> 0 | F49: ='Edit Pay Posting'!F49 -> 0 | G49: ='Edit Pay Posting'!G49 -> 0 | H49: ='Edit Pay Posting'!H49 -> 0 | I49: ='Edit Pay Posting'!I49 -> 0 | J49: ='Edit Pay Posting'!J49 -> 0 | K49: ='Edit Pay Posting'!K49 -> 0 | L49: ='Edit Pay Posting'!L49 -> 0 | M49: ='Edit Pay Posting'!M49 -> 0 | N49: ='Edit Pay Posting'!N49 -> 0
A50: ='Edit Pay Posting'!A50 -> Arrear 4 | B50: ='Edit Pay Posting'!B50 -> 0 | C50: ='Edit Pay Posting'!C50 -> 0 | D50: ='Edit Pay Posting'!D50 -> 0 | E50: ='Edit Pay Posting'!E50 -> 0 | F50: ='Edit Pay Posting'!F50 -> 0 | G50: ='Edit Pay Posting'!G50 -> 0 | H50: ='Edit Pay Posting'!H50 -> 0 | I50: ='Edit Pay Posting'!I50 -> 0 | J50: ='Edit Pay Posting'!J50 -> 0 | K50: ='Edit Pay Posting'!K50 -> 0 | L50: ='Edit Pay Posting'!L50 -> 0 | M50: ='Edit Pay Posting'!M50 -> 0 | N50: ='Edit Pay Posting'!N50 -> 0
A51: कुल राशि | C51: =SUM(C47:C50) -> 0 | D51: =SUM(D47:D50) -> 0 | E51: 0 | F51: 0 | G51: 0 | H51: 0 | I51: 0 | J51: 0 | K51: 0 | L51: 0 | M51: 0 | N51: 0
A53: समर्पित या अंतिम उपार्जित अवकाश | B53: Bill No. and TV No. | C53: (द) समर्पित या अंतिम उपार्जित अवकाश का भुगतान विवरण
B54: ='Edit Pay Posting'!B54 -> 0 | C54: ='Edit Pay Posting'!C54 -> 0 | D54: ='Edit Pay Posting'!D54 -> 0 | E54: ='Edit Pay Posting'!E54 -> 0 | F54: ='Edit Pay Posting'!F54 -> 0 | G54: ='Edit Pay Posting'!G54 -> 0 | H54: ='Edit Pay Posting'!H54 -> 0 | I54: ='Edit Pay Posting'!I54 -> 26384 | J54: ='Edit Pay Posting'!J54 -> 0 | K54: ='Edit Pay Posting'!K54 -> 0 | L54: ='Edit Pay Posting'!L54 -> 0 | M54: ='Edit Pay Posting'!M54 -> 0 | N54: ='Edit Pay Posting'!N54 -> 0
A56: सकल योग माह | C56: =SUM(C44,C51,C54) -> 43185 | D56: =SUM(D44,D51,D54) -> 43405 | E56: 43405 | F56: 44878 | G56: 44878 | H56: 44878 | I56: 71262 | J56: 44878 | K56: 46531 | L56: 47031 | M56: 47031 | N56: 47031
A58: लिपिक के हस्ताक्षर
A60: DDO के हस्ताक्षर
